Workbook

Sheet PORTADA
M275: LEN#22

Sheet MENU (hidden)
B5: Descripción | C5: Nombre de la hoja | E5: Descripción | F5: Nombre de la hoja
B6: Determinación de la fecha de presentación de las declaraciones | C6: CALENDARIO | E6: Formato IVA persona moral régimen general de Ley | F6: IVA
B7: Multas Código Fiscal de la Federación | C7: MULTA | E7: Formato IVA persona moral RESICO | F7: IVAR
B8: Importar archivos XML emitidos de tipo ingreso y egreso | C8: CFDIE | E8: Formato para el pago del IVA persona física actividad empresarial y profesional, y arrendamiento | F8: IVAPFAEP
B9: Importar archivos XML emitidos con complemento de pago | C9: RPAGOSE | E9: Formato IVA plataformas tecnológicas | F9: IVAP
B10: Importar archivos XML recibidos de tipo ingreso y egreso | C10: CFDIR | E10: Formato pago de IVA persona física RESICO | F10: IVAR
B11: Importar archivos XML recibidos con complemento de pago | C11: RPAGOSR | E11: Disminución de partidas de pagos provisionales ISR | F11: DISMINUCION
B12: Ingresos acumulables de acuerdo al aplicativo de ISR | C12: INGRESOSA | E12: Disposiciones para presentación de la DIOT | F12: DIOT
B13: Deducciones autorizadas de acuerdo al aplicativo del SAT para ISR | C13: DEDUCCIONES | E13: Ejemplos llenado del aplicativo DIOT | F13: EJEMPLOS
B14: Determinación del pago provisional de ISR | C14: DETERMINACION | E14: Ayuda DIOT 2025 en adelante | F14: DIOT2025
B15: Deducciones autorizadas para ISR | C15: DEDUCCIONESA | E15: Estructura para DITO 2025 en adelante | F15: ESTRUCTURA 2025
B16: Momento de acumulación de los ingresos | C16: ACUMULACION | E16: Ayuda Diot programa nuevo 2024 y anteriores | F16: AYUDA DIOT 2024
B17: Formato para la determinación del pago provisional de ISR persona física plataformas tecnológicas | C17: PP PLATA | E17: Estructura para DITO 2024 y anteriores | F17: ESTRUCTURA 2024
B18: Opción del pago provisional de ISR cuando la persona física RESICO sale del régimen | C18: PF RESICO | E18: Tabla de INPC | F18: INPC
B19: Determinación de la depreciación fiscal | C19: DEPRECIACIONF | E19: Tarifas persona física | F19: TARIFAS

Sheet CALENDARIO (hidden)
B3: RFC
B4: Contribuyente
B5: Régimen fiscal
B6: Ejercicio
B7: Día de vencimiento
E8: IR AL MENÚ
B9: Mes | C9: Fecha de vencimiento | D9: Fecha de vencimiento de acuerdo al CFF | E9: Días adicionales
B11: Enero
B12: Febrero
B13: Marzo
B14: Abril
B15: Mayo
B16: Junio
B17: Julio
B18: Agosto
B19: Septiembre
B20: Octubre
B21: Noviembre
B22: Diciembre
B24: Artículo 31 primer párrafo CFF. Las personas deberán presentar las solicitudes en materia de Registro Federal de Contribuyentes, declaraciones, avisos o informes, en documentos digitales con firma electrónica avanzada a través de los medios, formatos o herramientas electrónicas y con la información que señale el Servicio de Administración Tributaria mediante reglas de carácter general, enviándolos a las autoridades correspondientes o a las oficinas autorizadas, según sea el caso, debiendo cumplir los requisitos que se establezcan en dichas reglas para tal efecto y, en su caso, realizar el pago correspondiente mediante transferencia electrónica de fondos. Cuando las disposiciones fiscales establezcan que se acompañe un documento distinto a escrituras o poderes notariales y éste no sea digitalizado, la solicitud o el aviso se podrá presentar en medios impresos.
B25: Procedimiento para presentar declaraciones de pagos de impuestos provisionales o definitivos, así como de derechos 2.8.3.1. Para los efectos de los artículos 20, séptimo párrafo y 31, primer párrafo del CFF y 41 de su Reglamento, así como 39, 42, 44, 45, 52 y 56 de la LISH, las personas físicas y morales presentarán los pagos provisionales, definitivos y del ejercicio de ISR, IVA, IEPS, IAEEH y del entero de retenciones, así como la presentación de declaraciones de pago de los derechos por la utilidad compartida, de extracción de hidrocarburos o de exploración de hidrocarburos, por medio del Portal del SAT, a través del Servicio de “Declaraciones y Pagos”, conforme a lo siguiente:
B26: I. El acceso a la declaración se realizará con la clave en el RFC y Contraseña o e.firma
B27: II. Seleccionarán el periodo a declarar y el tipo de declaración.
B28: III. El programa automáticamente mostrará las obligaciones registradas en el RFC del contribuyente correspondientes al periodo seleccionado.
B29: IV. Para el llenado de la declaración se capturarán los datos habilitados por el programa citado, en el caso de las declaraciones prellenadas, solo se validará la información; en ambos casos el sistema realizará en forma automática los cálculos aritméticos.
B31: Declaraciones complementarias
B32: Artículo 32 CFF.- Las declaraciones que presenten los contribuyentes serán definitivas y sólo se podrán modificar por el propio contribuyente hasta en tres ocasiones, siempre que no se haya iniciado el ejercicio de las facultades de comprobación.
B33: Presentación de + de tres declaraciones complementarias | C33: No obstante lo dispuesto en el párrafo anterior, el contribuyente podrá modificar en más de tres ocasiones las declaraciones correspondientes, aún cuando se hayan iniciado las facultades de comprobación, en los siguientes casos: I. Cuando sólo incrementen sus ingresos o el valor de sus actos o actividades. II. Cuando sólo disminuyan sus deducciones o pérdidas o reduzcan las cantidades acreditables o compensadas o los pagos provisionales o de contribuciones a cuenta. III. (Se deroga). IV. Cuando la presentación de la declaración que modifica a la original se establezca como obligación por disposición expresa de Ley.
B34: Facultades de comprobación | C34: Lo dispuesto en este precepto no limita las facultades de comprobación de las autoridades fiscales.
B35: Sustitución de la declaración anterior | C35: La modificación de las declaraciones a que se refiere este artículo se efectuará mediante la presentación de declaración que sustituya a la anterior, debiendo contener todos los datos que requiera la declaración aun cuando sólo se modifique alguno de ellos.
B36: Declaraciones complementarias en formatos especificos | C36: Iniciado el ejercicio de facultades de comprobación, únicamente se podrá presentar declaración complementaria en las formas especiales a que se refieren los artículos 46, 48 y 76, según proceda, debiendo pagarse las multas que establece el citado artículo 76.
B37: Garantía del interes fiscal | C37: Se presentará declaración complementaria conforme a lo previsto por el sexto párrafo del artículo 144 de este Código, caso en el cual se pagará la multa que corresponda, calculada sobre la parte consentida de la resolución y disminuida en los términos del séptimo párrafo del artículo 76 de este ordenamiento
B38: Pago de recargos | C38: Si en la declaración complementaria se determina que el pago efectuado fue menor al que correspondía, los recargos se computarán sobre la diferencia, en los términos del artículo 21 de este Código, a partir de la fecha en que se debió hacer el pago.
B39: Sin efecto las declaraciones complementarias | C39: Para los efectos de este artículo, una vez que las autoridades fiscales hayan iniciado el ejercicio de sus facultades de comprobación no tendrán efectos las declaraciones complementarias de ejercicios anteriores que presenten los contribuyentes revisados cuando éstas tengan alguna repercusión en el ejercicio que se esté revisando.
B41: Presentación y pago de declaraciones complementarias 2.8.3.3. Para los efectos del artículo 32 del CFF, las declaraciones complementarias de pagos provisionales, definitivos y del ejercicio que presenten los contribuyentes de conformidad con este Capítulo, deberán realizarse vía Internet en los términos de la regla 2.8.3.1. Las declaraciones complementarias que se podrán presentar son las siguientes: I. Declaración complementaria de “Modificación de Obligaciones”. Se deberá presentar cuando los contribuyentes modifiquen datos manifestados en una obligación previamente presentada o cuando los contribuyentes no efectúen el pago por la línea de captura dentro del plazo de vigencia. Para los efectos del párrafo que antecede, el sistema automáticamente calculará el importe de la actualización y recargos en términos de los artículos 17-A y 21 del CFF, los cuales podrán ser modificados por el contribuyente. II. Declaración complementaria de “Dejar sin efecto obligación”. Se deberá presentar para dejar sin efectos obligaciones con errores relativos al periodo de pago o concepto de impuesto declarado. III. Declaración complementaria de “Obligación no presentada”. Se presentará cuando el contribuyente haya dejado de presentar una o más obligaciones, sin modificar los datos declarados en las otras obligaciones. En su caso, el sistema calculará el importe de la actualización y recargos en términos de los artículos 17-A y 21 del CFF, los cuales podrán ser modificados por el contribuyente. No se computarán dentro del límite de declaraciones complementarias que establece el artículo 32 del CFF, las declaraciones que se presenten en los términos de la fracción I de esta regla, siempre que únicamente se modifiquen los datos correspondientes a la actualización y recargos, así como las declaraciones complementarias a que se refieren las fracciones II y III de la presente regla. CFF 17-A, 21, 31, 32, RMF 2.8.3.1.

Sheet MULTA (hidden)
J3: IR AL MENÚ
B4: Restricción temporal del certificado de sello digital
B5: Artículo 17-H Bis CFF. Tratándose de certificados de sello digital para la expedición de comprobantes fiscales digitales por Internet, previo a que se dejen sin efectos los referidos certificados, las autoridades fiscales podrán restringir temporalmente el uso de los mismos cuando: I. Detecten que los contribuyentes, en un ejercicio fiscal y estando obligados a ello, omitan la presentación de la declaración anual transcurrido un mes posterior a la fecha en que se encontraban obligados a hacerlo en términos de las disposiciones fiscales, o de dos o más declaraciones provisionales o definitivas consecutivas o no consecutivas. Tratándose de contribuyentes que tributen conforme al Título IV, Capítulo II, Sección IV de la Ley del Impuesto sobre la Renta, la restricción temporal se realizará cuando se detecte que omitió tres o más pagos mensuales en un año calendario, consecutivos o no, o bien, la declaración anual. VII. Detecten que el ingreso declarado, el valor de los actos o actividades gravados declarados, así como el impuesto retenido por el contribuyente, manifestados en las declaraciones de pagos provisionales o definitivos, de retenciones o del ejercicio, o bien, las informativas, no concuerden con los ingresos o valor de actos o actividades señalados en los comprobantes fiscales digitales por Internet, sus complementos de pago o estados de cuenta bancarios, expedientes, documentos o bases de datos que lleven las autoridades fiscales, tengan en su poder o a las que tengan acceso.
B7: Facultades de comprobación
B8: Artículo 42 CFF. Las autoridades fiscales a fin de comprobar que los contribuyentes, los responsables solidarios, los terceros con ellos relacionados, los asesores fiscales, las instituciones financieras; las fiduciarias, los fideicomitentes o los fideicomisarios, en el caso de los fideicomisos, y las partes contratantes o integrantes, en el caso de cualquier otra figura jurídica, han cumplido con las disposiciones fiscales y aduaneras y, en su caso, determinar las contribuciones omitidas o los créditos fiscales, así como para comprobar la comisión de delitos fiscales y para proporcionar información a otras autoridades fiscales, estarán facultadas para: Párrafo reformado DOF 12-11-2021 I.- Rectificar los errores aritméticos, omisiones u otros que aparezcan en las declaraciones, solicitudes o avisos, para lo cual las autoridades fiscales podrán requerir al contribuyente la presentación de la documentación que proceda, para la rectificación del error u omisión de que se trate.
B9: IX. Practicar revisiones electrónicas a los contribuyentes, responsables solidarios o terceros con ellos relacionados, basándose en el análisis de la información y documentación que obre en poder de la autoridad, sobre uno o más rubros o conceptos específicos de una o varias contribuciones.
B11: MULTAS
B12: Artículo 76 CFF. Cuando la comisión de una o varias infracciones origine la omisión total o parcial en el pago de contribuciones incluyendo las retenidas o recaudadas, excepto tratándose de contribuciones al comercio exterior, y sea descubierta por las autoridades fiscales mediante el ejercicio de sus facultades, se aplicará una multa del 55% al 75% de las contribuciones omitidas. Cuando el infractor pague las contribuciones omitidas junto con sus accesorios después de que se inicie el ejercicio de las facultades de comprobación de las autoridades fiscales y hasta antes de que se le notifique el acta final de la visita domiciliaria o el oficio de observaciones a que se refiere la fracción VI del artículo 48 de este Código, según sea el caso, se aplicará la multa establecida en el artículo 17, primer párrafo de la Ley Federal de los Derechos del Contribuyente.
B13: Artículo 17 LFDC.- Los contribuyentes que corrijan su situación fiscal, pagarán una multa equivalente al 20% de las contribuciones omitidas, cuando el infractor las pague junto con sus accesorios después de que se inicie el ejercicio de las facultades de comprobación de las autoridades fiscales y hasta antes de que se le notifique el acta final de la visita domiciliaria o el oficio de observaciones a que se refiere la fracción VI del artículo 48 del Código Fiscal de la Federación, según sea el caso. Si el infractor paga las contribuciones omitidas junto con sus accesorios, después de que se notifique el acta final de la visita domiciliaria o el oficio de observaciones, según sea el caso, pero antes de la notificación de la resolución que determine el monto de las contribuciones omitidas, pagará una multa equivalente al 30% de las contribuciones omitidas. Así mismo, podrán efectuar el pago en parcialidades de conformidad con lo dispuesto en el Código Fiscal de la Federación, siempre que esté garantizado el interés fiscal.
B14: Artículo 76 CFF. Quinto párrafo También se aplicarán las multas a que se refiere este precepto, cuando las infracciones consistan en devoluciones, acreditamientos o compensaciones, indebidos o en cantidad mayor de la que corresponda. En estos casos las multas se calcularán sobre el monto del beneficio indebido. Lo anterior, sin perjuicio de lo dispuesto en el segundo párrafo del artículo 70 de este Código. Sexto párrafo Si el infractor paga las contribuciones omitidas o devuelve el beneficio indebido con sus accesorios dentro de los 45 días siguientes a la fecha en la que surta efectos la notificación de la resolución respectiva, la multa se reducirá en un 20% del monto de las contribuciones omitidas. Para aplicar la reducción contenida en este párrafo, no se requerirá modificar la resolución que impuso la multa. Séptimo párrafo Cuando se declaren pérdidas fiscales mayores a las realmente sufridas, la multa será del 30% al 40% de la diferencia que resulte entre la pérdida declarada y la que realmente corresponda, siempre que el contribuyente la hubiere disminuido total o parcialmente de su utilidad fiscal. En caso de que aún no se hubiere tenido oportunidad de disminuirla, no se impondrá multa alguna. En el supuesto de que la diferencia mencionada no se hubiere disminuido habiendo tenido la oportunidad de hacerlo, no se impondrá la multa a que se refiere este párrafo, hasta por el monto de la diferencia que no se disminuyó. Lo dispuesto para los dos últimos supuestos se condicionará a la presentación de la declaración complementaria que corrija la pérdida declarada.
B16: Aumento de las multas
B17: Artículo 77 CFF. En los casos a que se refiere el artículo 76 de este Código, las multas se aumentarán conforme a las siguientes reglas: I. De un 20% a un 30% del monto de las contribuciones omitidas o del beneficio indebido, cada vez que el infractor haya reincidido o cuando se trate del agravante señalado en la fracción IV del artículo 75 de este Código. II. De un 60% a un 90% del monto de las contribuciones omitidas o del beneficio indebido, cuando en la comisión de la infracción se dé alguna de los agravantes señalados en la fracción II del artículo 75 de este Código. III. De un 50% a un 75% del importe de las contribuciones retenidas o recaudadas y no enteradas, cuando se incurra en la agravante a que se refiere la fracción III del artículo 75 de este Código. Lo establecido en esta fracción también será aplicable cuando se incurra en la agravante a que se refiere el artículo 75, fracción V de este Código. Tratándose de los casos comprendidos en los párrafos primero, segundo y tercero del artículo anterior, el aumento de multas, a que se refiere este artículo, se determinará por la autoridad fiscal correspondiente, aun después de que el infractor hubiera pagado las multas en los términos del artículo precedente.
B19: Omisión de contribuciones por errores aritméticos
B20: Artículo 78 CFF.- Tratándose de la omisión de contribuciones por error aritmético en las declaraciones, se impondrá una multa del 20% al 25% de las contribuciones omitidas. En caso de que dichas contribuciones se paguen junto con sus accesorios, dentro de los 15 días hábiles siguientes a la fecha en que surta sus efectos la notificación de la diferencia respectiva, la multa se reducirá a la mitad, sin que para ello se requiera resolución administrativa.
B22: Infracciones por declaraciones
B23: Artículo 81 CFF. Son infracciones relacionadas con la obligación de pago de las contribuciones; de presentación de declaraciones, solicitudes, documentación, avisos, información o expedición de constancias, y del ingreso de información a través de la página de Internet del Servicio de Administración Tributaria:
B25: No presentarla en los formatos electrónicos
B26: Infracción artículo 81 CFF | J26: Multa artículo 82 CFF
B27: I. No presentar las declaraciones, las solicitudes, los avisos o las constancias que exijan las disposiciones fiscales, o no hacerlo a través de los medios electrónicos que señale la Secretaría de Hacienda y Crédito Público o presentarlos a requerimiento de las autoridades fiscales. No cumplir los requerimientos de las autoridades fiscales para presentar alguno de los documentos o medios electrónicos a que se refiere esta fracción, o cumplirlos fuera de los plazos señalados en los mismos. | J27: I. Para la señalada en la fracción I: a) De $1,810.00 a $22,400.00, tratándose de declaraciones, por cada una de las obligaciones no declaradas. Si dentro de los seis meses siguientes a la fecha en que se presentó la declaración por la cual se impuso la multa, el contribuyente presenta declaración complementaria de aquélla, declarando contribuciones adicionales, por dicha declaración también se aplicará la multa a que se refiere este inciso. b) De $1,810.00 a $44,790.00, por cada obligación a que esté afecto, al presentar una declaración, solicitud, aviso o constancia, fuera del plazo señalado en el requerimiento o por su incumplimiento. d) De $18,360.00 a $36,740.00, por no presentar las declaraciones en los medios electrónicos estando obligado a ello, presentarlas fuera del plazo o no cumplir con los requerimientos de las autoridades fiscales para presentarlas o cumplirlos fuera de los plazos señalados en los mismos.
B29: Contribuciones no autodeterminables
B30: Infracción artículo 81 CFF | J30: Multa artículo 82 CFF
B31: III. No pagar las contribuciones dentro del plazo que establecen las disposiciones fiscales, cuando se trate de contribuciones que no sean determinables por los contribuyentes, salvo cuando el pago se efectúe espontáneamente. | J31: III. De $1,810.00 a $44,790.00, tratándose de la señalada en la fracción III, por cada requerimiento.
B33: No presentar pagos provisionales
B34: Infracción artículo 81 CFF | J34: Multa artículo 82 CFF
B35: IV. No efectuar en los términos de las disposiciones fiscales los pagos provisionales de una contribución | J35: IV. De $22,400.00 a $44,790.00, respecto de la señalada en la fracción IV, salvo tratándose de contribuyentes que de conformidad con la Ley del Impuesto sobre la Renta, estén obligados a efectuar pagos provisionales trimestrales o cuatrimestrales, supuestos en los que la multa será de $2,230.00 a $13,430.00.
B37: Contribuyente | E37: Obligación
B38: Persona moral régimen general de Ley | E38: Artículo 14 primer párrafo.- Los contribuyentes efectuarán pagos provisionales mensuales a cuenta del impuesto del ejercicio, a más tardar el día 17 del mes inmediato posterior a aquél al que corresponda el pago, conforme a las bases que a continuación se señalan
B39: Persona moral RESICO | E39: Artículo 211 primer párrafo. Los contribuyentes a que se refiere este Capítulo efectuarán pagos provisionales mensuales a cuenta del impuesto del ejercicio a más tardar el día 17 del mes inmediato posterior a aquél al que corresponda el pago, mediante declaración que presentarán ante las oficinas autorizadas. El pago provisional se determinará restando de la totalidad de los ingresos efectivamente percibidos a que se refieren el artículo 207 de esta Ley, obtenidos en el periodo comprendido desde el inicio del ejercicio y hasta el último día del mes al que corresponde el pago, las deducciones autorizadas efectivamente erogadas a que se refiere el artículo 208 de esta Ley, correspondientes al mismo periodo y la participación de los trabajadores en las utilidades de las empresas pagadas en el ejercicio, en los términos del artículo 123 de la Constitución Política de los Estados Unidos Mexicanos y, en su caso, las pérdidas fiscales ocurridas en ejercicios anteriores que no se hubieran disminuido.
B40: Persona física actividad empresarial y profesional | E40: Artículo 106 primer párrafo LISR. Los contribuyentes a que se refiere esta Sección, efectuarán pagos provisionales mensuales a cuenta del impuesto del ejercicio, a más tardar el día 17 del mes inmediato posterior a aquél al que corresponda el pago, mediante declaración que presentarán ante las oficinas autorizadas. El pago provisional se determinará restando de la totalidad de los ingresos a que se refiere esta Sección obtenidos en el periodo comprendido desde el inicio del ejercicio y hasta el último día del mes al que corresponde el pago, las deducciones autorizadas en esta Sección correspondientes al mismo periodo y la participación de los trabajadores en las utilidades de las empresas pagada en el ejercicio, en los términos del artículo 123 de la Constitución Política de los Estados Unidos Mexicanos y, en su caso, las pérdidas fiscales ocurridas en ejercicios anteriores que no se hubieran disminuido.
B41: Persona física plataformas tecnológicas | E41: Declaración de pago provisional del ISR de personas físicas que obtienen ingresos únicamente por la enajenación de bienes o prestación de servicios a través de plataformas tecnológicas 12.3.13. Para los efectos de los artículos 113-A, tercer párrafo y 113-B de la Ley del ISR, las personas físicas con actividades empresariales que enajenen bienes o presten servicios a través de Internet, en operaciones realizadas únicamente a través de plataformas tecnológicas, aplicaciones informáticas y similares, que no opten por considerar como pago definitivo las retenciones que les realicen las plataformas tecnológicas, aplicaciones informáticas o similares, deberán presentar el pago provisional del ISR mediante la presentación de la “Declaración de pago del ISR personas físicas plataformas tecnológicas”, a más tardar el día 17 del mes inmediato siguiente al que corresponda el pago, conforme a lo establecido en la regla 2.8.3.1. En caso de que las personas físicas mencionadas en el primer párrafo, perciban ingresos por conceptos distintos o adicionales a los obtenidos mediante plataformas tecnológicas, aplicaciones informáticas o similares, excepto salarios e intereses, o se inscriban al padrón de beneficiarios del estímulo fiscal en materia de ISR de región fronteriza norte o sur, conforme a lo señalado en la regla 11.9.1., deberán realizar el pago provisional del ISR, a través de la “Declaración de ISR Personas Físicas, Actividad Empresarial y Profesional” o “Declaración de ISR Personas Físicas, Actividad Empresarial RF”, respectivamente, a más tardar el día 17 del mes inmediato siguiente al que corresponda el pago. Estas declaraciones deberán utilizarse a partir del mes en el que esto suceda, y durante los meses subsecuentes del año de calendario. Si las personas físicas señaladas en el párrafo anterior, dejan de percibir ingresos por conceptos distintos o adicionales a los obtenidos mediante plataformas tecnológicas, aplicaciones informáticas o similares, deberán seguir presentando sus pagos provisionales de ISR, a través de la “Declaración de ISR Personas Físicas, Actividad Empresarial y Profesional”. En los casos en los que las personas físicas se hayan dado de baja del padrón de beneficiarios del estímulo fiscal en materia de ISR de la región fronteriza norte o sur, conforme a lo señalado en la regla 11.9.15., estas deberán presentar sus pagos provisionales de ISR, desde el inicio del ejercicio o desde el inicio de operaciones, a través de la “Declaración de pago del ISR personas físicas plataformas tecnológicas”. LISR 113-A, 113-B, RMF 2.8.3.1., 11.9.1, 11.9.15.
B42: Persona física RESICO | E42: Artículo 113-E cuarto párrafo LISR Los contribuyentes a que se refiere este artículo calcularán y pagarán el impuesto en forma mensual a más tardar el día 17 del mes inmediato posterior a aquél al que corresponda el pago, y deberán presentar la declaración anual a que se refiere el artículo 113-F de esta Ley.
B43: Persona física arrendamiento de inmuebles | E43: Artículo 116 primer párrafo LISR. Los contribuyentes que obtengan ingresos de los señalados en este Capítulo por el otorgamiento del uso o goce temporal de bienes inmuebles, efectuarán los pagos provisionales mensuales o trimestrales, a más tardar el día 17 del mes inmediato posterior al que corresponda el pago, mediante declaración que presentarán ante las oficinas autorizadas.
B44: Contribuyentes obligados al pago del IVA | E44: Artículo 5o.-D primer párrafo LIVA. El impuesto se calculará por cada mes de calendario, salvo los casos señalados en los artículos 5o.-F y 33 de esta Ley. Segundo párrafo Los contribuyentes efectuarán el pago del impuesto mediante declaración que presentarán ante las oficinas autorizadas a más tardar el día 17 del mes siguiente al que corresponda el pago.
B45: Contribuyentes obligados al pago del IEPS | E45: Artículo 5o primer párrafo LIEPS.- El impuesto se calculará mensualmente y se pagará a más tardar el día 17 del mes siguiente a aquél al que corresponda el pago, excepto en el caso de importaciones de bienes en el que se estará a lo dispuesto en los artículos 15 y 16 de esta Ley, según se trate. Los pagos mensuales se realizarán en los términos que al efecto se establezcan en esta Ley y tendrán el carácter de definitivos.
B47: Sexto dígito numérico del RFC | D47: Fecha límite de pago
B48: 1 y 2 | D48: Día 17 más un día hábil
B49: 3 y 4 | D49: Día 17 más dos días hábiles
B50: 5 y 6 | D50: Día 17 más tres días hábiles
B51: 7 y 8 | D51: Día 17 más cuatro días hábiles
B52: 9 y 0 | D52: Día 17 más cinco días hábiles
B54: Declaración de las razones por las cuales no se efectúa pago
B55: Infracción artículo 81 CFF | J55: Multa artículo 82 CFF
B56: VII. No presentar la información manifestando las razones por las cuales no se determina impuesto a pagar o saldo a favor, por alguna de las obligaciones que los contribuyentes deban cumplir de conformidad con lo dispuesto por el artículo 31, sexto párrafo de este Código. | J56: VIII. Para la señalada en la fracción VIII, la multa será de $85,000.00 a $254,980.00.
B57: Artículo 31 sexto párrafo CFF. Los contribuyentes que tengan obligación de presentar declaraciones periódicas de conformidad con las leyes fiscales respectivas, continuarán haciéndolo en tanto no presenten los avisos que correspondan para los efectos del Registro Federal de Contribuyentes. Tratándose de las declaraciones de pago provisional o mensual, los contribuyentes deberán presentar dichas declaraciones siempre que haya cantidad a pagar, saldo a favor o cuando no resulte cantidad a pagar con motivo de la aplicación de créditos, compensaciones o estímulos.
B58: Infracción artículo 81 CFF | J58: Multa artículo 82 CFF
B59: IX. No proporcionar la información a que se refiere el artículo 20, décimo primer párrafo de este Código, en los plazos que establecen las disposiciones fiscales. | J59: IX. De $13,430.00 a $44,790.00, para la establecida en la fracción IX.
B60: Artículo 20 décimo primer párrafo CFF. Cuando las leyes fiscales establezcan que las contribuciones se paguen mediante declaración, la Secretaría de Hacienda y Crédito Público podrá ordenar, por medio de disposiciones de carácter general y con el objeto de facilitar el cumplimiento de la obligación, así como para allegarse de la información necesaria en materia de estadística de ingresos, que se proporcione en declaración distinta de aquélla con la cual se efectúe el pago.
B62: Defraudación fiscal
B63: Artículo 109 CFF.- Será sancionado con las mismas penas del delito de defraudación fiscal, quien: I. Consigne en las declaraciones que presente para los efectos fiscales, deducciones falsas o ingresos acumulables menores a los realmente obtenidos o valor de actos o actividades menores a los realmente obtenidos o realizados o determinados conforme a las leyes. En la misma forma será sancionada aquella persona física que perciba ingresos acumulables, cuando realice en un ejercicio fiscal erogaciones superiores a los ingresos declarados en el propio ejercicio y no compruebe a la autoridad fiscal el origen de la discrepancia en los plazos y conforme al procedimiento establecido en la Ley del Impuesto sobre la Renta. II. Omita enterar a las autoridades fiscales, dentro del plazo que la ley establezca, las cantidades que por concepto de contribuciones hubiere retenido o recaudado. ................................. No se formulará querella, si quien encontrándose en los supuestos anteriores, entera espontáneamente, con sus recargos, el monto de la contribución omitida o del beneficio indebido antes de que la autoridad fiscal descubra la omisión o el perjuicio, o medie requerimiento, orden de visita o cualquier otra gestión notificada por la misma, tendiente a la comprobación del cumplimiento de las disposiciones fiscales.
B66: Plazos para la cancelación de CFDI 2.7.1.46. Para los efectos de los artículos 29-A, cuarto párrafo del CFF y 22, fracción VI de la LIF, la cancelación de los CFDI se podrá efectuar a más tardar en el último día del mes en el cual se deba presentar la declaración anual del ISR correspondiente al ejercicio fiscal en el cual se expidió el citado comprobante. CFF 29-A, LIF 22
B68: Cancelación de CFDI
B69: Infracción artículo 81 CFF | J69: Multa artículo 82 CFF
B70: XLVI. No cancelar los comprobantes fiscales digitales por Internet de ingresos cuando dichos comprobantes se hayan emitido por error o sin una causa para ello o cancelarlos fuera del plazo establecido en el artículo 29-A, cuarto párrafo de este Código, y demás disposiciones aplicables. | J70: XLII. Del 5% a un 10% del monto de cada comprobante fiscal, tratándose del supuesto establecido en la fracción XLVI.
B72: Justificación y soporte documental de la cancelación de CFDI de tipo ingreso Cuando los contribuyentes cancelen comprobantes fiscales digitales por Internet que amparen ingresos, deberán justificar y soportar documentalmente el motivo de dicha cancelación, misma que podrá ser verificada por las autoridades fiscales en el ejercicio de las facultades establecidas en este Código. Fundamento: Artículo 29-A sexto párrafo CFF
B74: Caducidad de las facultades de comprobación de la autoridad
B75: Artículo 67 CFF.- Las facultades de las autoridades fiscales para determinar las contribuciones o aprovechamientos omitidos y sus accesorios, así como para imponer sanciones por infracciones a las disposiciones fiscales, se extinguen en el plazo de cinco años contados a partir del día siguiente a aquél en que:
B76: De acuerdo a la presentación de las declaraciones | D76: I. Se presentó la declaración del ejercicio, cuando se tenga obligación de hacerlo. Tratándose de contribuciones con cálculo mensual definitivo, el plazo se computará a partir de la fecha en que debió haberse presentado la información que sobre estos impuestos se solicite en la declaración del ejercicio del impuesto sobre la renta. En estos casos las facultades se extinguirán por años de calendario completos, incluyendo aquellas facultades relacionadas con la exigibilidad de obligaciones distintas de la de presentar la declaración del ejercicio. No obstante lo anterior, cuando se presenten declaraciones complementarias el plazo empezará a computarse a partir del día siguiente a aquél en que se presentan, por lo que hace a los conceptos modificados en relación a la última declaración de esa misma contribución en el ejercicio.
B77: Declaraciones que no se calculan por ejercicios | D77: II. Se presentó o debió haberse presentado declaración o aviso que corresponda a una contribución que no se calcule por ejercicios o a partir de que se causaron las contribuciones cuando no exista la obligación de pagarlas mediante declaración.
B78: Conteo del plazo | D78: III. Se hubiere cometido la infracción a las disposiciones fiscales; pero si la infracción fuese de carácter continuo o continuado, el término correrá a partir del día siguiente al en que hubiese cesado la consumación o se hubiese realizado la última conducta o hecho, respectivamente.
B79: Se levante el acta de incumplimiento | D79: IV. Se levante el acta de incumplimiento de la obligación garantizada, en un plazo que no excederá de cuatro meses, contados a partir del día siguiente al de la exigibilidad de las fianzas a favor de la Federación constituidas para garantizar el interés fiscal, la cual será notificada a la afianzadora.
B80: Ajuste en periodo preoperativo | D80: V. Concluya el mes en el cual el contribuyente deba realizar el ajuste previsto en el artículo 5o., fracción VI, cuarto párrafo de la Ley del Impuesto al Valor Agregado, tratándose del acreditamiento o devolución del impuesto al valor agregado correspondiente a periodos preoperativos.
B81: Plazo de díez años | D81: El plazo a que se refiere este artículo será de diez años, cuando el contribuyente no haya presentado su solicitud en el Registro Federal de Contribuyentes, no lleve contabilidad o no la conserve durante el plazo que establece este Código, así como por los ejercicios en que no presente alguna declaración del ejercicio, estando obligado a presentarlas, o no se presente en la declaración del impuesto sobre la renta la información que respecto del impuesto al valor agregado o del impuesto especial sobre producción y servicios se solicite en dicha declaración; en este último caso, el plazo de diez años se computará a partir del día siguiente a aquél en el que se debió haber presentado la declaración señalada. En los casos en los que posteriormente el contribuyente en forma espontánea presente la declaración omitida y cuando ésta no sea requerida, el plazo será de cinco años, sin que en ningún caso este plazo de cinco años, sumado al tiempo transcurrido entre la fecha en la que debió presentarse la declaración omitida y la fecha en la que se presentó espontáneamente, exceda de diez años. Para los efectos de este artículo las declaraciones del ejercicio no comprenden las de pagos provisionales.
B82: Responsabilidad solidaria | D82: En los casos de responsabilidad solidaria a que se refiere el artículo 26, fracciones III, X y XVII de este Código, el plazo será de cinco años a partir de que la garantía del interés fiscal resulte insuficiente.
B83: Plazo no sujeto a interrupción | D83: El plazo señalado en este artículo no está sujeto a interrupción y sólo se suspenderá cuando se ejerzan las facultades de comprobación de las autoridades fiscales a que se refieren las fracciones II, III, IV y IX del artículo 42 de este Código; cuando se interponga algún recurso administrativo o juicio; cuando se solicite una resolución en términos del artículo 34-A de este Código, desde el momento en el que se presentó la solicitud y hasta que surta efectos la notificación de la conclusión del trámite; o cuando las autoridades fiscales no puedan iniciar el ejercicio de sus facultades de comprobación en virtud de que el contribuyente hubiera desocupado su domicilio fiscal sin haber presentado el aviso de cambio correspondiente o cuando hubiere señalado de manera incorrecta su domicilio fiscal. En estos dos últimos casos, se reiniciará el cómputo del plazo de caducidad a partir de la fecha en la que se localice al contribuyente. Asimismo, el plazo a que hace referencia este artículo se suspenderá en los casos de huelga, a partir de que se suspenda temporalmente el trabajo y hasta que termine la huelga y en el de fallecimiento del contribuyente, hasta en tanto se designe al representante legal de la sucesión. Igualmente se suspenderá el plazo a que se refiere este artículo, respecto de la sociedad que teniendo el carácter de integradora, calcule el resultado fiscal integrado en los términos de lo dispuesto por la Ley del Impuesto sobre la Renta, cuando las autoridades fiscales ejerzan sus facultades de comprobación respecto de alguna de las sociedades que tengan el carácter de integrada de dicha sociedad integradora.
B84: Plazo de caducidad | D84: El plazo de caducidad que se suspende con motivo del ejercicio de las facultades de comprobación antes mencionadas inicia con la notificación de su ejercicio y concluye cuando se notifique la resolución definitiva por parte de la autoridad fiscal o cuando concluya el plazo que establece el artículo 50 de este Código para emitirla. De no emitirse la resolución, se entenderá que no hubo suspensión.
B85: Plazo máximo de diez años para la caducidad | D85: En todo caso, el plazo de caducidad que se suspende con motivo del ejercicio de las facultades de comprobación, adicionado con el plazo por el que no se suspende dicha caducidad, no podrá exceder de diez años. Tratándose de visitas domiciliarias, de revisión de la contabilidad en las oficinas de las propias autoridades o de la revisión de dictámenes, el plazo de caducidad que se suspende con motivo del ejercicio de las facultades de comprobación, adicionado con el plazo por el que no se suspende dicha caducidad, no podrá exceder de seis años con seis meses o de siete años, según corresponda y, cuando el plazo de caducidad se suspenda por dos años o más, no se podrá exceder el plazo de siete años, siete años con seis meses u ocho años, según sea el caso
B86: Delitos fiscales | D86: Las facultades de las autoridades fiscales para investigar hechos constitutivos de delitos en materia fiscal, no se extinguirán conforme a este Artículo.
B87: Solicitud de caducidad | D87: Los contribuyentes, transcurridos los plazos a que se refiere este Artículo, podrán solicitar se declare que se han extinguido las facultades de las autoridades fiscales
B88: Tratados para evitar la doble tributación | D88: Los plazos establecidos en este artículo no afectarán la implementación de los acuerdos alcanzados como resultado de los procedimientos de resolución de controversias establecidos en los tratados para evitar la doble tributación de los que México es parte, ni la de los alcanzados como resultado de los acuerdos amplios de intercambio de información que México tiene en vigor y que autorizan el intercambio de información en materia fiscal o de los alcanzados con base en los acuerdos interinstitucionales firmados con fundamento en dichos acuerdos amplios de intercambio de información.

Sheet CFDIE (hidden)
K4: IR AL MENÚ
K6: Emisor | N6: Receptor | AB6: Trasladados | AL6: Retenciones | AR6: Aerolíneas
B7: Fecha | C7: Tipo de comprobante | D7: Serie y folio | E7: Exportación | F7: Moneda | G7: Tipo de cambio | H7: Método de pago | I7: Forma de pago | J7: Folio fiscal | K7: RFC | L7: NOMBRE | M7: Régimen fiscal | N7: RFC | O7: Nombre | P7: Régimen fiscal | Q7: Domicilio fiscal | R7: USO del CFDI | S7: Clave producto | T7: Unidad de medida | U7: Cantidad | V7: Valor unitario | W7: Descripción | X7: Importe | Y7: Descuento | Z7: Importe - descuento | AA7: Objeto de impuesto | AB7: Base IEPS | AC7: Tasa o cuota | AD7: IEPS | AE7: Base no objeto | AF7: Base IVA Exento | AG7: Base IVA al 0% | AH7: Base IVA 8% | AI7: Base IVA al 16% | AJ7: IVA al 8% | AK7: IVA al 16% | AL7: Tasa | AM7: RISR | AN7: Tasa | AO7: RIVA | AP7: Tasa o cuota | AQ7: RIEPS | AR7: Impuesto sobre hospedaje | AS7: TUA | AT7: Otros cargos | AU7: Total del comprobante | AV7: Pedimento | AW7: No. de la cuenta predial | AX7: Tipo de relación | AY7: UUI relacionado | AZ7: Fecha de cancelación | BA7: Total en el tipo de moneda cuando es diferente a MXN | BB7: Ruta del archivo

Sheet RPAGOSE (hidden)
B2: Hoja para importar los XML emitidos con el complemento de recepción de pagos
I3: IR AL MENÚ
L5: Complemento de recepción de pagos
F6: Emisor | I6: Receptor | W6: Solo que el pago se reciba en SPEI | AA6: Documentos que se cobran | AL6: Impuestos trasladados
B7: Fecha de emisión | C7: Serie y folio | D7: Tipo de comprobante | E7: Lugar Expedicion | F7: Rfc | G7: Nombre | H7: Régimen fiscal | I7: RFC receptor | J7: Nombre | K7: Régimen fiscal | L7: Fecha de pago | M7: Forma de pago | N7: MonedaP | O7: TipoCambioP | P7: Monto | Q7: NumOperacion | R7: RfcEmisorCtaOrd | S7: NomBancoOrdExt | T7: CtaOrdenante | U7: RfcEmisorCtaBen | V7: CtaBeneficiario | W7: TipoCadPago | X7: CertPago | Y7: CadPago | Z7: SelloPago | AA7: IdDocumento | AB7: Serie | AC7: Folio | AD7: MonedaDR | AE7: Equivalencia | AF7: MetodoDePagoDR | AG7: NumParcialidad | AH7: ImpSaldoAnt | AI7: ImpPagado | AJ7: ImpSaldoInsoluto | AK7: Objeto de impuestos DR | AL7: Base para IEPS | AM7: Tipo factor | AN7: Tasa o cuota | AO7: Total IEPS trasladado del comprobante | AP7: Base para IVA | AQ7: Tipo factor | AR7: Tasa o cuota | AS7: Total IVA trasladado del comprobante | AT7: Tasa o cuota | AU7: Retención de ISR | AV7: Tasa o cuota | AW7: Retención IVA | AX7: Tasa o cuota | AY7: Retención IEPS | AZ7: USO DEL CFDI | BA7: BASE DE ISR (VERIFIQUE LOS DATOS) | BB7: IVA con base en el CFDI | BC7: Ruta del archivo | BD7: Fecha de cancelación | BE7: Folio fiscal | BF7: Tipo de relación | BG7: UUI relacionado

Sheet CFDIR (hidden)
K4: IR AL MENÚ
K6: Emisor | N6: Receptor | AB6: Trasladados | AL6: Retenciones | AR6: Aerolíneas
B7: Fecha | C7: Tipo de comprobante | D7: Serie y folio | E7: Exportación | F7: Moneda | G7: Tipo de cambio | H7: Método de pago | I7: Forma de pago | J7: Folio fiscal | K7: RFC | L7: NOMBRE | M7: Régimen fiscal | N7: RFC | O7: Nombre | P7: Régimen fiscal | Q7: Domicilio fiscal | R7: USO del CFDI | S7: Clave producto | T7: Unidad de medida | U7: Cantidad | V7: Valor unitario | W7: Descripción | X7: Importe | Y7: Descuento | Z7: Importe - descuento | AA7: Objeto de impuesto | AB7: Base IEPS | AC7: Tasa o cuota | AD7: IEPS | AE7: Base no objeto | AF7: Base IVA Exento | AG7: Base IVA al 0% | AH7: Base IVA 8% | AI7: Base IVA al 16% | AJ7: IVA al 8% | AK7: IVA al 16% | AL7: Tasa | AM7: RISR | AN7: Tasa | AO7: RIVA | AP7: Tasa o cuota | AQ7: RIEPS | AR7: Impuesto sobre hospedaje | AS7: TUA | AT7: Otros cargos | AU7: Total del comprobante | AV7: Pedimento | AW7: No. de la cuenta predial | AX7: Tipo de relación | AY7: UUI relacionado | AZ7: Fecha de cancelación | BA7: Total en el tipo de moneda cuando es diferente a MXN | BB7: Ruta del archivo
BB8: C:\AMS\RESPALDO HP\ESCRITORIO\VINICOLA RETORNO\2025\XML\RECIBIDOS\ENERO\BD8A551C-AB05-45D8-A71E-51EDA98D6B2F.xml
BB9: C:\AMS\RESPALDO HP\ESCRITORIO\SANTIAGO\2025\XML\RECIBIDOS\FEBRERO\A09C7CEE-C300-551E-9EA4-58F301DA7223.xml
BB10: C:\AMS\RESPALDO HP\ESCRITORIO\SANTIAGO\2025\XML\RECIBIDOS\FEBRERO\0DCAD37D-3549-F644-A84E-5C78D5BF0D4B.xml
BB11: C:\AMS\RESPALDO HP\ESCRITORIO\VINICOLA RETORNO\2025\XML\RECIBIDOS\ENERO\8C5F8D00-03BA-4224-A4A9-0C56466D5F63.xml
BB12: C:\AMS\RESPALDO HP\ESCRITORIO\VINICOLA RETORNO\2025\XML\RECIBIDOS\ENERO\E66530E9-B9BE-46F5-81E2-7D246E39B856.xml
BB13: C:\AMS\RESPALDO HP\ESCRITORIO\VINICOLA RETORNO\2025\XML\RECIBIDOS\ENERO\4A4B3C00-9C51-417F-A2EA-B6832269C879.xml
BB14: C:\AMS\RESPALDO HP\ESCRITORIO\SANTIAGO\2025\XML\RECIBIDOS\ENERO\AAA153BA-F507-4533-B205-C1CF1C5A85A0.xml
BB15: C:\AMS\RESPALDO HP\ESCRITORIO\SANTIAGO\2025\XML\RECIBIDOS\FEBRERO\DB99395F-F81B-7544-9A74-E04B57F674FD.xml
BB16: C:\AMS\RESPALDO HP\ESCRITORIO\SANTIAGO\2025\XML\RECIBIDOS\FEBRERO\D2469762-00E4-56C9-8DE7-65EB192F5A72.xml
BB17: C:\AMS\RESPALDO HP\ESCRITORIO\SANTIAGO\2025\XML\RECIBIDOS\FEBRERO\1F318477-4D2D-532C-8802-D9798B54DC78.xml
BB18: C:\AMS\RESPALDO HP\ESCRITORIO\SANTIAGO\2025\XML\RECIBIDOS\FEBRERO\78FFD409-82B0-57C9-AF0A-C88BFED8C422.xml
BB19: C:\AMS\RESPALDO HP\ESCRITORIO\VINICOLA RETORNO\2025\XML\RECIBIDOS\ENERO\4743D393-F7B2-47B5-BF23-ACB9E8840663.xml
BB20: C:\AMS\RESPALDO HP\ESCRITORIO\VINICOLA RETORNO\2025\XML\RECIBIDOS\ENERO\65152B97-B34B-4112-A1D0-3F80B0A1B85A.xml
BB21: C:\AMS\RESPALDO HP\ESCRITORIO\VINICOLA RETORNO\2025\XML\RECIBIDOS\ENERO\6AA92B99-0FE1-4B8E-9E9F-9E01C6D8476F.xml
BB22: C:\AMS\RESPALDO HP\ESCRITORIO\VINICOLA RETORNO\2025\XML\RECIBIDOS\ENERO\94E0267C-CA65-11EF-B2F1-656A8EB206E6.xml
BB23: C:\AMS\RESPALDO HP\ESCRITORIO\VINICOLA RETORNO\2025\XML\RECIBIDOS\ENERO\4BBD8786-3155-47E0-B459-DFA7DEE0FDED.xml
BB24: C:\AMS\RESPALDO HP\ESCRITORIO\VINICOLA RETORNO\2025\XML\RECIBIDOS\ENERO\59809393-04DF-4541-8A33-E2AB1DFAB9F6.xml
BB25: C:\AMS\RESPALDO HP\ESCRITORIO\SANTIAGO\2025\XML\RECIBIDOS\ENERO\AAA153BA-F507-4533-B205-C1CF1C5A85A0.xml
BB26: C:\AMS\RESPALDO HP\ESCRITORIO\VINICOLA RETORNO\2025\XML\RECIBIDOS\ENERO\9BBB5D76-9EDA-44F1-B109-A2070F442626.xml
BB27: C:\AMS\RESPALDO HP\ESCRITORIO\VINICOLA RETORNO\2025\XML\RECIBIDOS\ENERO\CCFD5B6E-AF13-4AEE-9510-5C53EE7B3036.xml
BB28: C:\AMS\RESPALDO HP\ESCRITORIO\VINICOLA RETORNO\2025\XML\RECIBIDOS\ENERO\65BD5602-EBC8-45C0-9B77-575D64A0A617.xml
BB29: C:\AMS\RESPALDO HP\ESCRITORIO\VINICOLA RETORNO\2025\XML\RECIBIDOS\ENERO\C8D843BF-37A3-1349-8AF1-D64223135C3A.xml
BB30: C:\AMS\RESPALDO HP\ESCRITORIO\VINICOLA RETORNO\2025\XML\RECIBIDOS\ENERO\5F17A035-2611-43DB-A590-8FDC5767595F.xml
BB31: C:\AMS\RESPALDO HP\ESCRITORIO\VINICOLA RETORNO\2025\XML\RECIBIDOS\ENERO\64A1DE58-A371-49D7-99BC-253890C611A9.xml
BB32: C:\Users\Usuario\Downloads\XML\RECIBIDAS\B3B7F857-9183-45D6-A45E-71171DA9EC6D.xml
BB33: C:\AMS\RESPALDO HP\ESCRITORIO\VINICOLA RETORNO\2025\XML\RECIBIDOS\ENERO\9BBB5D76-9EDA-44F1-B109-A2070F442626.xml
BB34: C:\AMS\RESPALDO HP\ESCRITORIO\VINICOLA RETORNO\2025\XML\RECIBIDOS\ENERO\45B58A9B-953B-43A9-AEEB-B5C3646F17A2.xml
BB35: C:\Users\Usuario\Downloads\XML\RECIBIDAS\D0072C8A-E575-11EF-94EC-00155D012007.xml
BB36: C:\AMS\RESPALDO HP\ESCRITORIO\VINICOLA RETORNO\2025\XML\RECIBIDOS\ENERO\F187BD13-1E39-394E-9C95-C77E280AE142.xml
BB37: C:\AMS\RESPALDO HP\ESCRITORIO\VINICOLA RETORNO\2025\XML\RECIBIDOS\MARZO\7D868824-F2F4-43A6-A47E-58932EFB7EA1.xml
BB38: C:\AMS\RESPALDO HP\ESCRITORIO\VINICOLA RETORNO\2025\XML\RECIBIDOS\MARZO\E525CBBF-1A35-4D8E-8883-F97B42F9E16B.xml
BB39: C:\AMS\RESPALDO HP\ESCRITORIO\SANTIAGO\2025\XML\RECIBIDOS\FEBRERO\AB1FF838-840A-4A02-A335-B5F2AA111E89.xml
BB40: C:\Users\Usuario\Downloads\XML\RECIBIDAS\6A4F107F-D0B4-490E-8EDD-4BC5DF0190CC.xml
BB41: C:\AMS\RESPALDO HP\ESCRITORIO\VINICOLA RETORNO\2025\XML\RECIBIDOS\FEBRERO\21B4C5AB-4C17-4241-9FDB-3081113D0A35.xml
BB42: C:\Users\Usuario\Downloads\XML\RECIBIDAS\77EBC842-4956-4E74-93D6-D9EFF3905685.xml
BB43: C:\AMS\RESPALDO HP\ESCRITORIO\SANTIAGO\2025\XML\RECIBIDOS\FEBRERO\9AD56DEC-4617-4E30-8598-34F1C49A2777.xml
BB44: C:\AMS\RESPALDO HP\ESCRITORIO\VINICOLA RETORNO\2025\XML\RECIBIDOS\FEBRERO\56B3469E-6B1D-4DEC-BDD9-0113673F5DC9.xml
BB45: C:\Users\Usuario\Downloads\XML\E3BF55A3-3FDD-4566-B5A0-AFBBCF2A55C0.xml
BB46: C:\Users\Usuario\Downloads\XML\EDF5EF54-E36E-11EF-B5E6-B76C0D4E045D.xml
BB47: C:\Users\Usuario\Downloads\XML\EFC1E09E-F9FE-430E-AF7F-81369E0E8526.xml
BB48: C:\AMS\RESPALDO HP\ESCRITORIO\SANTIAGO\2025\XML\RECIBIDOS\ENERO\75613117-65E0-4243-AD59-D1B52935680B.xml
BB49: C:\Users\Usuario\Downloads\XML\RECIBIDAS\D42D6067-2146-4B81-8FE4-04F7F2202386.xml
BB50: C:\AMS\RESPALDO HP\ESCRITORIO\VINICOLA RETORNO\2025\XML\RECIBIDOS\ENERO\89FE60AB-87A6-5348-8ED5-4F38D275EC70.xml
BB51: C:\AMS\RESPALDO HP\ESCRITORIO\SANTIAGO\2025\XML\RECIBIDOS\ENERO\2C091773-28A2-48FE-8BF1-3D29C8A0A5AC.xml
BB52: C:\AMS\RESPALDO HP\ESCRITORIO\VINICOLA RETORNO\2025\XML\RECIBIDOS\ENERO\9C62B886-C362-2841-9464-8D3062D987EE.xml
BB53: C:\AMS\RESPALDO HP\ESCRITORIO\VINICOLA RETORNO\2025\XML\RECIBIDOS\ENERO\EDB8D6F8-F254-4423-9E4C-691EB3464976.xml
BB54: C:\AMS\RESPALDO HP\ESCRITORIO\VINICOLA RETORNO\2025\XML\RECIBIDOS\FEBRERO\A2749A65-25AE-4DB7-A5EB-7E89EF014BF1.xml
BB55: C:\AMS\RESPALDO HP\ESCRITORIO\VINICOLA RETORNO\2025\XML\RECIBIDOS\MARZO\58DA1E15-6E6C-4979-9861-65C6C8C42450.xml
BB56: C:\AMS\RESPALDO HP\ESCRITORIO\VINICOLA RETORNO\2025\XML\RECIBIDOS\MARZO\B3AC4C8E-F92E-11EF-B741-754B2BB36B28.xml
BB57: C:\AMS\RESPALDO HP\ESCRITORIO\VINICOLA RETORNO\2025\XML\RECIBIDOS\ENERO\34EF2B4A-2B93-4BE7-AFBC-960598BA5993.xml
BB58: C:\AMS\RESPALDO HP\ESCRITORIO\VINICOLA RETORNO\2025\XML\RECIBIDOS\ENERO\4BBD8786-3155-47E0-B459-DFA7DEE0FDED.xml
BB59: C:\AMS\RESPALDO HP\ESCRITORIO\VINICOLA RETORNO\2025\XML\RECIBIDOS\ENERO\59809393-04DF-4541-8A33-E2AB1DFAB9F6.xml
BB60: C:\AMS\RESPALDO HP\ESCRITORIO\VINICOLA RETORNO\2025\XML\RECIBIDOS\ENERO\DFE22455-9B4C-4500-9CA9-DFF51E8B3686.xml
BB61: C:\AMS\RESPALDO HP\ESCRITORIO\VINICOLA RETORNO\2025\XML\RECIBIDOS\MARZO\B2201B4A-785B-4655-80DA-F4E36A2C1B55.xml
BB62: C:\AMS\RESPALDO HP\ESCRITORIO\VINICOLA RETORNO\2025\XML\RECIBIDOS\ENERO\6A16E1DD-9C69-485B-A672-4EEFDC426347.xml
BB63: C:\AMS\RESPALDO HP\ESCRITORIO\VINICOLA RETORNO\2025\XML\RECIBIDOS\ENERO\5DABF54A-E350-416F-AB29-93A02896AAFA.xml
BB64: C:\AMS\RESPALDO HP\ESCRITORIO\VINICOLA RETORNO\2025\XML\RECIBIDOS\ENERO\9671426F-B939-4B3C-AF55-50170BC0C6E6.xml
BB65: C:\AMS\RESPALDO HP\ESCRITORIO\VINICOLA RETORNO\2025\XML\RECIBIDOS\ENERO\CB30DA9F-4B46-43E8-85AA-DB5C8450689C.xml
BB66: C:\AMS\RESPALDO HP\ESCRITORIO\VINICOLA RETORNO\2025\XML\RECIBIDOS\ENERO\660FB05F-F7F1-4606-B1B0-79E03D688FB8.xml
BB67: C:\AMS\RESPALDO HP\ESCRITORIO\VINICOLA RETORNO\2025\XML\RECIBIDOS\ENERO\CE64E185-51BD-4262-B52C-828577931608.xml
BB68: C:\AMS\RESPALDO HP\ESCRITORIO\VINICOLA RETORNO\2025\XML\RECIBIDOS\ENERO\0745AC7A-476C-4F4B-858A-09A76D1DF783.xml
BB69: C:\AMS\RESPALDO HP\ESCRITORIO\VINICOLA RETORNO\2025\XML\RECIBIDOS\ENERO\515E4DA9-9475-4BFF-824B-B6C8D86C5AE6.xml
BB70: C:\AMS\RESPALDO HP\ESCRITORIO\VINICOLA RETORNO\2025\XML\RECIBIDOS\ENERO\02EC72E3-09B4-4EE5-8734-76EC44FC6618.xml
BB71: C:\AMS\RESPALDO HP\ESCRITORIO\VINICOLA RETORNO\2025\XML\RECIBIDOS\ENERO\F0A4DB85-8C9A-441D-8F52-6E6A3CA40CE8.xml
BB72: C:\AMS\RESPALDO HP\ESCRITORIO\VINICOLA RETORNO\2025\XML\RECIBIDOS\MARZO\E3118121-897D-4706-A44B-A13C99FCEC44.xml
BB73: C:\AMS\RESPALDO HP\ESCRITORIO\VINICOLA RETORNO\2025\XML\RECIBIDOS\ENERO\AD4047B4-666E-48C1-999E-0021E45E888D.xml
BB74: C:\AMS\RESPALDO HP\ESCRITORIO\VINICOLA RETORNO\2025\XML\RECIBIDOS\ENERO\738D0420-EFFA-4D9D-810E-C1740D6CCADC.xml
BB75: C:\AMS\RESPALDO HP\ESCRITORIO\VINICOLA RETORNO\2025\XML\RECIBIDOS\ENERO\0ABFF88A-3784-4428-9ED4-12857F4078D3.xml
BB76: C:\AMS\RESPALDO HP\ESCRITORIO\VINICOLA RETORNO\2025\XML\RECIBIDOS\ENERO\DF7D5CE8-DA26-49FF-BF96-6D05B1ABBCDA.xml
BB77: C:\AMS\RESPALDO HP\ESCRITORIO\VINICOLA RETORNO\2025\XML\RECIBIDOS\FEBRERO\0A1511B0-DFD8-48DC-93F0-A18515EB6BBD.xml
BB78: C:\AMS\RESPALDO HP\ESCRITORIO\SANTIAGO\2025\XML\RECIBIDOS\FEBRERO\9AD56DEC-4617-4E30-8598-34F1C49A2777.xml
BB79: C:\AMS\RESPALDO HP\ESCRITORIO\SANTIAGO\2025\XML\RECIBIDOS\FEBRERO\DCC02FC7-755F-5457-83D4-7517BF52DF55.xml
BB80: C:\AMS\RESPALDO HP\ESCRITORIO\SANTIAGO\2025\XML\RECIBIDOS\FEBRERO\2A947840-FE3A-4685-80CC-7FD2B24E9FEA.xml
BB81: C:\AMS\RESPALDO HP\ESCRITORIO\SANTIAGO\2025\XML\RECIBIDOS\FEBRERO\EA97E342-87C3-4B85-87CA-5F3973422A80.xml
BB82: C:\AMS\RESPALDO HP\ESCRITORIO\SANTIAGO\2025\XML\RECIBIDOS\FEBRERO\1E7BD51B-C03E-4CD2-A01E-0767AD32A436.xml
BB83: C:\AMS\RESPALDO HP\ESCRITORIO\SANTIAGO\2025\XML\RECIBIDOS\FEBRERO\8C2E640C-E9FE-11EF-97FE-00155D014009.xml
BB84: C:\AMS\RESPALDO HP\ESCRITORIO\SANTIAGO\2025\XML\RECIBIDOS\FEBRERO\3A38CE88-2FCB-449F-96F7-27EBF67E3D96.xml
BB85: C:\AMS\RESPALDO HP\ESCRITORIO\SANTIAGO\2025\XML\RECIBIDOS\FEBRERO\7710D98B-79A7-419B-B5AE-909DB0E3E715.xml
BB86: C:\AMS\RESPALDO HP\ESCRITORIO\SANTIAGO\2025\XML\RECIBIDOS\FEBRERO\53FD4252-5252-48B4-BF18-F235905FE4E9.xml
BB87: C:\AMS\RESPALDO HP\ESCRITORIO\SANTIAGO\2025\XML\RECIBIDOS\FEBRERO\EDE074E8-F31F-4F0B-BDCF-3E045E0F8ED8.xml
BB88: C:\AMS\RESPALDO HP\ESCRITORIO\SANTIAGO\2025\XML\RECIBIDOS\FEBRERO\99E2671D-E731-11EF-94EC-00155D012007.xml
BB89: C:\AMS\RESPALDO HP\ESCRITORIO\SANTIAGO\2025\XML\RECIBIDOS\FEBRERO\17195021-97EA-5769-82ED-F47477D5A5C6.xml
BB90: C:\AMS\RESPALDO HP\ESCRITORIO\SANTIAGO\2025\XML\RECIBIDOS\FEBRERO\6F274808-F2CC-11EF-BB44-00155D014009.xml
BB91: C:\AMS\RESPALDO HP\ESCRITORIO\SANTIAGO\2025\XML\RECIBIDOS\FEBRERO\3D4B6085-F46C-11EF-BA91-00155D014009.xml
BB92: C:\AMS\RESPALDO HP\ESCRITORIO\SANTIAGO\2025\XML\RECIBIDOS\FEBRERO\E1961603-8A8D-4571-82ED-7D3851CD2F5B.xml
BB93: C:\Users\Usuario\Downloads\XML\37C7DE48-3169-4B25-84AF-777122FE4E47.xml
BB94: C:\Users\Usuario\Downloads\XML\3CEC1083-17E8-472F-9CB1-99C04975B74C.xml
BB95: C:\AMS\RESPALDO HP\ESCRITORIO\SANTIAGO\2025\XML\RECIBIDOS\FEBRERO\7E78B4EF-6756-462F-A562-E141958C532B.xml
BB96: C:\AMS\RESPALDO HP\ESCRITORIO\VINICOLA RETORNO\2025\XML\RECIBIDOS\MARZO\486CF5E6-1486-4490-953B-E9543EBF724B.xml
BB97: C:\AMS\RESPALDO HP\ESCRITORIO\VINICOLA RETORNO\2025\XML\RECIBIDOS\ENERO\45B58A9B-953B-43A9-AEEB-B5C3646F17A2.xml
BB99: C:\AMS\RESPALDO HP\ESCRITORIO\VINICOLA RETORNO\2025\XML\RECIBIDOS\MARZO\7AB9F634-623F-47FC-B605-CA3150D71871.xml
BB100: C:\AMS\RESPALDO HP\ESCRITORIO\VINICOLA RETORNO\2025\XML\RECIBIDOS\ENERO\716593F7-189F-4643-9938-22F7AABF28A4.xml
BB101: C:\AMS\RESPALDO HP\ESCRITORIO\VINICOLA RETORNO\2025\XML\RECIBIDOS\ENERO\13D8A9BD-F059-4A24-8323-071774B288FB.xml
BB102: C:\AMS\RESPALDO HP\ESCRITORIO\VINICOLA RETORNO\2025\XML\RECIBIDOS\ENERO\3C364C65-C3F9-425C-9D12-6EB3B0D7D4F6.xml
BB103: C:\Users\Usuario\Downloads\XML\RECIBIDAS PF\607F2E98-D81F-58DF-B55B-4B75F574DBEF.xml
BB104: C:\AMS\RESPALDO HP\ESCRITORIO\VINICOLA RETORNO\2025\XML\RECIBIDOS\ENERO\6AA4EC72-7DEF-4765-8D0D-49221E9EAE04.xml
BB105: C:\AMS\RESPALDO HP\ESCRITORIO\VINICOLA RETORNO\2025\XML\RECIBIDOS\ENERO\1B06DF26-87CB-4700-A2F6-E24EB264E925.xml
BB106: C:\AMS\RESPALDO HP\ESCRITORIO\SANTIAGO\2025\XML\RECIBIDOS\ENERO\D3A7FE37-61AD-53E1-8A67-277CD190C5E7.xml
BB107: C:\AMS\RESPALDO HP\ESCRITORIO\VINICOLA RETORNO\2025\XML\RECIBIDOS\ENERO\69CFD1A3-BA75-4C82-ACBC-B119F5900B3B.xml
BB108: C:\AMS\RESPALDO HP\ESCRITORIO\VINICOLA RETORNO\2025\XML\RECIBIDOS\ENERO\274451D3-973B-444F-9989-CE1E1C031070.xml
BB109: C:\AMS\RESPALDO HP\ESCRITORIO\VINICOLA RETORNO\2025\XML\RECIBIDOS\ENERO\64A1DE58-A371-49D7-99BC-253890C611A9.xml
BB110: C:\AMS\RESPALDO HP\ESCRITORIO\VINICOLA RETORNO\2025\XML\RECIBIDOS\ENERO\CCFD5B6E-AF13-4AEE-9510-5C53EE7B3036.xml
BB111: C:\AMS\RESPALDO HP\ESCRITORIO\SANTIAGO\2025\XML\RECIBIDOS\ENERO\75613117-65E0-4243-AD59-D1B52935680B.xml
BB112: C:\AMS\RESPALDO HP\ESCRITORIO\VINICOLA RETORNO\2025\XML\RECIBIDOS\FEBRERO\F9B2B0A4-D8BB-4D66-8FA3-93EC5286843D.xml
BB113: C:\AMS\RESPALDO HP\ESCRITORIO\SANTIAGO\2025\XML\RECIBIDOS\ENERO\DFC5AFD0-D915-11EF-A83D-00155D012007.xml
BB114: C:\AMS\RESPALDO HP\ESCRITORIO\SANTIAGO\2025\XML\RECIBIDOS\ENERO\2C091773-28A2-48FE-8BF1-3D29C8A0A5AC.xml
BB115: C:\AMS\RESPALDO HP\ESCRITORIO\VINICOLA RETORNO\2025\XML\RECIBIDOS\ENERO\00C06E3D-F822-4193-B302-D06156B360D3.xml
BB116: C:\AMS\RESPALDO HP\ESCRITORIO\VINICOLA RETORNO\2025\XML\RECIBIDOS\ENERO\BD8A551C-AB05-45D8-A71E-51EDA98D6B2F.xml
BB117: C:\AMS\RESPALDO HP\ESCRITORIO\SANTIAGO\2025\XML\RECIBIDOS\ENERO\3C320DE1-B470-47C3-B151-BFDC4C741485.xml
BB118: C:\AMS\RESPALDO HP\ESCRITORIO\VINICOLA RETORNO\2025\XML\RECIBIDOS\ENERO\464B502C-DDB3-11EF-9937-2F330F1C2E82.xml
BB119: C:\AMS\RESPALDO HP\ESCRITORIO\VINICOLA RETORNO\2025\XML\RECIBIDOS\ENERO\A827E048-3824-4B3F-8D07-ABD15BD0C65F.xml
BB120: C:\AMS\RESPALDO HP\ESCRITORIO\VINICOLA RETORNO\2025\XML\RECIBIDOS\ENERO\704C7DCF-D0D2-4C4F-B206-59EC8A4467F6.xml
BB121: C:\AMS\RESPALDO HP\ESCRITORIO\VINICOLA RETORNO\2025\XML\RECIBIDOS\ENERO\9955094B-AAA2-47B1-84CC-F489C9F2F636.xml
BB122: C:\AMS\RESPALDO HP\ESCRITORIO\VINICOLA RETORNO\2025\XML\RECIBIDOS\ENERO\8C5F8D00-03BA-4224-A4A9-0C56466D5F63.xml
BB123: C:\AMS\RESPALDO HP\ESCRITORIO\SANTIAGO\2025\XML\RECIBIDOS\ENERO\9EEEA501-78E7-41CD-A369-7C8F2CF7E982.xml
BB124: C:\AMS\RESPALDO HP\ESCRITORIO\VINICOLA RETORNO\2025\XML\RECIBIDOS\ENERO\E66530E9-B9BE-46F5-81E2-7D246E39B856.xml
BB125: C:\AMS\RESPALDO HP\ESCRITORIO\VINICOLA RETORNO\2025\XML\RECIBIDOS\ENERO\4A4B3C00-9C51-417F-A2EA-B6832269C879.xml
BB126: C:\AMS\RESPALDO HP\ESCRITORIO\VINICOLA RETORNO\2025\XML\RECIBIDOS\ENERO\15E584F3-4118-4128-88E6-373D0534BBE2.xml
BB127: C:\AMS\RESPALDO HP\ESCRITORIO\VINICOLA RETORNO\2025\XML\RECIBIDOS\FEBRERO\0263998D-0E40-4E66-BD23-6BD37A441CFB.xml
BB128: C:\Users\Usuario\Downloads\XML\RECIBIDAS\8942F4D4-243E-41FF-B0FA-2C8BD4C4B5D6.xml
BB129: C:\AMS\RESPALDO HP\ESCRITORIO\VINICOLA RETORNO\2025\XML\RECIBIDOS\ENERO\AD4047B4-666E-48C1-999E-0021E45E888D.xml
BB130: C:\AMS\RESPALDO HP\ESCRITORIO\VINICOLA RETORNO\2025\XML\RECIBIDOS\ENERO\738D0420-EFFA-4D9D-810E-C1740D6CCADC.xml
BB131: C:\AMS\RESPALDO HP\ESCRITORIO\VINICOLA RETORNO\2025\XML\RECIBIDOS\MARZO\31B3E056-4798-4C34-92BF-381125DA613E.xml
BB132: C:\AMS\RESPALDO HP\ESCRITORIO\VINICOLA RETORNO\2025\XML\RECIBIDOS\FEBRERO\7300E0BE-A790-4E29-B2CC-64BBE8CD3CB2.xml
BB133: C:\AMS\RESPALDO HP\ESCRITORIO\VINICOLA RETORNO\2025\XML\RECIBIDOS\MARZO\2DBEF3FA-FAC1-40CA-A5F9-5A7CD285E162.xml
BB134: C:\AMS\RESPALDO HP\ESCRITORIO\VINICOLA RETORNO\2025\XML\RECIBIDOS\ENERO\65152B97-B34B-4112-A1D0-3F80B0A1B85A.xml
BB135: C:\AMS\RESPALDO HP\ESCRITORIO\VINICOLA RETORNO\2025\XML\RECIBIDOS\FEBRERO\A207E751-C682-498F-ABC5-3939EC809EA7.xml
BB136: C:\AMS\RESPALDO HP\ESCRITORIO\VINICOLA RETORNO\2025\XML\RECIBIDOS\FEBRERO\514DC76D-6135-4EC1-ACD3-4687188EAE9C.xml
BB137: C:\AMS\RESPALDO HP\ESCRITORIO\VINICOLA RETORNO\2025\XML\RECIBIDOS\FEBRERO\17232B42-3716-4EF6-AD1B-121A939A9082.xml
BB138: C:\AMS\RESPALDO HP\ESCRITORIO\VINICOLA RETORNO\2025\XML\RECIBIDOS\FEBRERO\990B4F8B-037D-48A4-B703-83C31B3CB874.xml
BB139: C:\AMS\RESPALDO HP\ESCRITORIO\VINICOLA RETORNO\2025\XML\RECIBIDOS\FEBRERO\6E442D77-ECDF-4F68-B218-9281D06BC79A.xml
BB140: C:\AMS\RESPALDO HP\ESCRITORIO\VINICOLA RETORNO\2025\XML\RECIBIDOS\FEBRERO\EDF5EF54-E36E-11EF-B5E6-B76C0D4E045D.xml
BB141: C:\AMS\RESPALDO HP\ESCRITORIO\SANTIAGO\2025\XML\RECIBIDOS\FEBRERO\9AD56DEC-4617-4E30-8598-34F1C49A2777.xml
BB142: C:\AMS\RESPALDO HP\ESCRITORIO\VINICOLA RETORNO\2025\XML\RECIBIDOS\FEBRERO\56B3469E-6B1D-4DEC-BDD9-0113673F5DC9.xml
BB143: C:\AMS\RESPALDO HP\ESCRITORIO\VINICOLA RETORNO\2025\XML\RECIBIDOS\FEBRERO\F9B2B0A4-D8BB-4D66-8FA3-93EC5286843D.xml
BB144: C:\AMS\RESPALDO HP\ESCRITORIO\VINICOLA RETORNO\2025\XML\RECIBIDOS\FEBRERO\050F8417-838B-4E64-9A8B-C2E3A9AB85CE.xml
BB145: C:\AMS\RESPALDO HP\ESCRITORIO\VINICOLA RETORNO\2025\XML\RECIBIDOS\FEBRERO\BE9858A2-7C1C-4377-B5D1-050FB2ACA93A.xml
BB146: C:\AMS\RESPALDO HP\ESCRITORIO\VINICOLA RETORNO\2025\XML\RECIBIDOS\FEBRERO\3CEC1083-17E8-472F-9CB1-99C04975B74C.xml
BB147: C:\AMS\RESPALDO HP\ESCRITORIO\VINICOLA RETORNO\2025\XML\RECIBIDOS\MARZO\937E03C9-B0B8-4210-818C-C5EF83517972.xml
BB148: C:\AMS\RESPALDO HP\ESCRITORIO\VINICOLA RETORNO\2025\XML\RECIBIDOS\MARZO\2433682B-902A-4752-BDAB-FFA234B025B8.xml
BB149: C:\AMS\RESPALDO HP\ESCRITORIO\VINICOLA RETORNO\2025\XML\RECIBIDOS\MARZO\580E558F-3C56-4AD3-B33E-CD8BCC4A1D10.xml
BB150: C:\AMS\RESPALDO HP\ESCRITORIO\VINICOLA RETORNO\2025\XML\RECIBIDOS\FEBRERO\8C3B92C8-D9F0-4866-9C74-369828499792.xml
BB151: C:\AMS\RESPALDO HP\ESCRITORIO\VINICOLA RETORNO\2025\XML\RECIBIDOS\FEBRERO\902B8EA6-32DC-4C4D-B73D-F3957C079F91.xml
BB152: C:\AMS\RESPALDO HP\ESCRITORIO\VINICOLA RETORNO\2025\XML\RECIBIDOS\FEBRERO\A2749A65-25AE-4DB7-A5EB-7E89EF014BF1.xml
BB153: C:\AMS\RESPALDO HP\ESCRITORIO\VINICOLA RETORNO\2025\XML\RECIBIDOS\FEBRERO\EFC1E09E-F9FE-430E-AF7F-81369E0E8526.xml
BB154: C:\AMS\RESPALDO HP\ESCRITORIO\VINICOLA RETORNO\2025\XML\RECIBIDOS\FEBRERO\C7C86D4A-FDC5-494A-A359-FCAB862DAEBF.xml
BB155: C:\AMS\RESPALDO HP\ESCRITORIO\VINICOLA RETORNO\2025\XML\RECIBIDOS\FEBRERO\F4B33FF6-4A08-4988-981D-E582C580CF11.xml
BB156: C:\Users\Usuario\Downloads\XML\7300E0BE-A790-4E29-B2CC-64BBE8CD3CB2.xml
BB157: C:\AMS\RESPALDO HP\ESCRITORIO\VINICOLA RETORNO\2025\XML\RECIBIDOS\FEBRERO\1FB81ADC-C4FD-421F-B304-7C39E1DA38D1.xml
BB158: C:\Users\Usuario\Downloads\XML\RECIBIDAS\67CBE465-B04C-47A2-86CC-67CF2B0F4AC1.xml
BB159: C:\AMS\RESPALDO HP\ESCRITORIO\VINICOLA RETORNO\2025\XML\RECIBIDOS\FEBRERO\29BF298E-23AC-4DE7-A401-D2C2F0A5A082.xml
BB160: C:\AMS\RESPALDO HP\ESCRITORIO\VINICOLA RETORNO\2025\XML\RECIBIDOS\MARZO\98AD10F2-BA4D-4A4D-97BA-C06924A3BCDC.xml
BB161: C:\AMS\RESPALDO HP\ESCRITORIO\VINICOLA RETORNO\2025\XML\RECIBIDOS\FEBRERO\21B4C5AB-4C17-4241-9FDB-3081113D0A35.xml
BB162: C:\AMS\RESPALDO HP\ESCRITORIO\VINICOLA RETORNO\2025\XML\RECIBIDOS\FEBRERO\56B3469E-6B1D-4DEC-BDD9-0113673F5DC9.xml
BB163: C:\AMS\RESPALDO HP\ESCRITORIO\VINICOLA RETORNO\2025\XML\RECIBIDOS\MARZO\65EA80CA-F502-4BF2-8339-2A2A1D99EAF4.xml
BB164: C:\AMS\RESPALDO HP\ESCRITORIO\VINICOLA RETORNO\2025\XML\RECIBIDOS\MARZO\9E4C6D79-58A0-4ADC-8498-BA023F81ABCF.xml
BB165: C:\AMS\RESPALDO HP\ESCRITORIO\VINICOLA RETORNO\2025\XML\RECIBIDOS\MARZO\C4D04A1F-4482-4884-B47E-259E08169134.xml
BB166: C:\AMS\RESPALDO HP\ESCRITORIO\VINICOLA RETORNO\2025\XML\RECIBIDOS\FEBRERO\F4B33FF6-4A08-4988-981D-E582C580CF11.xml
BB167: C:\AMS\RESPALDO HP\ESCRITORIO\VINICOLA RETORNO\2025\XML\RECIBIDOS\FEBRERO\1FB81ADC-C4FD-421F-B304-7C39E1DA38D1.xml
BB168: C:\AMS\RESPALDO HP\ESCRITORIO\VINICOLA RETORNO\2025\XML\RECIBIDOS\FEBRERO\31AD3F61-636C-4DFE-B6DC-0F29B5D98C8C.xml
BB169: C:\AMS\RESPALDO HP\ESCRITORIO\VINICOLA RETORNO\2025\XML\RECIBIDOS\ENERO\59809393-04DF-4541-8A33-E2AB1DFAB9F6.xml
BB170: C:\AMS\RESPALDO HP\ESCRITORIO\VINICOLA RETORNO\2025\XML\RECIBIDOS\ENERO\DFE22455-9B4C-4500-9CA9-DFF51E8B3686.xml
BB171: C:\AMS\RESPALDO HP\ESCRITORIO\VINICOLA RETORNO\2025\XML\RECIBIDOS\ENERO\6A16E1DD-9C69-485B-A672-4EEFDC426347.xml
BB172: C:\AMS\RESPALDO HP\ESCRITORIO\VINICOLA RETORNO\2025\XML\RECIBIDOS\FEBRERO\0A1511B0-DFD8-48DC-93F0-A18515EB6BBD.xml
BB173: C:\AMS\RESPALDO HP\ESCRITORIO\VINICOLA RETORNO\2025\XML\RECIBIDOS\FEBRERO\FB88E9B5-F39F-4043-B12D-F71AA5C56E7E.xml
BB174: C:\AMS\RESPALDO HP\ESCRITORIO\SANTIAGO\2025\XML\RECIBIDOS\FEBRERO\DCC02FC7-755F-5457-83D4-7517BF52DF55.xml
BB175: C:\AMS\RESPALDO HP\ESCRITORIO\VINICOLA RETORNO\2025\XML\RECIBIDOS\FEBRERO\5C33ED3E-4580-4AD4-8C3E-EA988A212DEF.xml
BB176: C:\AMS\RESPALDO HP\ESCRITORIO\VINICOLA RETORNO\2025\XML\RECIBIDOS\FEBRERO\B4C065F3-71E1-459D-9B2B-731F149FC01F.xml
BB177: C:\AMS\RESPALDO HP\ESCRITORIO\VINICOLA RETORNO\2025\XML\RECIBIDOS\FEBRERO\6CC698EF-3B1A-47AA-BFBF-3F3043C0D044.xml
BB178: C:\AMS\RESPALDO HP\ESCRITORIO\VINICOLA RETORNO\2025\XML\RECIBIDOS\FEBRERO\7740C13A-E00E-9E46-B0C3-32BB65D2A2E7.xml
BB179: C:\AMS\RESPALDO HP\ESCRITORIO\VINICOLA RETORNO\2025\XML\RECIBIDOS\FEBRERO\4BFEFF5D-AC3E-444B-9FBE-77AEF29A7FB4.xml
BB180: C:\AMS\RESPALDO HP\ESCRITORIO\VINICOLA RETORNO\2025\XML\RECIBIDOS\MARZO\6C177AD2-F204-4400-A904-1279C39136AA.xml
BB181: C:\AMS\RESPALDO HP\ESCRITORIO\VINICOLA RETORNO\2025\XML\RECIBIDOS\MARZO\3FF13C1E-7AC8-475A-8762-AFD646C0DB30.xml
BB182: C:\AMS\RESPALDO HP\ESCRITORIO\VINICOLA RETORNO\2025\XML\RECIBIDOS\MARZO\3F3E943C-7590-47F6-8E59-FDA97F672E65.xml
BB183: C:\AMS\RESPALDO HP\ESCRITORIO\VINICOLA RETORNO\2025\XML\RECIBIDOS\MARZO\2CE31AC5-8C1F-4814-A342-83EDD6B54404.xml
BB184: C:\AMS\RESPALDO HP\ESCRITORIO\VINICOLA RETORNO\2025\XML\RECIBIDOS\MARZO\3641D912-AA39-4FF2-A7A1-A5EBC746BFBD.xml
BB185: C:\AMS\RESPALDO HP\ESCRITORIO\VINICOLA RETORNO\2025\XML\RECIBIDOS\FEBRERO\9A0CBDD5-02E0-4143-870C-09A595A7CA40.xml
BB186: C:\AMS\RESPALDO HP\ESCRITORIO\VINICOLA RETORNO\2025\XML\RECIBIDOS\FEBRERO\47A17D9D-CCAD-5E91-9774-50426D6DEDC5.xml
BB187: C:\AMS\RESPALDO HP\ESCRITORIO\VINICOLA RETORNO\2025\XML\RECIBIDOS\FEBRERO\10ED667A-A897-459D-86E6-D0D026EC7CCC.xml
BB188: C:\AMS\RESPALDO HP\ESCRITORIO\VINICOLA RETORNO\2025\XML\RECIBIDOS\FEBRERO\9477BB35-CD4B-4EE2-A0BB-2BFC2EF5B438.xml
BB189: C:\AMS\RESPALDO HP\ESCRITORIO\VINICOLA RETORNO\2025\XML\RECIBIDOS\FEBRERO\BCCF08FF-B663-459E-A523-F3BE077636B6.xml
BB190: C:\AMS\RESPALDO HP\ESCRITORIO\VINICOLA RETORNO\2025\XML\RECIBIDOS\FEBRERO\2311A0AD-F553-4CFA-ADA1-165918D20AAC.xml
BB191: C:\AMS\RESPALDO HP\ESCRITORIO\VINICOLA RETORNO\2025\XML\RECIBIDOS\FEBRERO\E3BF55A3-3FDD-4566-B5A0-AFBBCF2A55C0.xml
BB192: C:\AMS\RESPALDO HP\ESCRITORIO\VINICOLA RETORNO\2025\XML\RECIBIDOS\FEBRERO\37C7DE48-3169-4B25-84AF-777122FE4E47.xml
BB193: C:\AMS\RESPALDO HP\ESCRITORIO\VINICOLA RETORNO\2025\XML\RECIBIDOS\ENERO\9671426F-B939-4B3C-AF55-50170BC0C6E6.xml
BB194: C:\AMS\RESPALDO HP\ESCRITORIO\VINICOLA RETORNO\2025\XML\RECIBIDOS\FEBRERO\549695B9-C6B2-4C5E-935D-EB8D8B87EDBD.xml
BB195: C:\AMS\RESPALDO HP\ESCRITORIO\VINICOLA RETORNO\2025\XML\RECIBIDOS\FEBRERO\6F0C0C1B-6034-4D8B-B3CA-C53BD581610E.xml
BB196: C:\AMS\RESPALDO HP\ESCRITORIO\VINICOLA RETORNO\2025\XML\RECIBIDOS\MARZO\948C5834-D15E-470F-B409-02DDE7E50B58.xml
BB197: C:\AMS\RESPALDO HP\ESCRITORIO\VINICOLA RETORNO\2025\XML\RECIBIDOS\FEBRERO\1E7631CD-6861-4C30-BCBD-50705BDBB78F.xml
BB198: C:\AMS\RESPALDO HP\ESCRITORIO\VINICOLA RETORNO\2025\XML\RECIBIDOS\FEBRERO\04AAFF8F-87DF-45D0-8FE8-BFBBE84ECA65.xml
BB199: C:\AMS\RESPALDO HP\ESCRITORIO\VINICOLA RETORNO\2025\XML\RECIBIDOS\FEBRERO\DC6BD7F4-C48E-4A57-AC5B-E8E4AFE34AC8.xml
BB200: C:\AMS\RESPALDO HP\ESCRITORIO\VINICOLA RETORNO\2025\XML\RECIBIDOS\FEBRERO\00E39379-68D6-45C3-A05E-07E4856ABAFD.xml
BB201: C:\AMS\RESPALDO HP\ESCRITORIO\VINICOLA RETORNO\2025\XML\RECIBIDOS\FEBRERO\51AA63DB-E768-4667-A13E-10A427233E52.xml
BB202: C:\AMS\RESPALDO HP\ESCRITORIO\VINICOLA RETORNO\2025\XML\RECIBIDOS\ENERO\65BD5602-EBC8-45C0-9B77-575D64A0A617.xml
BB203: C:\AMS\RESPALDO HP\ESCRITORIO\VINICOLA RETORNO\2025\XML\RECIBIDOS\ENERO\C8D843BF-37A3-1349-8AF1-D64223135C3A.xml
BB204: C:\AMS\RESPALDO HP\ESCRITORIO\VINICOLA RETORNO\2025\XML\RECIBIDOS\FEBRERO\BF3A5CE5-5A24-55D1-B265-ECBB60D81414.xml
BB205: C:\AMS\RESPALDO HP\ESCRITORIO\VINICOLA RETORNO\2025\XML\RECIBIDOS\FEBRERO\9B687325-35F7-CA42-A397-3834645F3DDF.xml
... 97 more rows

Sheet RPAGOSR (hidden)
B2: Hoja para importar los XML emitidos con el complemento de recepción de pagos
I3: IR AL MENÚ
L5: Complemento de recepción de pagos
F6: Emisor | I6: Receptor | W6: Solo que el pago se reciba en SPEI | AA6: Documentos que se cobran | AL6: Impuestos trasladados
B7: Fecha de emisión | C7: Serie y folio | D7: Tipo de comprobante | E7: Lugar Expedicion | F7: Rfc | G7: Nombre | H7: Régimen fiscal | I7: RFC receptor | J7: Nombre | K7: Régimen fiscal | L7: Fecha de pago | M7: Forma de pago | N7: MonedaP | O7: TipoCambioP | P7: Monto | Q7: NumOperacion | R7: RfcEmisorCtaOrd | S7: NomBancoOrdExt | T7: CtaOrdenante | U7: RfcEmisorCtaBen | V7: CtaBeneficiario | W7: TipoCadPago | X7: CertPago | Y7: CadPago | Z7: SelloPago | AA7: IdDocumento | AB7: Serie | AC7: Folio | AD7: MonedaDR | AE7: Equivalencia | AF7: MetodoDePagoDR | AG7: NumParcialidad | AH7: ImpSaldoAnt | AI7: ImpPagado | AJ7: ImpSaldoInsoluto | AK7: Objeto de impuestos DR | AL7: Base para IEPS | AM7: Tipo factor | AN7: Tasa o cuota | AO7: Total IEPS trasladado del comprobante | AP7: Base para IVA | AQ7: Tipo factor | AR7: Tasa o cuota | AS7: Total IVA trasladado del comprobante | AT7: Tasa o cuota | AU7: Retención de ISR | AV7: Tasa o cuota | AW7: Retención IVA | AX7: Tasa o cuota | AY7: Retención IEPS | AZ7: USO DEL CFDI | BA7: BASE DE ISR (VERIFIQUE LOS DATOS) | BB7: IVA del CFDI de la hoja CFDIR | BC7: Ruta del archivo | BD7: Fecha de cancelación | BE7: Folio fiscal | BF7: Tipo de relación | BG7: UUI relacionado

Sheet INGRESOSA (hidden)
B4: Fecha inicial
B5: Fecha final | G5: IR AL MENÚ
B8: Persona moral régimen general de Ley con régimen fiscal | C8: 601 | F8: Persona moral RESICO con régimen fiscal | G8: 626
B9: INGRESOS | F9: INGRESOS
B10: Ingresos nominales facturados | F10: Ingresos cobrados del mes
B11: (-) Ingresos a disminuir | F11: (-) Ingresos a disminuir
B12: IEPS/ISAN cobrado no trasladado de manera expresa y por separado | F12: IEPS/ISAN cobrado no trasladado de manera expresa y por separado
B13: Ingresos acumulados en periodos anteriores | F13: Ingresos acumulados en periodos anteriores
B14: Ingresos del extranjero sujetos a retención o pago de impuesto | F14: Ingresos del extranjero sujetos a retención o pago de impuesto
B15: Ingresos facturados a cuenta de terceros | F15: Ingresos facturados a cuenta de terceros
B16: Ingresos exentos, derivados de las inversiones efectuadas por fondos de pensiones y jubilaciones constituidas en el extranjero | F16: Ingresos facturados en los que se determinó ganancia por enajenación
B17: Ingresos facturados en los que se determinó ganancia por enajenación | F17: Ingresos facturados en los que se determinó ganancia por fluctuación cambiaria
B18: Ingresos facturados en los que se determinó ganancia por fluctuación cambiaria | F18: Ingresos facturados pendientes de cancelación con aceptación del receptor
B19: Ingresos facturados no cobrados en el periodo (sociedades o asociaciones civiles) | F19: (+) Ingresos a adicionar
B20: Ingresos facturados pendientes de cancelación con aceptación del receptor | F20: Ganancia efectivamente percibida por fluctuación cambiaria
B21: Por acumulación del cobro total o parcial del precio en el ejercicio | F21: Ganancia por enajenación
B22: (+) Ingresos a adicionar | F22: Ingresos del extranjero
B23: Envío o entrega del bien o prestación del servicio así como cuando se cobre o sea exigible el precio o la contraprestación pactada. | F23: Ingresos derivados de deudas no cubiertas
B24: Ganancia efectivamente percibida por fluctuación cambiaria | F24: Ingresos facturados no considerados en el prellenado
B25: Ganancia por enajenación | F25: Intereses (Artículo 8 LISR)
B26: Ingresos del extranjero | F26: (=) Ingresos cobrados del mes
B27: Ingresos derivados de deudas no cubiertas | F27: (+) Ingresos cobrados de meses anteriores
B28: Ingresos facturados de periodos anteriores cobrados en el periodo (sociedades o asociaciones civiles) | F28: (=) Total de ingresos cobrados del periodo
B29: Intereses (Artículo 8 LISR)
B30: (=) Ingresos nominales del mes
B31: (+) Ingresos nominales de meses anteriores
B32: (=) Total de ingresos del periodo
B35: Persona física actividad empresarial y profesional | C35: 612 | F35: Persona física arrendamiento de inmuebles | G35: 606
B36: INGRESOS | F36: INGRESOS
B37: Ingresos acumulables | F37: Ingresos cobrados del mes
B38: (-) Ingresos a disminuir del mes | F38: (-) Ingresos a disminuir del mes
B39: IEPS/ISAN cobrado no trasladado de manera expresa y por separado | F39: Ingresos en crédito
B40: Ingresos facturados en los que se determinó ganancia por enajenación | F40: Depósitos en garantía
B41: Ingresos facturados pendientes de cancelación con aceptación del receptor | F41: Ingresos en copropiedad o sociedad conyugal
B42: Ingresos facturados en los que se determinó ganancia por fluctuación cambiaria | F42: (+) Ingresos adicionales del mes
B43: Ingresos de personas físicas dedicadas a las artes plásticas | F43: Ingresos facturados no considerados en el prellenado
B44: (+) Ingresos adicionales del mes | F44: Ingresos en crédito
B45: Condonaciones, quitas o remisiones | F45: Ingresos por depósitos en garantía
B46: Gastos por cuenta de terceros sin comprobante fiscal | F46: Ingresos de certificados de participación inmobiliaria no amortizables
B47: Intereses cobrados derivados de la actividad empresarial o de la prestación de servicios profesionales | F47: (=) INGRESOS DEL MES
B48: Ganancia por enajenación de activos
B49: Ganancia efectivamente percibida por fluctuación cambiaria
B50: Ingresos derivados de las actividades de autotransporte (integrantes de coordinados)
B51: (-) Ingresos exentos
B52: (=) INGRESOS DEL MES
B53: INGRESOS DE MESES ANTERIORES
B54: (=) TOTAL DE INGRESOS DEL PERIODO
B57: Persona física RESICO | C57: 626
B58: INGRESOS
B59: Ingresos cobrados del mes
B60: (-) Descuentos, devoluciones y bonificaciones
B61: Descuentos, devoluciones y bonificaciones amparadas por comprobantes fiscales de egresos
B62: (-) Descuentos, devoluciones y bonificaciones de integrantes por copropiedad
B63: (=) Total de descuentos, devoluciones y bonificaciones amparadas por comprobantes fiscales de egresos
B64: (-) Ingresos a disminuir
B65: IEPS/ISAN cobrado no trasladado d manera expresa y por separado
B66: Ingresos facturados pendientes de cancelación con aceptación del receptor
B67: Ingresos facturados acumulados en periodos anteriores
B68: Apoyos gubernamentales
B69: Ingresos facturados a cuenta de terceros
B70: (+) Ingresos a adicionar
B71: Ingresos facturados no considerados en el prellenado
B72: (=) Total de ingresos percibidos por la actividad
B73: Actividad empresarial
B74: Servicios profesionales (Honorarios)
B75: Actividades agrícolas, ganaderas, silvícolas y pesqueras
B76: Enajenación de activos fijos y terrenos de su propiedad afecto a su actividad
B77: Uso o goce temporal de bienes

Sheet DEDUCCIONES (hidden)
B4: Fecha inicial
B5: Fecha final | E5: IR AL MENÚ
B8: Persona moral RESICO con régimen fiscal | C8: 626
B9: Deducciones autorizadas
B10: Gastos de nómina del periodo no considerados en el prellenado | C10: =IFERROR(C13,0) -> 0
B11: Gastos de nómina de meses anteriores, solo declaraciones pagadas
B12: (+) Gastos de nómina del mes
B13: (=) Gastos de nómina del periodo | C13: =IFERROR(C11+C12,0) -> 0
B14: Compras y gastos del periodo | C14: =IFERROR(C23,0) -> 0
B15: (+) Compras y gastos facturados del mes | D15: =IFERROR(ROUND(SUMIFS(CFDIR!$Z:$Z,CFDIR!$B:$B,">="&$C$62,CFDIR!$B:$B,"<="&$C$63,CFDIR!$C:$C,$C$70,CFDIR!$P:$P,$C$64,CFDIR!$AZ:$AZ,"",CFDIR!$H:$H,"PUE",CFDIR!$I:$I,$B15,CFDIR!$R:$R,"G03"),0),0) -> 0
B16: (-) Devoluciones, descuentos y bonificaciones facturadas del mes
B17: (-) Compras y gastos no deducibles del mes
B18: (+) Compras y gastos del mes no considerados en el pre llenado
B19: (=) Compras y gastos del mes | C19: =IFERROR(C15-C16-C17+C18,0) -> 0
B20: (-) Facturas de egresos recibidas por compras y gastos del mes
B21: (=) Compras y gastos deducibles del mes | C21: =IFERROR(C19-C20,0) -> 0
B22: (+) Compras y gastos de meses anteriores, solo declaraciones pagadas
B23: (=) Compras y gastos del periodo | C23: =IFERROR(C21+C22,0) -> 0
B24: Deducción de inversiones del periodo | C24: =IFERROR(C27,0) -> 0
B25: Deducción de inversiones de meses anteriores, solo declaraciones pagadas
B26: (+) Deducción de inversiones del mes
B27: (=) Deducción de inversiones del periodo | C27: =IFERROR(C25+C26,0) -> 0
B28: Deducción inmediata de inversiones | C28: =IFERROR(C31,0) -> 0
B29: Deducción inmediata de inversiones de meses anteriores, solo declaraciones pagadas
B30: (+) Deducción inmediata de inversiones del mes
B31: (=) Deducción inmediata de inversiones del periodo | C31: =IFERROR(C29+C30,0) -> 0
B32: Estímulos a disminuir | C32: =SUM(C33:C35) -> 0
B33: Deducción adicional por enajenación de libros, periiódicos y revistas
B34: Deducción del 25% del salario efectivamente pagado por la contratación de personas mayores a 65 años
B35: Deducción del 25% del salario efectivamente pagado por la contratación de personas que padezcan alguna incapacidad
B36: (=) Total de deducciones autorizadas | C36: =IFERROR(C10+C14+C24+C28+C32,0) -> 0
B40: Persona física actividad empresarial y profesional | C40: 612
B41: Deducciones autorizadas
B42: Gastos de nómina del periodo no considerados en el prellenado | C42: =IFERROR(C45,0) -> 0
B43: Gastos de nómina de meses anteriores, solo declaraciones pagadas
B44: (+) Gastos de nómina del mes
B45: (=) Gastos de nómina del periodo | C45: =IFERROR(C43+C44,0) -> 0
B46: Compras y gastos del periodo | C46: =IFERROR(C55,0) -> 0
B47: (+) Compras y gastos facturados del mes
B48: (-) Devoluciones, descuentos y bonificaciones facturadas del mes
B49: (-) Compras y gastos no deducibles del mes
B50: (+) Compras y gastos del mes no considerados en el pre llenado
B51: (=) Compras y gastos del mes | C51: =IFERROR(C47-C48-C49+C50,0) -> 0
B52: (-) Facturas de egresos recibidas por compras y gastos del mes
B53: (=) Compras y gastos deducibles del mes | C53: =IFERROR(C51-C52,0) -> 0
B54: (+) Compras y gastos de meses anteriores, solo declaraciones pagadas
B55: (=) Compras y gastos del periodo | C55: =IFERROR(C53+C54,0) -> 0
B56: Deducción de inversiones del periodo | C56: =IFERROR(C59,0) -> 0
B57: Deducción de inversiones de meses anteriores, solo declaraciones pagadas
B58: (+) Deducción de inversiones del mes
B59: (=) Deducción de inversiones del periodo | C59: =IFERROR(C57+C58,0) -> 0
B60: Deducción inmediata de inversiones | C60: =IFERROR(C63,0) -> 0
B61: Deducción inmediata de inversiones de meses anteriores, solo declaraciones pagadas
B62: (+) Deducción inmediata de inversiones del mes
B63: (=) Deducción inmediata de inversiones del periodo | C63: =IFERROR(C61+C62,0) -> 0
B64: Estímulos a disminuir | C64: =SUM(C65:C70) -> 0
B65: Estímulo por contratar adultos mayores (25% del salario pagado)
B66: Deducción del 25% del salario efectivamente pagado por la contratación de personas que padezcan alguna incapacidad
B67: Deducción adicional por enajenación de libros, periiódicos y revistas
B68: Deducción equivalente hasta 8% de ingresos propios sin documentación que reúna requisitos fiscales para contribuyentes dedicados exclusivamente al autotransporte
B69: Deducción del costo de adquisición de terrenos por contribuyentes dedicados a la construcción y desarrollos inmobiliarios
B70: Deducción de donativos realizados a organismos públicos descentralizados del Gobierno Federal
B71: (=) Total de deducciones autorizadas | C71: =IFERROR(C42+C46+C56+C60+C64,0) -> 0
B74: Persona física arrendamiento de inmuebles con régimen fiscal | C74: 606
B75: Deducciones autorizadas
B76: ¿Tipo de deducción? | C76: Comprobable
B78: Deducción opcional
B79: Impuesto predial
B80: Total de deducciones autorizadas | C80: =SUM(C78:C79) -> 0
B82: Gastos facturados del mes
B83: (+) Descuentos facturados del mes
B84: (-) Gastos no deducibles del mes
B85: (+) Gastos del mes no considerados en el pre llenado
B86: (-) Facturas de egresos recibidas por gastos del mes
B87: (=) Gastos del periodo | C87: =IFERROR(ROUND(C82+C83-C84+C85-C86,0),0) -> 0
B89: Deducción de inversiones
B90: Impuesto predial
B91: Estímulos fiscales | C91: =SUM(C92:C93) -> 0
B92: Estímulo por contratar adultos mayores (25% del salario pagado)
B93: Deducción del 25% del salario efectivamente pagado por la contratación de personas que padezcan alguna incapacidad
B94: Total de deducciones autorizadas | C94: =SUM(C87,C89:C91) -> 0

Sheet DETERMINACION (hidden)
E3: IR AL MENÚ
B6: Persona moral régimen general de Ley con régimen fiscal | C6: 601
B7: DETERMINACIÓN
B8: Total de ingresos nominales del periodo
B9: (x) Coeficiente de utilidad
B10: (=) Utilidad fiscal para pago provisional | C10: =IFERROR(ROUND(C8*C9,0),0) -> 0
B11: (-) Deducción inmediata de inversiones | C11: =C14 -> 0
B12: Deducción inmediata de inversiones de meses anteriores, solo declaraciones pagadas
B13: (+) Deducción inmediata de inversiones del mes
B14: (=) Deducción inmediata de inversiones del periodo | C14: =IFERROR(ROUND(C12+C13,0),0) -> 0
B15: (-) Pérdidas fiscales de ejercicios anteriores que se aplican en el periodo
B16: (-) Anticipos y rendimientos distribuidos en el periodo
B17: (=) Base gravable del pago provisional | C17: =IFERROR(IF(C10>=(C11+C15+C16),ROUND(C10-C11-C15-C16,0),0),0) -> 0
B18: Impuesto causado | C18: =IFERROR(ROUND(C17*0.3,0),0) -> 0
B19: (-) Impuesto acreditable por dividendos o utilidades distribuidas | C19: =C22 -> 0
B20: Monto límite de impuesto acreditable por dividendos | C20: =C18 -> 0
B21: ISR por dividendos pendiente de acreditar
B22: ISR por dividendos a acreditar en el periodo | C22: =C21 -> 0
B23: (-) Pagos provisionales efectuados de periodos anteriores
B24: (-) Retención de ISR bancario | C24: =C27 -> 0
B25: ISR retenido de periodos anteriores de declaraciones, solo periodos pagados
B26: (+) ISR retenido
B27: (=) Total de ISR retenido del periodo | C27: =SUM(C25:C26) -> 0
B28: (=) Impuesto a cargo | C28: =IFERROR(IF(C18>=(C19+C23+C24),ROUND(C18-C19-C23-C24,0),0),0) -> 0
B31: Persona moral RESICO con régimen fiscal | C31: 626
B32: DETERMINACIÓN
B33: Total de ingresos del periodo | C33: =INGRESOSA!G28 -> 0
B34: (-) Total de deducciones autorizadas | C34: =DEDUCCIONES!C36 -> 0
B35: (-) Participación de los trabajadores en las utilidades
B36: (-) Pérdidas fiscales de ejercicios anteriores que se aplican en el periodo
B37: (=) Utilidad fiscal | C37: =IFERROR(IF(C33>=(C34+C35+C36),ROUND(C33-C34-C35-C36,0),0),0) -> 0
B38: Impuesto causado | C38: =IFERROR(ROUND(C37*0.3,0),0) -> 0
B39: (-) Estímulos al ISR causado | C39: =SUM(C40:C42) -> 0
B40: Producción cinematográfica
B41: Estíulos a proyectos de inversión en las artes
B42: Estímulo por la inversión en proyectos y programas para el deporte de alto rendimiento
B43: (=) Impuesto del periodo | C43: =IFERROR(IF(C38>=C39,C38-C39,0),0) -> 0
B44: (-) Impuesto acreditable por dividendos o utilidades distribuidas | C44: =C47 -> 0
B45: Monto límite de impuesto acreditable por dividendos | C45: =C43 -> 0
B46: ISR por dividendos pendiente de acreditar
B47: ISR por dividendos a acreditar en el periodo | C47: =C46 -> 0
B48: (-) Pagos provisionales efectuados de periodos anteriores
B49: (-) Retención de ISR bancario | C49: =C52 -> 0
B50: ISR retenido de periodos anteriores de declaraciones, solo periodos pagados
B51: (+) ISR retenido
B52: (=) Total de ISR retenido del periodo | C52: =SUM(C50:C51) -> 0
B53: (=) Impuesto a cargo | C53: =IFERROR(IF(C43>=(C44+C48+C49),ROUND(C43-C44-C48-C49,0),0),0) -> 0
B56: Persona física actividad empresarial y profesional | C56: 612
B57: DETERMINACIÓN
B58: Total de ingresos del periodo | C58: =IFERROR(INGRESOSA!C54,0) -> 0
B59: (-) Total de deducciones autorizadas | C59: =IFERROR(DEDUCCIONES!C71,0) -> 0
B60: (-) Participación de los trabajadores en las utilidades
B61: (-) Pérdidas fiscales de ejercicios anteriores que se aplican en el periodo
B62: (=) Base gravable | C62: =IFERROR(IF(C58>=(C59+C60+C61),ROUND(C58-C59-C60-C61,0),0),0) -> 0
B63: Impuesto causado | C63: =IFERROR(ROUND(((C62-VLOOKUP(C62,INDIRECT("T"&TEXT(INGRESOSA!C4,"MMMM")),1))*VLOOKUP(C62,INDIRECT("T"&TEXT(INGRESOSA!C4,"MMMM")),4)%)+VLOOKUP(C62,INDIRECT("T"&TEXT(INGRESOSA!C4,"MMMM")),3),0),0) -> 0
B64: (-) Estímulos al impuesto causado | C64: =SUM(C65:C72) -> 0
B65: Producción cinematográfica
B66: Estíulos a proyectos de inversión en las artes
B67: Crédito IEPS diésel automotriz para transporte público de personas
B68: Crédito IEPS diésel automotriz para transporte público de carga
B69: Crédito IEPS diésel automotriz para transporte público turístico
B70: Crédito 50% en el pago de peaje para transporte público de personas
B71: Crédito 50% en el pago de peaje para transporte público de carga
B72: Crédito 50% en el pago de peaje para transporte público turístico
B73: (=) Impuesto del periodo | C73: =IFERROR(IF(C63>=C64,C63-C64,0),0) -> 0
B74: (-) Pagos provisionales efectuados de periodos anteriores
B75: (-) Total ISR retenido | C75: =C78 -> 0
B76: ISR retenido de periodos anteriores de declaraciones, solo declaraciones pagadas
B77: (+) ISR retenido
B78: (=) Total de ISR retenido | C78: =SUM(C76:C77) -> 0
B79: (=) Impuesto a cargo | C79: =IFERROR(IF(C73>=(C74+C75),ROUND(C73-C74-C75,0),0),0) -> 0
B82: Persona física arrendamiento de inmuebles con régimen fiscal | C82: 606
B83: DETERMINACIÓN
B84: Total de ingresos del periodo | C84: =IFERROR(INGRESOSA!G47,0) -> 0
B85: (-) Total de deducciones autorizadas | C85: =IFERROR(IF(DEDUCCIONES!C76="Comprobable",DEDUCCIONES!C94,DEDUCCIONES!C80),0) -> 0
B86: (-) Total de deducciones superiores a los ingreso
B87: (=) Base gravable | C87: =IFERROR(IF(C84>=(C85+C86),C84-C85-C86,0),0) -> 0
B88: Impuesto causado | C88: =IFERROR(ROUND((((C87-VLOOKUP(C87,TENERO,1))*VLOOKUP(C87,TENERO,4)%)+VLOOKUP(C87,TENERO,3)),0),0) -> 0
B89: (-) Estímulos al impuesto causado | C89: =SUM(C90:C91) -> 0
B90: Estímulos a proyectos de inversión en las artes gráficas
B91: Producción cenematográfica
B92: (-) Total de ISR retenido
B93: (=) Impuesto a cargo | C93: =IFERROR(IF(C88>=(C89+C92),C88-C89-C92,0),0) -> 0
B96: Persona física RESICO | C96: 626
B97: DETERMINACIÓN
B98: Total de ingresos percibidos por la actividad | C98: =IFERROR(INGRESOSA!C72,0) -> 0
B99: Base gravable | C99: =IFERROR(C98,0) -> 0
B100: (x) Tasa aplicable | C100: =IFERROR(VLOOKUP(C99,TABLAR,3),"") -> 0.01
B101: (=) Impuesto mensual | C101: =IFERROR(ROUND(C99*C100,0),0) -> 0
B102: (-) ISR retenido por personas morales
B103: =IFERROR(IF(C101>=C102,"Impuesto por pagar","Impuesto a favor"),"") -> Impuesto por pagar | C103: =IFERROR(IF(C101>=C102,ROUND(C101-C102,0),ROUND(C102-C101,0)),0) -> 0

Sheet DEDUCCIONESA (hidden)
D3: IR AL MENÚ
B4: Persona moral RESICO
B5: Deducción | C5: Disposición fiscal | D5: Fundamento
B6: Devoluciones, descuentos y bonificaciones | C6: Las devoluciones que se reciban o los descuentos o bonificaciones que se hagan, siempre que se hubiese acumulado el ingreso correspondiente. | D6: Artículo 208 fracción I LISR
B7: En el caso de las devoluciones, descuentos o bonificaciones a que se refiere el artículo 25 de la Ley del Impuesto sobre la Renta, se deberán expedir comprobantes fiscales digitales por Internet. En el supuesto de que se emitan comprobantes que amparen egresos sin contar con la justificación y soporte documental que acredite las devoluciones, descuentos o bonificaciones ante las autoridades fiscales, éstos no podrán disminuirse de los comprobantes fiscales de ingresos del contribuyente, lo cual podrá ser verificado por éstas en el ejercicio de las facultades establecidas en este Código. Fundamento: Artículo 29 segundo párrafo, fracción VI tercer párrafo CFF
B8: 30. ¿Qué forma de pago se debe registrar en el CFDI de egresos cuando éste se emita por una devolución, descuento o bonificación relacionado al CFDI de ingresos correspondiente, siempre que éste último no haya sido pagado total o parcialmente? Se puede registrar la clave "15" (Condonación) del catálogo c_FormaPago publicado en el Portal del SAT. Fundamento Legal: “Anexo 20 Guía de llenado de los comprobantes fiscales digitales por Internet versión” 4.0, publicada en el Portal del SAT. Fuente: Apéndice 7 Preguntas y respuestas sobre el Anexo 20 versión 4.0
B9: En el aplicativo se carga como una deducción autorizada, a pesar de que no lo es, y el campo es no editable
B11: Deducción | C11: Disposición fiscal | D11: Fundamento
B12: Compras | C12: Las adquisiciones de mercancías, así como de materias primas. | D12: Artículo 208 fracción II LISR
B13: Gastos | C13: Los gastos netos de descuentos, bonificaciones o devoluciones | D13: Artículo 208 fracción III LISR
B15: Activo fijo | C15: Las inversiones. | D15: Artículo 208 fracción IV LISR
B16: Intereses pagados | C16: Los intereses pagados derivados de la actividad, sin ajuste alguno, así como los que se generen por capitales tomados en préstamo siempre y cuando dichos capitales hayan sido invertidos en los fines de las actividades de la persona moral y se obtenga el comprobante fiscal correspondiente. | D16: Artículo 208 fracción V LISR
B17: Cuotas patronales | C17: Las cuotas a cargo de los patrones pagadas al Instituto Mexicano del Seguro Social. | D17: Artículo 208 fracción VI LISR
B18: Aportaciones para reservas de fondos de pensiones o jubilaciones | C18: Las aportaciones efectuadas para la creación o incremento de reservas para fondos de pensiones o jubilaciones del personal, complementarias a las que establece la Ley del Seguro Social, y de primas de antigüedad constituidas en los términos de esta Ley. El monto de la deducción a que se refiere esta fracción estará a lo dispuesto en el artículo 25, fracción X de esta Ley. | D18: Artículo 208 fracción VII LISR
B22: Persona física actividad empresarial y profesional
B23: DISPOSICIÓN | D23: FUNDAMENTO
B24: Devoluciones, descuentos y bonificaciones | C24: Las devoluciones que se reciban o los descuentos o bonificaciones que se hagan, siempre que se hubiese acumulado el ingreso correspondiente. | D24: Artículo 103 primer párrafo fracción I LISR
B25: Adquisición de mercancía | C25: Las adquisiciones de mercancías, así como de materias primas, productos semiterminados o terminados, que utilicen para prestar servicios, para fabricar bienes o para enajenarlos. No serán deducibles conforme a esta fracción los activos fijos, los terrenos, las acciones, partes sociales, obligaciones y otros valores mobiliarios, los títulos valor que representen la propiedad de bienes, excepto certificados de depósito de bienes o mercancías, la moneda extranjera, las piezas de oro o de plata que hubieran tenido el carácter de moneda nacional o extranjera ni las piezas denominadas onzas troy. En el caso de ingresos por enajenación de terrenos y de acciones, se estará a lo dispuesto en los artículos 19 y 22 de esta Ley, respectivamente. | D25: Artículo 103 primer párrafo fracción II LISR
B26: Gastos | C26: Los gastos. | D26: Artículo 103 primer párrafo fracción III LISR
B27: Activos fijos | C27: Las inversiones. | D27: Artículo 103 primer párrafo fracción IV LISR
B28: Intereses pagados | C28: Los intereses pagados derivados de la actividad empresarial o servicio profesional, sin ajuste alguno, así como los que se generen por capitales tomados en préstamo siempre y cuando dichos capitales hayan sido invertidos en los fines de las actividades a que se refiere esta Sección y se obtenga el comprobante fiscal correspondiente. | D28: Artículo 103 primer párrafo fracción V LISR
B29: Cuotas patronales | C29: Las cuotas a cargo de los patrones pagadas al Instituto Mexicano del Seguro Social. | D29: Artículo 103 primer párrafo fracción VI LISR
B30: Impuesto local actividad empresarial o servicios profesionales | C30: Los pagos efectuados por el impuesto local sobre los ingresos por actividades empresariales o servicios profesionales. | D30: Artículo 103 primer párrafo fracción VII LISR
B31: Personas físicas residentes en el extranjero | C31: Tratándose de personas físicas residentes en el extranjero que tengan uno o varios establecimientos permanentes en el país, podrán efectuar las deducciones que correspondan a las actividades del establecimiento permanente, ya sean las erogadas en México o en cualquier otra parte, aun cuando se prorrateen con algún establecimiento ubicado en el extranjero, aplicando al efecto lo dispuesto en el artículo 26 de esta Ley. | D31: Artículo 103 segundo párrafo LISR
B32: No deducibles | C32: Los contribuyentes a que se refiere esta Sección, considerarán los gastos e inversiones no deducibles del ejercicio, en los términos del artículo 28 de esta Ley. | D32: Artículo 103 tercer párrafo LISR
B36: Persona física arrendamiento de inmuebles
B37: DISPOSICIÓN | D37: FUNDAMENTO
B38: Impuesto predial | C38: Los pagos efectuados por el impuesto predial correspondiente al año de calendario sobre dichos inmuebles, así como por las contribuciones locales de mejoras, de planificación o de cooperación para obras públicas que afecten a los mismos y, en su caso, el impuesto local pagado sobre los ingresos por otorgar el uso o goce temporal de bienes inmuebles. | D38: Artículo 115 primer párrafo fracción I LISR
B39: Gastos por mantenimiento | C39: Los gastos de mantenimiento que no impliquen adiciones o mejoras al bien de que se trate y por consumo de agua, siempre que no los paguen quienes usen o gocen del inmueble. | D39: Artículo 115 primer párrafo fracción II LISR
B40: Intereses reales | C40: Los intereses reales pagados por préstamos utilizados para la compra, construcción o mejoras de los bienes inmuebles, siempre y cuando obtenga el comprobante fiscal correspondiente. Se considera interés real el monto en que dichos intereses excedan del ajuste anual por inflación. Para determinar el interés real se aplicará en lo conducente lo dispuesto en el artículo 134 de esta Ley. | D40: Artículo 115 primer párrafo fracción III LISR
B41: Salarios, comisiones y honorarios | C41: Los salarios, comisiones y honorarios pagados, así como los impuestos, cuotas o contribuciones que conforme a esta Ley les corresponda cubrir sobre dichos salarios, efectivamente pagados. | D41: Artículo 115 primer párrafo fracción IV LISR
B42: Primas de seguros | C42: El importe de las primas de seguros que amparen los bienes respectivos. | D42: Artículo 115 primer párrafo fracción V LISR
B43: Inversiones | C43: Las inversiones en construcciones, incluyendo adiciones y mejoras. | D43: Artículo 115 primer párrafo fracción VI LISR
B44: Artículo 195 RLISR. Cuando en el año de calendario las deducciones a que se refiere el artículo 115 de la Ley, sean superiores a los ingresos a que se refiere el Título IV, Capítulo III de la Ley, la diferencia podrá deducirse de los demás ingresos que el contribuyente deba acumular en la declaración anual correspondiente a ese mismo año, excepto de aquéllos a que se refiere el Título IV, Capítulos I y II de la Ley.
B45: Deducción opcional | C45: Los contribuyentes que otorguen el uso o goce temporal de bienes inmuebles podrán optar por deducir el 35% de los ingresos a que se refiere este Capítulo, en substitución de las deducciones a que este artículo se refiere. Quienes ejercen esta opción podrán deducir, además, el monto de las erogaciones por concepto del impuesto predial de dichos inmuebles correspondiente al año de calendario o al periodo durante el cual se obtuvieron los ingresos en el ejercicio según corresponda. | D45: Artículo 115 segundo párrafo LISR
B46: Deducción en subarrendamiento | C46: Tratándose de subarrendamiento sólo se deducirá el importe de las rentas que pague el arrendatario al arrendador. | D46: Artículo 115 tercer párrafo LISR
B47: Uso gratuito | C47: Cuando el contribuyente ocupe parte del bien inmueble del cual derive el ingreso por otorgar el uso o goce temporal del mismo u otorgue su uso o goce temporal de manera gratuita, no podrá deducir la parte de los gastos, así como tampoco el impuesto predial y los derechos de cooperación de obras públicas que correspondan proporcionalmente a la unidad por él ocupada o de la otorgada gratuitamente. En los casos de subarrendamiento, el subarrendador no podrá deducir la parte proporcional del importe de las rentas pagadas que correspondan a la unidad que ocupe o que otorgue gratuitamente. La parte proporcional a que se refiere el párrafo que antecede, se calculará considerando el número de metros cuadrados de construcción de la unidad por él ocupada u otorgada de manera gratuita en relación con el total de metros cuadrados de construcción del bien inmueble. | D47: Artículo 115 cuarto y quinto párrafo LISR
B48: Deducción proporcional | C48: Cuando el uso o goce temporal del bien de que se trate no se hubiese otorgado por todo el ejercicio, las deducciones a que se refieren las fracciones I a V de este artículo, se aplicarán únicamente cuando correspondan al periodo por el cual se otorgó el uso o goce temporal del bien inmueble o a los tres meses inmediatos anteriores al en que se otorgue dicho uso o goce. | D48: Artículo 115 cuarto y séptimo párrafo LISR

Sheet ACUMULACION (hidden)
B2: Persona moral régimen general de Ley | D2: IR AL MENÚ
B4: Ingresos nominales
B5: Los ingresos nominales a que se refiere este artículo serán los ingresos acumulables, excepto el ajuste anual por inflación acumulable. Tratándose de créditos o de operaciones denominados en unidades de inversión, se considerarán ingresos nominales para los efectos de este artículo, los intereses conforme se devenguen, incluyendo el ajuste que corresponda al principal por estar los créditos u operaciones denominados en dichas unidades. Fundamento: Artículo 14 tercer párrafo CFF
B7: Tipo de operación | C7: Momento de acumulación
B8: Enajenación de bienes | C8: Lo que ocurra primero. a) Se expida el comprobante fiscal que ampare el precio o la contraprestación pactada. b) Se envíe o entregue materialmente el bien o cuando se preste el servicio. c) Se cobre o sea exigible total o parcialmente el precio o la contraprestación pactada, aun cuando provenga de anticipos. Fundamento: Artículo 17 fracción I LISR Tratándose de los ingresos por la prestación de servicios personales independientes que obtengan las sociedades o asociaciones civiles y de ingresos por el servicio de suministro de agua potable para uso doméstico o de recolección de basura doméstica que obtengan los organismos descentralizados, los concesionarios, permisionarios o empresas autorizadas para proporcionar dichos servicios, se considera que los mismos se obtienen en el momento en que se cobre el precio o la contraprestación pactada. Fundamento: Artículo 17 fracción I segundo párrafo
B9: Prestación de servicios
B10: Uso o goce temporal de bienes | C10: Lo que suceda primero. - Se cobren total o parcialmente las contraprestaciones. - Cuando las contraprestaciones sean exigibles a favor de quien efectúe dicho otorgamiento. - Se expida el comprobante fiscal que ampare el precio o la contraprestación pactada. Fundamento: Artículo 17 fracción II LISR
B11: Contratos de arrendamiento financiero | C11: Los contribuyentes podrán optar por considerar como ingreso obtenido en el ejercicio el total del precio pactado o la parte del precio exigible durante el mismo. Fundamento: Artículo 17 primer párrafo fracción III LISR
B12: Enajenación a plazos | C12: Considerarán como ingreso obtenido en el ejercicio el total del precio pactado. Fundamento: Artículo 17 fracción II segundo párrafo LISR
B13: Deudas no cubiertas | C13: En el mes en el que se consume el plazo de prescripción o en el mes en el que se cumpla el plazo a que se refiere el párrafo segundo de la fracción XV del artículo 27 de esta Ley. Fundamento: Artículo 17 fracción IV LISR
B14: Contrato de obra inmuebles | C14: Considerarán acumulables los ingresos provenientes de dichos contratos, en la fecha en que las estimaciones por obra ejecutada sean autorizadas o aprobadas para que proceda su cobro, siempre y cuando el pago de dichas estimaciones tengan lugar dentro de los tres meses siguientes a su aprobación o autorización; de lo contrario, los ingresos provenientes de dichos contratos se considerarán acumulables hasta que sean efectivamente pagados. Fundamento: Artículo 17 segundo párrafo LISR Además considerarán ingresos acumulables, además de los señalados en el mismo, cualquier pago recibido en efectivo, en bienes o en servicios, ya sea por concepto de anticipos, depósitos o garantías del cumplimiento de cualquier obligación, o cualquier otro. Fundamento: Artículo 17 tercer párrafo LISR
B15: Ingresos presuntos | C15: Ingresos determinados, inclusive presuntivamente por las autoridades fiscales, en los casos en que proceda conforme a las leyes fiscales. Fundamento: Artículo 18 fracción I LISR
B16: Ganancia derivada de la transmisión de propiedad de bienes por pago en especie | C16: En este caso, para determinar la ganancia se considerará como ingreso el valor que conforme al avalúo practicado por persona autorizada por las autoridades fiscales tenga el bien de que se trata en la fecha en la que se transfiera su propiedad por pago en especie, pudiendo disminuir de dicho ingreso las deducciones que para el caso de enajenación permite esta Ley, siempre que se cumplan con los requisitos que para ello se establecen en la misma y en las demás disposiciones fiscales. Tratándose de mercancías, así como de materias primas, productos semiterminados o terminados, se acumulará el total del ingreso y el valor del costo de lo vendido se determinará conforme a lo dispuesto en la Sección III, del Capítulo II del Título II de esta Ley. Fundamento: Artículo 18 fracción II LISR
B17: Los que provengan de construcciones, instalaciones o mejoras permanentes en bienes inmuebles, que de conformidad con los contratos por los que se otorgó su uso o goce queden a beneficio del propietario. | C17: El ingreso se considera obtenido al término del contrato y en el monto que a esa fecha tengan las inversiones conforme al avalúo que practique persona autorizada por las autoridades fiscales. Fundamento: Artículo 18 fracción III LISR
B18: La ganancia derivada de la enajenación de activos fijos y terrenos, títulos valor, acciones, partes sociales o certificados de aportación patrimonial emitidos por sociedades nacionales de crédito | C18: Fundamento: Artículo 18 fracción IV LISR
B19: Recuperación de un crédito deducido por incobrable | C19: Fundamento: Artículo 18 fracción V LISR
B20: La cantidad que se recupere por seguros, fianzas o responsabilidades a cargo de terceros, tratándose de pérdidas de bienes del contribuyente. | C20: Fundamento: Artículo 18 fracción VI LISR
B21: Las cantidades que el contribuyente obtenga como indemnización para resarcirlo de la disminución que en su productividad haya causado la muerte, accidente o enfermedad de técnicos o dirigentes. | C21: Fundamento: Artículo 18 fracción VII LISR
B22: Las cantidades que se perciban para efectuar gastos por cuenta de terceros, salvo que dichos gastos sean respaldados con comprobantes fiscales a nombre de aquél por cuenta de quien se efectúa el gasto. | C22: Fundamento: Artículo 18 fracción VIII LISR
B23: Los intereses devengados a favor en el ejercicio, sin ajuste alguno. | C23: Fundamento: Artículo 18 fracción IX LISR
B24: El ajuste anual por inflación que resulte acumulable en los términos del artículo 44 de esta Ley. | C24: Fundamento: Artículo 18 fracción X LISR
B25: Las cantidades recibidas en efectivo, en moneda nacional o extranjera, por concepto de préstamos, aportaciones para futuros aumentos de capital o aumentos de capital mayores a $600,000.00, cuando no se cumpla con lo previsto en el artículo 76, fracción XVI de esta Ley. | C25: Fundamento: Artículo 18 fracción XI LISR
B29: Persona moral RESICO
B30: Tipo de operación | C30: Momento de acumulación
B31: Enajenación de bienes | C31: Los ingresos se consideran acumulables en el momento en que sean efectivamente percibidos. Los ingresos se consideran efectivamente percibidos cuando se reciban en efectivo, en bienes o en servicios, aun cuando aquéllos correspondan a anticipos, a depósitos o a cualquier otro concepto, sin importar el nombre con el que se les designe. Igualmente se considera percibido el ingreso cuando el contribuyente reciba títulos de crédito emitidos por una persona distinta de quien efectúa el pago; tratándose de cheques, se considerará percibido el ingreso en la fecha de cobro del mismo o cuando los contribuyentes transmitan los cheques a un tercero, excepto cuando dicha transmisión sea en procuración. También se entenderá que el ingreso es efectivamente percibido, cuando el interés del acreedor quede satisfecho mediante cualquier forma de extinción de las obligaciones. Fundamento: Artículo 207 primer y segundo párrafo LISR
B32: Prestación de servicios
B33: Uso o goce temporal de bienes
B38: Persona física actividad empresarial y profesional
B39: Tipo de operación | C39: Momento de acumulación
B40: Actividad empresarial | C40: Para los efectos de esta Sección, los ingresos se consideran acumulables en el momento en que sean efectivamente percibidos. Los ingresos se consideran efectivamente percibidos cuando se reciban en efectivo, en bienes o en servicios, aun cuando aquéllos correspondan a anticipos, a depósitos o a cualquier otro concepto, sin importar el nombre con el que se les designe. Igualmente se considera percibido el ingreso cuando el contribuyente reciba títulos de crédito emitidos por una persona distinta de quien efectúa el pago. Cuando se perciban en cheque, se considerará percibido el ingreso en la fecha de cobro del mismo o cuando los contribuyentes transmitan los cheques a un tercero, excepto cuando dicha transmisión sea en procuración. También se entiende que es efectivamente percibido cuando el interés del acreedor queda satisfecho mediante cualquier forma de extinción de las obligaciones. Fundamento: Artículo 102 primer y segundo párrafo LISR
B41: Servicios profesionales
B42: Condonaciones, quitas o remisiones, de deudas | C42: Tratándose de condonaciones, quitas o remisiones, de deudas relacionadas con la actividad empresarial o con el servicio profesional, así como de las deudas antes citadas que se dejen de pagar por prescripción de la acción del acreedor, la diferencia que resulte de restar del principal actualizado por inflación, el monto de la quita, condonación o remisión, al momento de su liquidación o reestructuración, siempre y cuando la liquidación total sea menor al principal actualizado y se trate de quitas, condonaciones o remisiones otorgadas por instituciones del sistema financiero. Fundamento: Artículo 101 fracción I primer párrafo LISR En el caso de condonaciones, quitas o remisiones de deudas otorgadas por personas distintas a instituciones del sistema financiero, se acumulará el monto total en dichas condonaciones, quitas o remisiones. Fundamento: Artículo 101 fracción I segundo párrafo LISR
B43: Los provenientes de la enajenación de cuentas y documentos por cobrar y de títulos de crédito distintos de las acciones, relacionados con las actividades | C43: Fundamento: Artículo 101 fracción II LISR
B44: Las cantidades que se recuperen por seguros, fianzas o responsabilidades a cargo de terceros, tratándose de pérdidas de bienes del contribuyente afectos a la actividad empresarial o al servicio profesional. | C44: Fundamento: Artículo 101 fracción III LISR
B45: Las cantidades que se perciban para efectuar gastos por cuenta de terceros, salvo que dichos gastos sean respaldados con comprobantes fiscales expedidos a nombre de aquél por cuenta de quien se efectúa el gasto. | C45: Fundamento: Artículo 101 fracción IV LISR
B46: Los derivados de la enajenación de obras de arte hechas por el contribuyente. | C46: Fundamento: Artículo 101 fracción V LISR
B47: Los obtenidos por agentes de instituciones de crédito, de seguros, de fianzas o de valores, por promotores de valores o de administradoras de fondos para el retiro, por los servicios profesionales prestados a dichas instituciones. | C47: Fundamento: Artículo 101 fracción VI LISR
B48: Los obtenidos mediante la explotación de una patente aduanal. | C48: Fundamento: Artículo 101 fracción VII LISR
B49: Los obtenidos por la explotación de obras escritas, fotografías o dibujos, en libros, periódicos, revistas o en las páginas electrónicas vía Internet, o bien, la reproducción en serie de grabaciones de obras musicales y en general cualquier otro que derive de la explotación de derechos de autor | C49: Fundamento: Artículo 101 fracción VIII LISR
B50: Artículo 93 LISR. No se pagará el impuesto sobre la renta por la obtención de los siguientes ingresos: XXIX. Los que se obtengan, hasta el equivalente de veinte salarios mínimos generales del área geográfica que corresponda al contribuyente elevados al año, por permitir a terceros la publicación de obras escritas de su creación en libros, periódicos o revistas, o bien, la reproducción en serie de grabaciones de obras musicales de su creación, siempre que los libros, periódicos o revistas, así como los bienes en los que se contengan las grabaciones, se destinen para su enajenación al público por la persona que efectúa los pagos por estos conceptos y siempre que el creador de la obra expida por dichos ingresos el comprobante fiscal respectivo. Por el excedente se pagará el impuesto en los términos de este Título. La exención a que se refiere esta fracción no se aplicará en cualquiera de los siguientes casos: a) Cuando quien perciba estos ingresos obtenga también de la persona que los paga ingresos de los señalados en el Capítulo I de este Título. b) Cuando quien perciba estos ingresos sea socio o accionista en más del 10% del capital social de la persona moral que efectúa los pagos. c) Cuando se trate de ingresos que deriven de ideas o frases publicitarias, logotipos, emblemas, sellos distintivos, diseños o modelos industriales, manuales operativos u obras de arte aplicado. No será aplicable lo dispuesto en esta fracción cuando los ingresos se deriven de la explotación de las obras escritas o musicales de su creación en actividades empresariales distintas a la enajenación al público de sus obras, o en la prestación de servicios.
B51: Los intereses cobrados derivados de la actividad empresarial o de la prestación de servicios profesionales, sin ajuste alguno. | C51: Fundamento: Artículo 101 fracción IX LISR
B52: Las devoluciones que se efectúen o los descuentos o bonificaciones que se reciban, siempre que se hubiese efectuado la deducción correspondiente. | C52: Fundamento: Artículo 101 fracción X LISR
B53: La ganancia derivada de la enajenación de activos afectos a la actividad. | C53: Fundamento: Artículo 101 fracción XI LISR
B58: Persona física plataformas tecnológicas
B59: Tipo de operación | C59: Momento de acumulación
B60: Están obligados al pago del impuesto establecido en esta Sección, los contribuyentes personas físicas con actividades empresariales que enajenen bienes o presten servicios a través de Internet, mediante plataformas tecnológicas, aplicaciones informáticas y similares que presten los servicios a que se refiere la fracción II del artículo 18-B de la Ley del Impuesto al Valor Agregado, por los ingresos que generen a través de los citados medios por la realización de las actividades mencionadas, incluidos aquellos pagos que reciban por cualquier concepto adicional a través de los mismos. | C60: Fundamento: Artículo 113-A LISR
B64: Persona física RESICO
B65: Tipo de operación | C65: Momento de acumulación
B66: Los contribuyentes personas físicas que realicen únicamente actividades empresariales, profesionales u otorguen el uso o goce temporal de bienes, podrán optar por pagar el impuesto sobre la renta en los términos establecidos en esta Sección, siempre que la totalidad de sus ingresos propios de la actividad o las actividades señaladas que realicen, obtenidos en el ejercicio inmediato anterior, no hubieran excedido de la cantidad de tres millones quinientos mil pesos. | C66: Los contribuyentes determinarán los pagos mensuales considerando el total de los ingresos que perciban por las actividades a que se refiere el primer párrafo de este artículo y estén amparados por los comprobantes fiscales digitales por Internet efectivamente cobrados, sin incluir el impuesto al valor agregado, y sin aplicar deducción alguna, considerando la siguiente tabla: Fundamento: Artículo 113-E quinto párrafo LISR
B71: Persona física arrendamiento de inmuebles
B72: Tipo de operación | C72: Momento de acumulación
B73: Se consideran ingresos por otorgar el uso o goce temporal de bienes inmuebles, los siguientes: I. Los provenientes del arrendamiento o subarrendamiento y en general por otorgar a título oneroso el uso o goce temporal de bienes inmuebles, en cualquier otra forma. II. Los rendimientos de certificados de participación inmobiliaria no amortizables. | C73: Para los efectos de este Capítulo, los ingresos en crédito se declararán y se calculará el impuesto que les corresponda hasta el año de calendario en el que sean cobrados. Fundamento: Artículo 114 último párrafo LISR

Sheet PP PLATA (hidden)
B2: Pago provisional servicio de transporte terrestre de personas y entrega de bienes | I2: IR AL MENÚ
D4: Enero | E4: Febrero | F4: Marzo | G4: Abril | H4: Mayo | I4: Junio | J4: Julio | K4: Agosto | L4: Septiembre | M4: Octubre | N4: Noviembre | O4: Diciembre
C5: Ingresos obtenidos mediante intermediarios por servicios terrestres de pasajeros
B6: (+) | C6: Ingresos obtenidos mediante intermediarios por entrega de bienes
B7: (+) | C7: Ingresos obtenidos directamente del usuario por servicios terrestres de pasajeros
B8: (+) | C8: Ingresos obtenidos directamente del usuario por entrega de bienes
B9: (=) | C9: Ingresos totales del mes | D9: =IFERROR(SUM(D5:D8),0) -> 0 | E9: =IFERROR(SUM(E5:E8),0) -> 0 | F9: 0 | G9: 0 | H9: 0 | I9: 0 | J9: 0 | K9: 0 | L9: 0 | M9: 0 | N9: 0 | O9: 0
B10: (x) | C10: Tasa % | D10: 0.021 | E10: 0.021 | F10: 0.021 | G10: 0.021 | H10: 0.021 | I10: 0.021 | J10: 0.021 | K10: 0.021 | L10: 0.021 | M10: 0.021 | N10: 0.021 | O10: 0.021
B11: (=) | C11: ISR causado | D11: =IFERROR(ROUND(D9*D10,0),0) -> 0 | E11: =IFERROR(ROUND(E9*E10,0),0) -> 0 | F11: 0 | G11: 0 | H11: 0 | I11: 0 | J11: 0 | K11: 0 | L11: 0 | M11: 0 | N11: 0 | O11: 0
B12: (-) | C12: Retenciones por platafomras tecnológicas
B13: (=) | C13: ISR a cargo | D13: =IFERROR(IF(D11>=D12,ROUND(D11-D12,0),0),0) -> 0 | E13: =IFERROR(IF(E11>=E12,ROUND(E11-E12,0),0),0) -> 0 | F13: 0 | G13: 0 | H13: 0 | I13: 0 | J13: 0 | K13: 0 | L13: 0 | M13: 0 | N13: 0 | O13: 0
B16: Servicio de hospedaje
D17: Enero | E17: Febrero | F17: Marzo | G17: Abril | H17: Mayo | I17: Junio | J17: Julio | K17: Agosto | L17: Septiembre | M17: Octubre | N17: Noviembre | O17: Diciembre
C18: Ingresos obtenidos mediante intermediarios
B19: (+) | C19: Ingresos obtenidos directamente del usuario
B20: (=) | C20: Ingresos totales del mes | D20: =IFERROR(SUM(D18:D19),0) -> 0 | E20: =IFERROR(SUM(E18:E19),0) -> 0 | F20: 0 | G20: 0 | H20: 0 | I20: 0 | J20: 0 | K20: 0 | L20: 0 | M20: 0 | N20: 0 | O20: 0
B21: (x) | C21: Tasa % | D21: 0.04 | E21: 0.04 | F21: 0.04 | G21: 0.04 | H21: 0.04 | I21: 0.04 | J21: 0.04 | K21: 0.04 | L21: 0.04 | M21: 0.04 | N21: 0.04 | O21: 0.04
B22: (=) | C22: ISR causado | D22: =IFERROR(ROUND(D20*D21,0),0) -> 0 | E22: =IFERROR(ROUND(E20*E21,0),0) -> 0 | F22: 0 | G22: 0 | H22: 0 | I22: 0 | J22: 0 | K22: 0 | L22: 0 | M22: 0 | N22: 0 | O22: 0
B23: (-) | C23: Retenciones por platafomras tecnológicas
B24: (=) | C24: ISR a cargo | D24: =IFERROR(IF(D22>=D23,ROUND(D22-D23,0),0),0) -> 0
B27: Enajenación de bienes y/o prestación de servicios
D28: Enero | E28: Febrero | F28: Marzo | G28: Abril | H28: Mayo | I28: Junio | J28: Julio | K28: Agosto | L28: Septiembre | M28: Octubre | N28: Noviembre | O28: Diciembre
C29: Ingresos obtenidos mediante intermediarios por enajenación de bienes
B30: (+) | C30: Ingresos obtenidos mediante intermediarios por prestación de servicios
B31: (+) | C31: Ingresos obtenidos directamente del usuario por enajenación de bienes
B32: (+) | C32: Ingresos obtenidos directamente del usuario por prestación de servicios
B33: (=) | C33: Ingresos totales del mes | D33: =IFERROR(SUM(D29:D32),0) -> 0 | E33: =IFERROR(SUM(E29:E32),0) -> 0 | F33: 0 | G33: 0 | H33: 0 | I33: 0 | J33: 0 | K33: 0 | L33: 0 | M33: 0 | N33: 0 | O33: 0
B34: (x) | C34: Tasa % | D34: 0.01 | E34: 0.01 | F34: 0.01 | G34: 0.01 | H34: 0.01 | I34: 0.01 | J34: 0.01 | K34: 0.01 | L34: 0.01 | M34: 0.01 | N34: 0.01 | O34: 0.01
B35: (=) | C35: ISR causado | D35: =IFERROR(ROUND(D33*D34,0),0) -> 0 | E35: =IFERROR(ROUND(E33*E34,0),0) -> 0 | F35: 0 | G35: 0 | H35: 0 | I35: 0 | J35: 0 | K35: 0 | L35: 0 | M35: 0 | N35: 0 | O35: 0
B36: (-) | C36: Retenciones por platafomras tecnológicas
B37: (=) | C37: ISR a cargo | D37: =IFERROR(IF(D35>=D36,ROUND(D35-D36,0),0),0) -> 0 | E37: =IFERROR(IF(E35>=E36,ROUND(E35-E36,0),0),0) -> 0 | F37: 0 | G37: 0 | H37: 0 | I37: 0 | J37: 0 | K37: 0 | L37: 0 | M37: 0 | N37: 0 | O37: 0

Sheet PF RESICO (hidden)
B2: Solo capture información en las celdas de color verde
B4: Ejercicio | F4: IR AL MENÚ
B5: Mes en el que ya no puede tributar en el RESICO
B7: Los contribuyentes que en el ejercicio inmediato anterior, a aquél en el que se dé el supuesto de salida a que se refiere esta regla, hayan cumplido con sus obligaciones fiscales en términos del Título IV, Capítulo II, Sección IV, podrán optar por presentar los pagos provisionales a que se refiere el párrafo anterior, únicamente por los meses que restan del ejercicio fiscal de que se trate, así como presentar la declaración anual por los ingresos obtenidos en dichos meses, para lo cual no se requiere presentar las declaraciones de los meses anteriores, cuyos pagos efectuados en el Régimen Simplificado de Confianza, se hayan considerado como definitivos. Fundamento: Regla 3.13.5 fracción I RMF 2025
B10: Ingresos | C10: Enero | D10: Febrero | E10: Marzo | F10: Abril | G10: Mayo | H10: Junio | I10: Julio | J10: Agosto | K10: Septiembre | L10: Octubre | M10: Noviembre | N10: Diciembre
B11: Actividades empresariales
B12: Servicios profesionales
B13: Arrendamiento de inmuebles
B14: (=) Ingresos del mes | C14: =SUM(C11:C13) -> 0 | D14: =SUM(D11:D13) -> 0 | E14: 0 | F14: 0 | G14: 0 | H14: 0 | I14: 0 | J14: 0 | K14: 0 | L14: 0 | M14: 0 | N14: 0
B15: (x) Tasa de ISR | C15: =IFERROR(IF(VLOOKUP(C$10,PERIODO,2,FALSE)<VLOOKUP($C$5,PERIODO,2,FALSE),VLOOKUP(C14,TABLAR,3),""),"") -> 
B16: (=) ISR causado | C16: =IFERROR(IF(VLOOKUP(C$10,PERIODO,2,FALSE)<VLOOKUP($C$5,PERIODO,2,FALSE),ROUND(C14*C15,2),""),"") -> 
B18: (=) Ingresos del mes | C18: =IFERROR(IF(VLOOKUP(C$10,PERIODO,2,FALSE)>=VLOOKUP($C$5,PERIODO,2,FALSE),C14,""),"") -> 
B19: (=) Ingresos del periodo | C19: =IFERROR(IF(VLOOKUP(C$10,PERIODO,2,FALSE)>=VLOOKUP($C$5,PERIODO,2,FALSE),SUMIF($C$18:C18,">0"),""),"") ->  | D19: =IFERROR(IF(VLOOKUP(D$10,PERIODO,2,FALSE)>=VLOOKUP($C$5,PERIODO,2,FALSE),SUMIF($C$18:D18,">0"),""),"") ->  | E19: =IFERROR(IF(VLOOKUP(E$10,PERIODO,2,FALSE)>=VLOOKUP($C$5,PERIODO,2,FALSE),SUMIF($C$18:E18,">0"),""),"") ->  | F19: =IFERROR(IF(VLOOKUP(F$10,PERIODO,2,FALSE)>=VLOOKUP($C$5,PERIODO,2,FALSE),SUMIF($C$18:F18,">0"),""),"") ->  | G19: =IFERROR(IF(VLOOKUP(G$10,PERIODO,2,FALSE)>=VLOOKUP($C$5,PERIODO,2,FALSE),SUMIF($C$18:G18,">0"),""),"") ->  | H19: =IFERROR(IF(VLOOKUP(H$10,PERIODO,2,FALSE)>=VLOOKUP($C$5,PERIODO,2,FALSE),SUMIF($C$18:H18,">0"),""),"") ->  | I19: =IFERROR(IF(VLOOKUP(I$10,PERIODO,2,FALSE)>=VLOOKUP($C$5,PERIODO,2,FALSE),SUMIF($C$18:I18,">0"),""),"") ->  | J19: =IFERROR(IF(VLOOKUP(J$10,PERIODO,2,FALSE)>=VLOOKUP($C$5,PERIODO,2,FALSE),SUMIF($C$18:J18,">0"),""),"") ->  | K19: =IFERROR(IF(VLOOKUP(K$10,PERIODO,2,FALSE)>=VLOOKUP($C$5,PERIODO,2,FALSE),SUMIF($C$18:K18,">0"),""),"") ->  | L19: =IFERROR(IF(VLOOKUP(L$10,PERIODO,2,FALSE)>=VLOOKUP($C$5,PERIODO,2,FALSE),SUMIF($C$18:L18,">0"),""),"") ->  | M19: =IFERROR(IF(VLOOKUP(M$10,PERIODO,2,FALSE)>=VLOOKUP($C$5,PERIODO,2,FALSE),SUMIF($C$18:M18,">0"),""),"") ->  | N19: =IFERROR(IF(VLOOKUP(N$10,PERIODO,2,FALSE)>=VLOOKUP($C$5,PERIODO,2,FALSE),SUMIF($C$18:N18,">0"),""),"") -> 
B21: (-) Deducciones autorizadas
B22: Compras
B23: Gastos
B24: Depreciación fiscal
B25: Salarios deducibles
B26: Pérdida en venta de activo fijo
B27: Otros
B28: (=) Deducciones del mes | C28: =IFERROR(IF(VLOOKUP(C$10,PERIODO,2,FALSE)>=VLOOKUP($C$5,PERIODO,2,FALSE),SUM(C22:C27),""),"") -> 
B29: (=) Deducciones del periodo | C29: =IFERROR(IF(VLOOKUP(C$10,PERIODO,2,FALSE)>=VLOOKUP($C$5,PERIODO,2,FALSE),SUMIF($C$28:C28,">0"),""),"") ->  | D29: =IFERROR(IF(VLOOKUP(D$10,PERIODO,2,FALSE)>=VLOOKUP($C$5,PERIODO,2,FALSE),SUMIF($C$28:D28,">0"),""),"") ->  | E29: =IFERROR(IF(VLOOKUP(E$10,PERIODO,2,FALSE)>=VLOOKUP($C$5,PERIODO,2,FALSE),SUMIF($C$28:E28,">0"),""),"") ->  | F29: =IFERROR(IF(VLOOKUP(F$10,PERIODO,2,FALSE)>=VLOOKUP($C$5,PERIODO,2,FALSE),SUMIF($C$28:F28,">0"),""),"") ->  | G29: =IFERROR(IF(VLOOKUP(G$10,PERIODO,2,FALSE)>=VLOOKUP($C$5,PERIODO,2,FALSE),SUMIF($C$28:G28,">0"),""),"") ->  | H29: =IFERROR(IF(VLOOKUP(H$10,PERIODO,2,FALSE)>=VLOOKUP($C$5,PERIODO,2,FALSE),SUMIF($C$28:H28,">0"),""),"") ->  | I29: =IFERROR(IF(VLOOKUP(I$10,PERIODO,2,FALSE)>=VLOOKUP($C$5,PERIODO,2,FALSE),SUMIF($C$28:I28,">0"),""),"") ->  | J29: =IFERROR(IF(VLOOKUP(J$10,PERIODO,2,FALSE)>=VLOOKUP($C$5,PERIODO,2,FALSE),SUMIF($C$28:J28,">0"),""),"") ->  | K29: =IFERROR(IF(VLOOKUP(K$10,PERIODO,2,FALSE)>=VLOOKUP($C$5,PERIODO,2,FALSE),SUMIF($C$28:K28,">0"),""),"") ->  | L29: =IFERROR(IF(VLOOKUP(L$10,PERIODO,2,FALSE)>=VLOOKUP($C$5,PERIODO,2,FALSE),SUMIF($C$28:L28,">0"),""),"") ->  | M29: =IFERROR(IF(VLOOKUP(M$10,PERIODO,2,FALSE)>=VLOOKUP($C$5,PERIODO,2,FALSE),SUMIF($C$28:M28,">0"),""),"") ->  | N29: =IFERROR(IF(VLOOKUP(N$10,PERIODO,2,FALSE)>=VLOOKUP($C$5,PERIODO,2,FALSE),SUMIF($C$28:N28,">0"),""),"") -> 
B31: (=) Utilidad fiscal | C31: =IFERROR(IF(VLOOKUP(C$10,PERIODO,2,FALSE)>=VLOOKUP($C$5,PERIODO,2,FALSE),IF(C13>0,IF(C18>=C28,C18-C28,0),IF(C19>=C29,C19-C29,0)),""),"") -> 
B32: (-) PTU pagada
B33: (-) Pérdidas fiscales
B34: (=) Base gravable
B35: ISR causado | C35: =IFERROR(IF(VLOOKUP(C$10,PERIODO,2,FALSE)>=VLOOKUP($C$5,PERIODO,2,FALSE),ROUND(((C31-VLOOKUP(C31,IF(C13="",INDIRECT("T"&C$10),TENERO),1))*VLOOKUP(C31,IF(C13="",INDIRECT("T"&C$10),TENERO),4)%)+VLOOKUP(C31,IF(C13="",INDIRECT("T"&C$10),TENERO),3),0),""),"") -> 
B36: (-) Retención de ISR
B37: (-) Pagos provisionales pagados con ant.
B38: (=) ISR por pagar | C38: =IFERROR(IF(C19="",IF(C16>=C36,C16-C36,0),IF(C35>=(C36+C37),C35-C36-C37,0)),"") ->  | D38: =IFERROR(IF(D19="",IF(D16>=D36,D16-D36,0),IF(D35>=(D36+D37),D35-D36-D37,0)),"") -> 
B41: Los contribuyentes que no consideren como definitivos los pagos efectuados en el Régimen Simplificado de Confianza, deberán pagar el impuesto aplicando la tarifa establecida en el artículo 106, tercer párrafo de la Ley del ISR, a la diferencia que resulte de disminuir los ingresos obtenidos en el período comprendido desde el inicio del ejercicio y hasta el mes por el que se presenta la declaración, con las deducciones autorizadas correspondientes al mismo período, pudiendo disminuir los pagos efectuados en los meses del ejercicio en que se aplicaron las disposiciones del Régimen Simplificado de Confianza. En los meses subsecuentes, los contribuyentes deben pagar el impuesto respectivo de conformidad con las disposiciones del Título IV, Capítulo II, Sección I o Capítulo III de la Ley del ISR, según se trate. Fundamento: Regla 3.13.5 fracción II RMF 2025
B44: Ingresos | C44: Enero | D44: Febrero | E44: Marzo | F44: Abril | G44: Mayo | H44: Junio | I44: Julio | J44: Agosto | K44: Septiembre | L44: Octubre | M44: Noviembre | N44: Diciembre
B45: Actividades empresariales
B46: Servicios profesionales
B47: Arrendamiento de inmuebles
B48: (-) Ingresos de los meses que se declaro en RESICO
B49: (=) Ingresos del mes | C49: =SUM(C45:C48) -> 0 | D49: =SUM(D45:D48) -> 0 | E49: 0 | F49: 0 | G49: 0 | H49: 0 | I49: 0 | J49: 0 | K49: 0 | L49: 0 | M49: 0 | N49: 0
B50: (=) Ingresos del periodo | C50: =IFERROR(SUM($C$49:C49),0) -> 0 | D50: =IFERROR(SUM($C$49:D49),0) -> 0 | E50: =IFERROR(SUM($C$49:E49),0) -> 0 | F50: =IFERROR(SUM($C$49:F49),0) -> 0 | G50: =IFERROR(SUM($C$49:G49),0) -> 0 | H50: =IFERROR(SUM($C$49:H49),0) -> 0 | I50: =IFERROR(SUM($C$49:I49),0) -> 0 | J50: =IFERROR(SUM($C$49:J49),0) -> 0 | K50: =IFERROR(SUM($C$49:K49),0) -> 0 | L50: =IFERROR(SUM($C$49:L49),0) -> 0 | M50: =IFERROR(SUM($C$49:M49),0) -> 0 | N50: =IFERROR(SUM($C$49:N49),0) -> 0
B52: (-) Deducciones autorizadas
B53: Compras
B54: Gastos
B55: Depreciación fiscal
B56: Salarios deducibles
B57: Pérdida en venta de activo fijo
B58: Otros
B59: (=) Deducciones del mes | C59: =SUM(C53:C58) -> 0 | D59: =SUM(D53:D58) -> 0 | E59: 0 | F59: 0 | G59: 0 | H59: 0 | I59: 0 | J59: 0 | K59: 0 | L59: 0 | M59: 0 | N59: 0
B60: (=) Deducciones del periodo | C60: =IFERROR(SUM($C$59:C59),0) -> 0 | D60: =IFERROR(SUM($C$59:D59),0) -> 0 | E60: =IFERROR(SUM($C$59:E59),0) -> 0 | F60: =IFERROR(SUM($C$59:F59),0) -> 0 | G60: =IFERROR(SUM($C$59:G59),0) -> 0 | H60: =IFERROR(SUM($C$59:H59),0) -> 0 | I60: =IFERROR(SUM($C$59:I59),0) -> 0 | J60: =IFERROR(SUM($C$59:J59),0) -> 0 | K60: =IFERROR(SUM($C$59:K59),0) -> 0 | L60: =IFERROR(SUM($C$59:L59),0) -> 0 | M60: =IFERROR(SUM($C$59:M59),0) -> 0 | N60: =IFERROR(SUM($C$59:N59),0) -> 0
B61: (=) Utilidad fiscal | C61: =IFERROR(IF(VLOOKUP(C$10,PERIODO,2,FALSE)>=VLOOKUP($C$5,PERIODO,2,FALSE),IF(C47>0,IF(C49>=C59,C49-C59,0),IF(C50>=C60,C50-C60,0)),""),"") -> 
B62: (-) PTU pagada
B63: (-) Pérdidas fiscales
B64: (=) Base gravable | C64: =IFERROR(IF(C61>=(C62+C63),C61-C62-C63),0) -> 0 | D64: =IFERROR(IF(D61>=(D62+D63),D61-D62-D63),0) -> 0 | E64: 0 | F64: 0 | G64: 0 | H64: 0 | I64: 0 | J64: 0 | K64: 0 | L64: 0 | M64: 0 | N64: 0
B65: ISR causado | C65: =IFERROR(IF(VLOOKUP(C$10,PERIODO,2,FALSE)>=VLOOKUP($C$5,PERIODO,2,FALSE),ROUND(((C64-VLOOKUP(C64,IF(C47="",INDIRECT("T"&C$10),TENERO),1))*VLOOKUP(C64,IF(C47="",INDIRECT("T"&C$10),TENERO),4)%)+VLOOKUP(C64,IF(C47="",INDIRECT("T"&C$10),TENERO),3),0),""),"") -> 
B66: (-) Retención de ISR
B67: (-) Pagos provisionales
B68: (=) ISR por pagar | C68: =IFERROR(IF(C65>=(C66+C67),C65-C66-C67,0),"") ->  | D68: =IFERROR(IF(D65>=(D66+D67),D65-D66-D67,0),"") -> 

Sheet DEPRECIACIONF (hidden)
B3: Determinación de la depreciación fiscal | E3: IR AL MENÚ
B5: El monto original de la inversión comprende, además del precio del bien, los impuestos efectivamente pagados con motivo de la adquisición o importación del mismo a excepción del impuesto al valor agregado, así como las erogaciones por concepto de derechos, cuotas compensatorias, preparación del emplazamiento físico, instalación, montaje, manejo, entrega, fletes, transportes, acarreos, seguros contra riesgos en la transportación, manejo, comisiones sobre compras y honorarios a agentes o agencias aduanales, así como los relativos a los servicios contratados para que la inversión funcione. Tratándose de las inversiones en automóviles el monto original de la inversión también incluye el monto de las inversiones en equipo de blindaje. Fundamento: Artículo 31 segundo párrafo LISR
B7: Las inversiones únicamente se podrán deducir mediante la aplicación, en cada ejercicio, de los por cientos máximos autorizados por esta Ley, sobre el monto original de la inversión, con las limitaciones en deducciones que, en su caso, establezca esta Ley. Tratándose de ejercicios irregulares, la deducción correspondiente se efectuará en el por ciento que represente el número de meses completos del ejercicio en los que el bien haya sido utilizado por el contribuyente, respecto de doce meses. Cuando el bien se comience a utilizar después de iniciado el ejercicio y en el que se termine su deducción, ésta se efectuará con las mismas reglas que se aplican para los ejercicios irregulares. Fundamento: Artículo 31 primer párrafo LISR
B9: Fecha de adquisición
B10: Fecha de cálculo
B12: Precio del bien
B13: (+) Impuestos efectivamente pagados (excepto el IVA)
B14: (+) Pago de derechos
B15: (+) Cuotas compensatorias
B16: (+) Preparación del emplazamiento físico
B17: (+) Instalación
B18: (+) Montaje
B19: (+) Manejo
B20: (+) Entrega
B21: (+) Fletes
B22: (+) Transportes
B23: (+) Acareos
B24: (+) Seguro contra riesgos de la transportación
B25: (+) Comisiones sobre compras
B26: (+) Honorarios a agentes o agencias aduanales
B27: (+) Servicios contratados para que la inversión funcione
B28: (+) Equipo de blindaje en caso de automóviles
B29: (=) Monto original de la inversión | C29: =SUMIF(C12:C28,">0") -> 0
B30: (x) Tasa de depreciación
B31: (=) Depreciación fiscal | C31: =IFERROR(ROUND(C29*C30,2),0) -> 0
B32: (/) Meses del ejercicio
B33: (x) Meses completos de utilización | C33: =IFERROR(IF(YEAR(C9)<YEAR(C10),DATEDIF(DATE(YEAR(C10),1,1),C10,"ym"),IF(DAY(C9)>=1,DATEDIF(DATE(YEAR(C9),MONTH(EOMONTH(C9,1)),1),C10,"ym")+1,DATEDIF(C9,C10,"ym")+1)),"") -> 1
B34: (=) Depreciación fiscal proporcional | C34: =IFERROR(ROUND(C31/C32*C33,2),0) -> 0
B36: Los contribuyentes ajustarán la deducción determinada en los términos de los párrafos primero y sexto de este artículo, multiplicándola por el factor de actualización correspondiente al periodo comprendido desde el mes en el que se adquirió el bien y hasta el último mes de la primera mitad del periodo en el que el bien haya sido utilizado durante el ejercicio por el que se efectúe la deducción. Fundamento: Artículo 31 séptimo párrafo LISR Cuando sea impar el número de meses comprendidos en el periodo en el que el bien haya sido utilizado en el ejercicio, se considerará como último mes de la primera mitad de dicho periodo el mes inmediato anterior al que corresponda la mitad del periodo. Fundamento: Artículo 31 octavo párrafo LISR
B38: Determinación del factor de actualización
B39: ="INPC Último mes de la primera mitadad de utilización en el ejercicio ("&IFERROR(IF(YEAR(C9)<YEAR(C10),PROPER(TEXT(DATE(YEAR(C10),DATEDIF(DATE(YEAR(C10),1,1),EOMONTH(C10,1),"M")/2,1),"MMMM")),PROPER(TEXT(DATE(YEAR(C9),MONTH(C10)-(ROUND(DATEDIF(C9,EOMONTH(C10,1),"M")-(DATEDIF(C9,EOMONTH(C10,1),"M")/2),0)),1),"MMMM"))),"")&" "&IF(IFERROR(IF(YEAR(C9)<YEAR(C10),PROPER(TEXT(DATE(YEAR(C10),DATEDIF(DATE(YEAR(C10),1,1),EOMONTH(C10,1),"M")/2,1),"MMMM")),PROPER(TEXT(DATE(YEAR(C9),MONTH(C10)-(ROUND(DATEDIF(C9,EOMONTH(C10,1),"M")-(DATEDIF(C9,EOMONTH(C10,1),"M")/2),0)),1),"MMMM"))),"")="Diciembre",YEAR(C10)-1,YEAR(C10))&")" -> INPC Último mes de la primera mitadad de utilización en el ejercicio ( 1900) | C39: =IFERROR(INDEX(TINPC,MATCH(IF(IFERROR(IF(YEAR(C9)<YEAR(C10),PROPER(TEXT(DATE(YEAR(C10),DATEDIF(DATE(YEAR(C10),1,1),EOMONTH(C10,1),"M")/2,1),"MMMM")),PROPER(TEXT(DATE(YEAR(C9),MONTH(C10)-(ROUND(DATEDIF(C9,EOMONTH(C10,1),"M")-(DATEDIF(C9,EOMONTH(C10,1),"M")/2),0)),1),"MMMM"))),"")="Diciembre",YEAR(C10)-1,YEAR(C10)),INPCA,0),MATCH(IFERROR(IF(YEAR(C9)<YEAR(C10),PROPER(TEXT(DATE(YEAR(C10),DATEDIF(DATE(YEAR(C10),1,1),EOMONTH(C10,1),"M")/2,1),"MMMM")),PROPER(TEXT(DATE(YEAR(C9),MONTH(C10)-(ROUND(DATEDIF(C9,EOMONTH(C10,1),"M")-(DATEDIF(C9,EOMONTH(C10,1),"M")/2),0)),1),"MMMM"))),""),INPCM,0)),0) -> 0
B40: ="(/) INPC "&TEXT(C9,"mmmm")&" "&YEAR(C9) -> (/) INPC enero 1900 | C40: =IFERROR(INDEX(TINPC,MATCH(YEAR(C9),INPCA,0),MATCH(TEXT(C9,"MMMM"),INPCM,0)),"") -> 
B41: (=) Factor de actualización | C41: =IFERROR(IF((C39/C40)<1,1,ROUND(C39/C40,4)),"") -> 
B44: Fecha de adquisición | C44: =C9 -> 00:00:00
B45: Fecha de cálculo | C45: =C10 -> 00:00:00
B47: Precio del bien | C47: =IF(C12<>"",C12,"") -> 
B48: (+) Impuestos efectivamente pagados (excepto el IVA)
B49: (+) Pago de derechos
B50: (+) Cuotas compensatorias
B51: (+) Preparación del emplazamiento físico
B52: (+) Instalación
B53: (+) Montaje
B54: (+) Manejo
B55: (+) Entrega
B56: (+) Fletes
B57: (+) Transportes
B58: (+) Acareos
B59: (+) Seguro contra riesgos de la transportación
B60: (+) Comisiones sobre compras
B61: (+) Honorarios a agentes o agencias aduanales
B62: (+) Servicios contratados para que la inversión funcione
B63: (+) Equipo de blindaje en caso de automóviles
B64: (=) Monto original de la inversión | C64: =SUMIF(C47:C63,">0") -> 0
B65: (x) Tasa de depreciación
B66: (=) Depreciación fiscal | C66: =IFERROR(ROUND(C64*C65,2),0) -> 0
B67: (/) Meses del ejercicio
B68: (x) Meses completos de utilización | C68: =IF(C33<>"",C33,0) -> 1
B69: (=) Depreciación fiscal proporcional | C69: =IFERROR(ROUND(C66/C67*C68,2),0) -> 0
B70: (x) Factor de actualización | C70: =IF(C41>0,C41,"") -> 
B71: (=) Depreciación fiscal proporcional actualizada | C71: =IFERROR(ROUND(C69*C70,2),"") -> 

Sheet IVA (hidden)
B4: Fecha inicial
B5: Fecha final
B8: a IVA a cargo
B9: Valor de los actos o actividades gravados a la tasa del 8%
B10: CFDI emitidos de tipo ingreso con método de pago PUE
B11: CFDI emitidos con complemento de pago
B12: Monto por detallar
B13: Intereses cobrados a la tasa del 8%
B14: Regalías entre partes relacionadas a la tasa del 8%
B15: Otros actos o actividades gravados a la tasa del 8%
B17: Valor de los actos o actividades gravados a la tasa del 16%
B18: CFDI emitidos de tipo ingreso con método de pago PUE
B19: CFDI emitidos con complemento de pago
B20: Monto por detallar
B21: Intereses cobrados a la tasa del 16%
B22: Regalías entre partes relacionadas a la tasa del 16%
B23: Otros actos o actividades gravados a la tasa del 16%
B25: Valor de los actos o actividades gravados a la tasa del 0% exportación
B27: Valor de los actos o actividades gravados a la tasa del 0% otros
B28: CFDI emitidos de tipo ingreso con método de pago PUE
B29: CFDI emitidos con complemento de pago
B30: Monto por detallar
B31: Actividades agrícolas, ganaderas, silvícola o pesqueras a la tasa del 0%
B32: Otros actos o actividades gravados a la tasa del 0%
B34: Suma de los actos o actividades gravados
B36: Valor de los actos o actividades por los que no se deba pagar el impuesto (exentos)
B37: CFDI emitidos de tipo ingreso con método de pago PUE
B38: CFDI emitidos con complemento de pago
B39: Monto por detallar
B40: Enajenación de suelo y construcciones adheridas al suelo, destinadas o utilizadas para casa habitación
B41: Enajenación de libros, periódicos y revistas (no editados por el contribuyente)
B42: Regalías cobradas por autores
B43: Enajenación de bienes muebles usados, excepto los enajenados por empresas
B44: Enajenación de billetes y demás comprobantes de loterías, rifas, sorteos o juegos con apuestas y concursos de toda clase
B45: Servicios de enseñanza
B46: Servicio de transporte público terrestre de personas
B47: Operaciones financieras derivadas
B48: Venta de boletos para espectáculos públicos
B49: Servicios profesionales de medicina
B50: Uso o goce temporal de inmuebles para casa habitación y por fincas para fines agrícolas o ganaderos
B51: Otros ingresos exentos de IVA
B53: Valor de los actos o actividades no objeto del impuesto
B54: CFDI emitidos de tipo ingreso con método de pago PUE
B55: Complementos de pago
B57: IVA a cargo a la tasa del 8%
B58: IVA a cargo a la tasa del 16%
B59: Cantidad actualizada a reintegrarse derivada del ajuste
B60: Total de IVA a cargo
B62: a IVA ACREDITABLE
B63: Monto de los actos o actividades pagadas
B64: Total de los actos o actividades pagados a la tasa del 16% de IVA | F64: Total del IVA
B65: CFDI emitidos de tipo ingreso con método de pago PUE | F65: 89394.7
B66: CFDI emitidos con complemento de pago | F66: 2664
B67: Monto por detallar
B68: Intereses pagados a la tasa del 16%
B69: Regalías pagadas entre partes relacionadas a la tasa del 16%
B70: Otros actos o actividades pagados a la tasa del 16%
B72: Total de los actos o actividades pagados sujetos al estímulo de la región fronteriza | F72: Total del IVA
B73: CFDI emitidos de tipo ingreso con método de pago PUE | F73: 0
B74: CFDI emitidos con complemento de pago | F74: 2671
B75: Monto por detallar
B76: Región fronteriza norte
B77: Intereses pagados en la RFN
B78: Regalías pagadas entre partes relacionadas en la RFN
B79: Otros actos o actividades pagados en la RFN
B80: Región fronteriza sur
B81: Intereses pagados en la RFS
B82: Regalías pagadas entre partes relacionadas en la RFS
B83: Otros actos o actividades pagados en la RFS
B85: Total de los actos o actividades pagados en la importación de bienes y servicios a la tasa del 16% de IVA
B86: Monto por detallar
B87: Importación de bienes intangibles a la tasa del 16%
B88: Importación de uso o goce temporal de bienes intangibles a la tasa del 16%
B89: Importación de servicios a la tasa del 16%
B90: Otros actos o actividades pagados en la importación de bienes y servicios a la tasa del 16%
B92: Total de los demás actos o actividades pagados a la tasa del 0% de IVA
B94: Total de los actos o actividades pagados por los que no se pagará el IVA (exentos)
B95: Monto por detallar
B96: Adquisición de suelo y construcciones adheridas al suelo, destinadas o utilizadas para casa habitación
B97: Adquisición de libros, periódicos o revistas (No editados por el contribuyente)
B98: Regalías pagadas a los autores
B99: Adquisición de bienes muebles usados excepto los adquiridos de empresas
B100: Servicio de transporte público terrestre de personas
B101: Servicios profesionales de medicina
B102: Aseguramiento contra riesgos agropecuarios
B103: Uso o goce temporal de fincas para fines agrícolas o ganaderos
B104: Actos o actividades pagados en la importación de bienes y servicios exentos
B105: Otros actos o actividades pagados exentos
B107: Determinación del Impuesto al Valor Agregado acreditable
B108: IVA de actos o actividades pagados a la tasa del 16%
B109: IVA pagado sujeto al estímulo de la región fronteriza
B110: IVA de actos o actividades pagados en la importación de bienes y servicios a la tasa del 16%
B112: Total de IVA trasladado al contribuyente (Efectivamente pagado)
B113: Total de IVA acreditable por actividades gravadas a la tasa del 16%, 8% y 0%
B114: Total de IVA trasladado al contribuyente (efectivamente pagado)
B115: IVA trasladado por adquisiciones de bienes distintos de las inversiones, adquisición de servicios o por el uso o goce temporal de bienes que se utilizan exclusivamente para realizar actos o actividades gravados
B116: IVA trasladado por la adquisición de inversiones destinadas exclusivamente para realizar actos o actividades gravados
B117: IVA pagado en la importación por adquisición de bienes distintos de las inversiones, adquisición de servicios o por el uso o goce temporal de bienes que se utilizan exclusivamente para realizar actos o actividades gravados
B118: IVA pagado por la importación de inversiones destinadas exclusivamente para realizar actos o actividades gravados
B119: Total de IVA correspondiente a actos o actividades gravados
B121: Total de IVA acreditable por importación para realizar actos o actividades por los que no están obligados al pago del impuesto
B122: IVA trasladado o pagado en la importación por adquisición de bienes distintos de las inversiones, adquisición de servicios o por el uso o goce temporal de bienes destinados exclusivamente para realizar actos o actividades por los que no se está obligado al pago del impuesto
B123: IVA trasladado o pagado en la importación de inversiones destinadas exclusivamente para realizar actos o actividades por los que no se está obligado al pago del impuesto
B124: IVA de bienes utilizados indistintamente para realizar actos o actividades gravados y actos o actividades por los que no se está obligado al pago del impuesto
B125: IVA trasladado o pagado en la importación por adquisición de bienes distintos de las inversiones, adquisición de servicios o por el uso o goce temporal de bienes destinados exclusivamente para realizar actos o actividades por los que no se está obligado al pago del impuesto
B126: IVA trasladado o pagado en la importación de inversiones destinadas exclusivamente para realizar actos o actividades por los que no se está obligado al pago del impuesto
B127: IVA de bienes utilizados indistintamente para realizar actos o actividades gravados y actos o actividades por los que no se está obligado al pago del impuesto
B128: =IF(SUM(C108:C109)>SUM(C115:C123),"Selecciona la proporción de IVA que aplicarás","") -> 
B129: =IF(SUM(C108:C109)>SUM(C115:C123),"Proporción","") -> 
B131: IVA acreditable
B132: Monto acreditable actualizado a incrementar derivado del ajuste
B133: Total de IVA acreditable
B135: Determinación
B136: (=) Total de IVA a cargo
B137: (-) IVA retenido
B138: Monto por detallar
B139: Por enajenación de bienes
B140: Por otras operaciones
B142: Total de IVA acreditable
B143: Otras cantidades a cargo del contribuyente
B144: Otras cantidades a favor del contribuyente
B145: =IF(C136>=C142,"Cantidad a cargo","Saldo a favor") -> Cantidad a cargo
B146: =IF(C136>=C142,"Acreditamiento del saldo a favor de periodos anteriores (Sin exceder de la cantidad a cargo)","Devolución inmediata obtenida") -> Acreditamiento del saldo a favor de periodos anteriores (Sin exceder de la cantidad a cargo)
B147: =IF(C136>=C142,"Impuesto a cargo","Impuesto a favor") -> Impuesto a cargo
C148: =IFERROR(IF(C145=0,C136-C142-C143+C144+C146,""),0) -> 0

Sheet IVAR (hidden)
B2: Determinación del pago mensual del IVA persona moral RESICO
B4: Fecha inicial
B5: Fecha final
B7: Actividades gravadas a la tasa del 16%
B8: CFDI emitidos de tipo ingreso con método de pago PUE
B9: Complementos de pago
B10: Actividades gravadas a la tasa del 8%
B11: CFDI emitidos de tipo ingreso con método de pago PUE
B12: Complementos de pago
B13: Actividades gravadas a la tasa del 0%
B14: CFDI emitidos de tipo ingreso con método de pago PUE
B15: Complementos de pago
B16: Actividades exentas
B17: CFDI emitidos de tipo ingreso con método de pago PUE
B18: Complementos de pago
B19: Actividades no objeto del impuesto
B20: CFDI emitidos de tipo ingreso con método de pago PUE
B21: Complementos de pago
B22: IVA a cargo a la tasa del 8%
B23: IVA a cargo a la tasa del 16%
B24: (-) IVA no cobrado por devoluciones, descuentos y bonificaciones de ventas
B25: CFDI emitidos de tipo egreso con método de pago PUE a la tasa del 8%
B26: CFDI emitidos de tipo egreso con método de pago PUE a la tasa del 16%
B27: (-) IVA retenido
B28: CFDI emitidos de tipo ingreso con método de pago PUE
B29: Complementos de pago
B30: (-) IVA acreditable del periodo
B31: IVA pagado en gastos y adquisiciones
B32: CFDI recibidos de tipo ingreso con método de pago PUE bancarizado, uso G01 y G03 al 8%
B33: (+) CFDI recibidos de tipo complemento de pago bancarizado, uso G01 y G03 al 8%
B34: CFDI recibidos de tipo ingreso con método de pago PUE bancarizado, uso G01 y G03 al 16%
B35: (+) CFDI recibidos de tipo complemento de pago bancarizado, uso G01 y G03 al 16%
B36: IVA acreditable por actividades gravadas a tasa 16% u 8% y tasa 0%
B37: IVA acreditable por actividades mixtas
B38: IVA acreditable del periodo
B39: IVA no acreditable
B40: (+) IVA por devoluciones, descuentos y bonificaciones en gastos
B41: (=) Cantidad a cargo
B42: Impuesto a favor
B43: =IF(C42>0,"Devolución inmediata obtenida","") -> 
B44: =IF(C42>0,"Impuesto a favor","") ->  | C44: =IFERROR(IF(C42>0,C42-C43,""),"") -> 

Sheet IVAPFAEP (hidden)
B2: Determinación del pago mensual de IVA persona física actividad empresarial y profesional, arrendamiento de inmuebles
C4: Fecha inicial
C5: Fecha final
C7: IVA A CARGO
C8: Valor de los actos o actividades gravados a la tasa del 8%
C9: CFDI emitidos de tipo ingreso con método de pago PUE règimen 606
C10: CFDI emitidos con complemento de pago règimen 606
C11: CFDI emitidos de tipo ingreso con método de pago PUE règimen 612
C12: CFDI emitidos con complemento de pago règimen 612
C13: Monto por detallar
C14: Intereses cobrados a la tasa del 8%
C15: Regalías entre partes relacionadas a la tasa del 8%
C16: Otros actos o actividades gravados a la tasa del 8%
C18: Valor de los actos o actividades gravados a la tasa del 16%
C19: CFDI emitidos de tipo ingreso con método de pago PUE règimen 606
C20: CFDI emitidos con complemento de pago règimen 606
C21: CFDI emitidos de tipo ingreso con método de pago PUE règimen 612
C22: CFDI emitidos con complemento de pago règimen 612
C23: Monto por detallar
C24: Intereses cobrados a la tasa del 16%
C25: Regalías entre partes relacionadas a la tasa del 16%
C26: Otros actos o actividades gravados a la tasa del 16%
C28: Valor de los actos o actividades gravados a la tasa del 0% exportación
C30: Valor de los actos o actividades gravados a la tasa del 0% otros
C31: CFDI emitidos de tipo ingreso con método de pago PUE règimen 606
C32: CFDI emitidos con complemento de pago règimen 606
C33: CFDI emitidos de tipo ingreso con método de pago PUE règimen 612
C34: CFDI emitidos con complemento de pago règimen 612
C35: Monto por detallar
C36: Actividades agrícolas, ganaderas, silvícola o pesqueras a la tasa del 0%
C37: Otros actos o actividades gravados a la tasa del 0%
C39: Suma de los actos o actividades gravados
C41: Valor de los actos o actividades por los que no se deba pagar el impuesto (exentos)
C42: CFDI emitidos de tipo ingreso con método de pago PUE règimen 606
C43: CFDI emitidos con complemento de pago règimen 606
C44: CFDI emitidos de tipo ingreso con método de pago PUE règimen 612
C45: CFDI emitidos con complemento de pago règimen 612
C46: Monto por detallar
C47: Enajenación de suelo y construcciones adheridas al suelo, destinadas o utilizadas para casa habitación
C48: Enajenación de libros, periódicos y revistas (no editados por el contribuyente)
C49: Regalías cobradas por autores
C50: Enajenación de bienes muebles usados, excepto los enajenados por empresas
C51: Enajenación de billetes y demás comprobantes de loterías, rifas, sorteos o juegos con apuestas y concursos de toda clase
C52: Servicios de enseñanza
C53: Servicio de transporte público terrestre de personas
C54: Operaciones financieras derivadas
C55: Venta de boletos para espectáculos públicos
C56: Servicios profesionales de medicina
C57: Uso o goce temporal de inmuebles para casa habitación y por fincas para fines agrícolas o ganaderos
C58: Otros ingresos exentos de IVA
C60: Valor de los actos o actividades no objeto del impuesto
C62: IVA a cargo a la tasa del 8%
C63: IVA a cargo a la tasa del 16%
C64: Cantidad actualizada a reintegrarse derivada del ajuste
C65: Total de IVA a cargo
C67: IVA ACREDITABLE
C68: Monto de los actos o actividades pagadas
C69: Valor de los actos o actividades pagados a la tasa del 8%
C70: CFDI recibidos con método de pago PUE bancarizados
C71: CFDI recibidos con complemento de pago
C72: Detalle del valor de los actos o catividades pagados a la tasa del 16%
C73: Monto a detallar
C74: Intereses pagados a la tasa del 8%
C75: Regalias pagadas entre partes relacionadas a la tasa del 8%
C76: Otros actos o actividades pagados a la tasa del 8%
C77: Valor de los actos o actividades pagados a la tasa del 16%
C78: CFDI recibidos con método de pago PUE bancarizados
C79: CFDI recibidos con complemento de pago
C80: Detalle del valor de los actos o catividades pagados a la tasa del 16%
C81: Monto a detallar
C82: Intereses pagados a la tasa del 8%
C83: Regalias pagadas entre partes relacionadas a la tasa del 8%
C84: Otros actos o actividades pagados a la tasa del 8%
C85: Valor de los actos o actividades pagados en la importación de bienes y servicios a la tasa del 16% de IVA
C86: Monto por detallar
C87: Importación de bienes intangibles a la tasa del 16%
C88: Importación de uso o goce temporal de bienes intangibles a la tasa del 16%
C89: Importación de servicios a la tasa del 16%
C90: Otros actos o actividades pagados en la importación de bienes y servicios a la tasa del 16%
C91: Valor de los demás actos o actividades pagados a la tasa del 0% de IVA
C92: Valor de los actos o actividades pagados por los que no se pagará el IVA (exentos)
C93: Monto por detallar
C94: Adquisición de suelo y construcciones adheridas al suelo, destinadas o utilizadas para casa habitación
C95: Adquisición de libros, periódicos o revistas (No editados por el contribuyente)
C96: Regalías pagadas a los autores
C97: Adquisición de bienes muebles usados excepto los adquiridos de empresas
C98: Servicio de transporte público terrestre de personas
C99: Servicios profesionales de medicina
C100: Aseguramiento contra riesgos agropecuarios
C101: Uso o goce temporal de fincas para fines agrícolas o ganaderos
C102: Actos o actividades pagados en la importación de bienes y servicios exentos
C103: Otros actos o actividades pagados exentos
C105: Determinación del Impuesto al Valor Agregado acreditable
C106: IVA de actos o actividades pagados a la tasa del 8%
C107: IVA de actos o actividades pagados a la tasa del 16%
C108: IVA de actos o actividades pagados en la importación de bienes y servicios a la tasa del 16%
C109: IVA trasladado al contribuyente (efectivamente pagado)
C110: Total de IVA acreditable por actividades gravadas a la tasa del 16%, 8% y 0%
C111: Total de iva trasladado al contribuyente (efectivamente pagado)
C112: Total de IVA acreditable por importación para realizar actos o actividades por los que no están obligados al pago del impuesto
C113: IVA correspondiente a actos o actividades por los que no se está obligado al pago del impuesto
C114: IVA pagado utilizado indistintamente para realizar actos o actividades gravados y actos o actividades por los que no se está obligado al pago del impuesto
C115: Selecciona la proporción de IVA que aplicarás
C116: Proporción de IVA
C117: IVA acreditable de bienes utilizados indistintamente para realizar actos o actividades gravados y actos o actividades por los que no se está obligado al pago del impuesto
C118: IVA acreditable
C119: Monto acreditable actualizado a incrementar derivado del ajuste
C120: Total de IVA acreditable
C122: DETERMINACIÓN
C123: Total de IVA a cargo
C124: (-) IVA retenido
C125: Monto por detallar
C126: Por enajenación de bienes
C127: Por otras operaciones
C128: Total de IVA acreditable
C129: Otras cantidades a cargo del contribuyente
C130: Otras cantidades a favor del contribuyente
C131: Cantidad a cargo
C132: Acreditamiento del saldo a favor de periodos anteriores (Sin exceder de la cantidad a cargo)
C133: Impuesto a cargo
C134: Saldo a favor
C135: Devolución inmediata obtenida
C136: Impuesto a favor

Sheet IVAP (hidden)
B3: Determinación del pago mensual de IVA plataformas tecnológicas | H3: IR AL MENÚ
C5: Enero | D5: Febrero | E5: Marzo | F5: Abril | G5: Mayo | H5: Junio | I5: Julio | J5: Agosto | K5: Septiembre | L5: Octubre | M5: Noviembre | N5: Diciembre
B6: Ingreos obtenidos mediante intermediarios
B7: (+) Ingresos obtenidos directamente del usuario
B8: (=) Ingresos totales del mes | C8: =SUM(C6:C7) -> 0 | D8: =SUM(D6:D7) -> 0 | E8: 0 | F8: 0 | G8: 0 | H8: 0 | I8: 0 | J8: 0 | K8: 0 | L8: 0 | M8: 0 | N8: 0
B9: (x) Tasa % | C9: 0.16 | D9: 0.16 | E9: 0.16 | F9: 0.16 | G9: 0.16 | H9: 0.16 | I9: 0.16 | J9: 0.16 | K9: 0.16 | L9: 0.16 | M9: 0.16 | N9: 0.16
B10: (=) IVA a cargo a la tasa del 16% | C10: =IFERROR(ROUND(C8*C9,0),0) -> 0 | D10: =IFERROR(ROUND(D8*D9,0),0) -> 0 | E10: 0 | F10: 0 | G10: 0 | H10: 0 | I10: 0 | J10: 0 | K10: 0 | L10: 0 | M10: 0 | N10: 0
B11: (-) IVA acreditable
B12: (-) IVA retenido
B13: (=) Cantidad a cargo | C13: =IFERROR(IF(C10>=(C11+C12),ROUND(C10-C11-C12,0),""),"") -> 0 | D13: =IFERROR(IF(D10>=(D11+D12),ROUND(D10-D11-D12,0),""),"") -> 0 | E13: 0 | F13: 0 | G13: 0 | H13: 0 | I13: 0 | J13: 0 | K13: 0 | L13: 0 | M13: 0 | N13: 0
B14: (-) Acreditamiento de saldo a favor de periodos anteriores (sin exceder de cantidad a cargo)
B15: (=) Impuesto a cargo | C15: =IFERROR(IF(C13>=C14,C13-C14,""),"") -> 0 | D15: =IFERROR(IF(D13>=D14,D13-D14,""),"") -> 0 | E15: 0 | F15: 0 | G15: 0 | H15: 0 | I15: 0 | J15: 0 | K15: 0 | L15: 0 | M15: 0 | N15: 0
B17: (=) Impuesto a favor | C17: =IFERROR(IF((C11+C12)>C10,C11+C12-C10,""),"") ->  | D17: =IFERROR(IF((D11+D12)>D10,D11+D12-D10,""),"") -> 
B21: Determinación del pago mensual de IVA (pago definitivo)
B23: Servicio de transporte terrestre de personas y entrega de bienes | C23: Enero | D23: Febrero | E23: Marzo | F23: Abril | G23: Mayo | H23: Junio | I23: Julio | J23: Agosto | K23: Septiembre | L23: Octubre | M23: Noviembre | N23: Diciembre
B24: Ingresos obtenidos directamente del usuario por servicios terrestres de pasajeros
B25: (+) Ingresos obtenidos directamente del usuario por entrega de bienes
B26: (=) Ingresos totales del mes | C26: =SUM(C24:C25) -> 0 | D26: =SUM(D24:D25) -> 0 | E26: 0 | F26: 0 | G26: 0 | H26: 0 | I26: 0 | J26: 0 | K26: 0 | L26: 0 | M26: 0 | N26: 0
B27: (x) Tasa % | C27: 0.08 | D27: 0.08 | E27: 0.08 | F27: 0.08 | G27: 0.08 | H27: 0.08 | I27: 0.08 | J27: 0.08 | K27: 0.08 | L27: 0.08 | M27: 0.08 | N27: 0.08
B28: (=) IVA a cargo | C28: =IFERROR(ROUND(C26*C27,0),0) -> 0 | D28: =IFERROR(ROUND(D26*D27,0),0) -> 0 | E28: 0 | F28: 0 | G28: 0 | H28: 0 | I28: 0 | J28: 0 | K28: 0 | L28: 0 | M28: 0 | N28: 0
B31: Servicio de hospedaje | C31: Enero | D31: Febrero | E31: Marzo | F31: Abril | G31: Mayo | H31: Junio | I31: Julio | J31: Agosto | K31: Septiembre | L31: Octubre | M31: Noviembre | N31: Diciembre
B32: Ingresos obtenidos directamente del usuario
B33: (=) Ingresos totales del mes | C33: =SUM(C32) -> 0 | D33: =SUM(D32) -> 0 | E33: 0 | F33: 0 | G33: 0 | H33: 0 | I33: 0 | J33: 0 | K33: 0 | L33: 0 | M33: 0 | N33: 0
B34: (x) Tasa % | C34: 0.08 | D34: 0.08 | E34: 0.08 | F34: 0.08 | G34: 0.08 | H34: 0.08 | I34: 0.08 | J34: 0.08 | K34: 0.08 | L34: 0.08 | M34: 0.08 | N34: 0.08
B35: (=) IVA a cargo | C35: =IFERROR(ROUND(C33*C34,0),0) -> 0 | D35: =IFERROR(ROUND(D33*D34,0),0) -> 0 | E35: 0 | F35: 0 | G35: 0 | H35: 0 | I35: 0 | J35: 0 | K35: 0 | L35: 0 | M35: 0 | N35: 0
B39: Enajenación de bienes y/o prestación de servicios | C39: Enero | D39: Febrero | E39: Marzo | F39: Abril | G39: Mayo | H39: Junio | I39: Julio | J39: Agosto | K39: Septiembre | L39: Octubre | M39: Noviembre | N39: Diciembre
B40: Ingresos obtenidos directamente del usuario por enajenación de bienes
B41: (+) Ingresos obtenidos directamente del usuario por prestación de servicios
B42: (=) Ingresos totales del mes | C42: =SUM(C41) -> 0 | D42: =SUM(D41) -> 0 | E42: 0 | F42: 0 | G42: 0 | H42: 0 | I42: 0 | J42: 0 | K42: 0 | L42: 0 | M42: 0 | N42: 0
B43: (x) Tasa % | C43: 0.08 | D43: 0.08 | E43: 0.08 | F43: 0.08 | G43: 0.08 | H43: 0.08 | I43: 0.08 | J43: 0.08 | K43: 0.08 | L43: 0.08 | M43: 0.08 | N43: 0.08
B44: (=) IVA a cargo | C44: =IFERROR(ROUND(C42*C43,0),0) -> 0 | D44: =IFERROR(ROUND(D42*D43,0),0) -> 0 | E44: 0 | F44: 0 | G44: 0 | H44: 0 | I44: 0 | J44: 0 | K44: 0 | L44: 0 | M44: 0 | N44: 0

Sheet IVARPF (hidden)
F4: IR AL MENÚ
C7: Enero | D7: Febrero | E7: Marzo | F7: Abril | G7: Mayo | H7: Junio | I7: Julio | J7: Agosto | K7: Septiembre | L7: Octubre | M7: Noviembre | N7: Diciembre
B8: IVA A CARGO
B9: Actividades gravadas a la tasa del 16% | C9: =SUM(C10:C11) -> 0 | D9: =SUM(D10:D11) -> 0 | E9: 0 | F9: 0 | G9: 0 | H9: 0 | I9: 0 | J9: 0 | K9: 0 | L9: 0 | M9: 0 | N9: 0
B10: CFDI emitidos de tipo ingreso con método de pago PUE
B11: CFDI emitidos con complemento de pago
B13: Actividades gravadas a la tasa del 0% | C13: =SUM(C14:C15) -> 0 | D13: =SUM(D14:D15) -> 0 | E13: 0 | F13: 0 | G13: 0 | H13: 0 | I13: 0 | J13: 0 | K13: 0 | L13: 0 | M13: 0 | N13: 0
B14: CFDI emitidos de tipo ingreso con método de pago PUE
B15: CFDI emitidos con complemento de pago
B16: Monto por detallar
B17: Actividades nacionales gravadas a la tasa del 0%
B18: Actividades de exportación gravadas a la tasa del 0%
B20: Actividades exentas | C20: =SUM(C21:C22) -> 0 | D20: =SUM(D21:D22) -> 0 | E20: 0 | F20: 0 | G20: 0 | H20: 0 | I20: 0 | J20: 0 | K20: 0 | L20: 0 | M20: 0 | N20: 0
B21: CFDI emitidos de tipo ingreso con método de pago PUE
B22: CFDI emitidos con complemento de pago
B24: Valor de los actos o actividades no objeto del impuesto | C24: =SUM(C25:C26) -> 0 | D24: =SUM(D25:D26) -> 0 | E24: 0 | F24: 0 | G24: 0 | H24: 0 | I24: 0 | J24: 0 | K24: 0 | L24: 0 | M24: 0 | N24: 0
B25: CFDI emitidos de tipo ingreso con método de pago PUE
B26: Complementos de pago
B28: IVA a cargo a la tasa del 16% | C28: =IFERROR(ROUND(C9*0.16,0),0) -> 0 | D28: 0 | E28: 0 | F28: 0 | G28: 0 | H28: 0 | I28: 0 | J28: 0 | K28: 0 | L28: 0 | M28: 0 | N28: 0
B29: Total de IVA a cargo | C29: =SUM(C28:C28) -> 0 | D29: 0 | E29: 0 | F29: 0 | G29: 0 | H29: 0 | I29: 0 | J29: 0 | K29: 0 | L29: 0 | M29: 0 | N29: 0
B30: IVA no cobrado por devoluciones, descuentos y bonificaciones de ventas | C30: =C31 -> 0 | D30: =D31 -> 0 | E30: 0 | F30: 0 | G30: 0 | H30: 0 | I30: 0 | J30: 0 | K30: 0 | L30: 0 | M30: 0 | N30: 0
B31: CFDI emitidos de tipo egreso con método de pago PUE
B32: IVA retenido | C32: =IFERROR(C33+C34,0) -> 0 | D32: =IFERROR(D33+D34,0) -> 0 | E32: 0 | F32: 0 | G32: 0 | H32: 0 | I32: 0 | J32: 0 | K32: 0 | L32: 0 | M32: 0 | N32: 0
B33: CFDI emitidos de tipo ingreso con método de pago PUE
B34: Complementos de pago
B35: IVA acreditable del periodo | C35: =C83 -> 0 | D35: =D83 -> 0 | E35: 0 | F35: 0 | G35: 0 | H35: 0 | I35: 0 | J35: 0 | K35: 0 | L35: 0 | M35: 0 | N35: 0
B36: IVA pagado en gastos y adquisiciones | C36: =IFERROR(ROUND(SUM(C37:C37,C59:C59),0),0) -> 0 | D36: 0 | E36: 0 | F36: 0 | G36: 0 | H36: 0 | I36: 0 | J36: 0 | K36: 0 | L36: 0 | M36: 0 | N36: 0
B37: CFDI emitidos de tipo ingreso con método de pago PUE, uso G01, G03 y bancarizado (IVA 16%)
B38: 1 Efectivo (No)
B39: 2 Cheque nominativo (Sí)
B40: 3 Transferencia electrónica de fondos (Sí)
B41: 4 Tarjeta de crédito (Sí)
B42: 5 Monedero electrónico (Sí)
B43: 6 Dinero electrónico (Sí)
B44: 8 Vales de despensa (No)
B45: 12 Dación en pago (No)
B46: 13 Pago por subrogación (No)
B47: 14 Pago por consignación (No)
B48: 15 Condonación (No)
B49: 17 Compensación (No)
B50: 23 Novación (No)
B51: 24 Confusión (No)
B52: 25 Remisión de deuda (No)
B53: 26 Prescripción o caducidad (No)
B54: 27 A satisfacción del acreedor (No)
B55: 28 Tarjeta de débito (Sí)
B56: 29 Tarjeta de servicios (Sí)
B57: 30 Aplicación de anticipos (No)
B58: 31 Intermediario pagos (No)
B59: CFDI emitidos con complemento de pago, uso G01, G03 y bancarizado (IVA 8%)
B60: 1 Efectivo (No)
B61: 2 Cheque nominativo (Sí)
B62: 3 Transferencia electrónica de fondos (Sí)
B63: 4 Tarjeta de crédito (Sí)
B64: 5 Monedero electrónico (Sí)
B65: 6 Dinero electrónico (Sí)
B66: 8 Vales de despensa (No)
B67: 12 Dación en pago (No)
B68: 13 Pago por subrogación (No)
B69: 14 Pago por consignación (No)
B70: 15 Condonación (No)
B71: 17 Compensación (No)
B72: 23 Novación (No)
B73: 24 Confusión (No)
B74: 25 Remisión de deuda (No)
B75: 26 Prescripción o caducidad (No)
B76: 27 A satisfacción del acreedor (No)
B77: 28 Tarjeta de débito (Sí)
B78: 29 Tarjeta de servicios (Sí)
B79: 30 Aplicación de anticipos (No)
B80: 31 Intermediario pagos (No)
B81: IVA acreditable por actividades gravadas a tasa 16% u 8% y tasa 0%
B82: IVA acreditable por actividades mixtas
B83: IVA acreditable del periodo | C83: =SUM(C81:C82) -> 0 | D83: =SUM(D81:D82) -> 0 | E83: 0 | F83: 0 | G83: 0 | H83: 0 | I83: 0 | J83: 0 | K83: 0 | L83: 0 | M83: 0 | N83: 0
B85: IVA por devoluciones, descuentos y bonificaciones en gastos | C85: =C86 -> 0 | D85: =D86 -> 0 | E85: 0 | F85: 0 | G85: 0 | H85: 0 | I85: 0 | J85: 0 | K85: 0 | L85: 0 | M85: 0 | N85: 0
B86: CFDI recibidos de tipo egreso con método de pago PUE
B87: Cantidad a cargo | C87: =IFERROR(IF(C29>=(C83-C85),C29-C83+C85,""),"") -> 0 | D87: =IFERROR(IF(D29>=(D83-D85),D29-D83+D85,""),"") -> 0 | E87: 0 | F87: 0 | G87: 0 | H87: 0 | I87: 0 | J87: 0 | K87: 0 | L87: 0 | M87: 0 | N87: 0
B88: (-) Acreditamiento del saldo a favor de periodos anteriores (Sin exceder de la cantidad a cargo)
B89: (=) Impuestos a cargo | C89: =IFERROR(IF(C87>=C88,C87-C88,""),"") -> 0 | D89: =IFERROR(IF(D87>=D88,D87-D88,""),"") -> 0 | E89: 0 | F89: 0 | G89: 0 | H89: 0 | I89: 0 | J89: 0 | K89: 0 | L89: 0 | M89: 0 | N89: 0
B90: (-) Compensaciones
B91: (-) Estímulos al impuesto a cargo | C91: =SUM(C92:C97) -> 0 | D91: =SUM(D92:D97) -> 0 | E91: 0 | F91: 0 | G91: 0 | H91: 0 | I91: 0 | J91: 0 | K91: 0 | L91: 0 | M91: 0 | N91: 0
B92: Estímulo a gasolinas en regiones cercanas a zona fronteriza
B93: Estímulo a gasolinas en zona fronteriza
B94: Estímulo complementario conbustibles
B95: Estímulo fiscal por el uso temporal de centros de convenciones y de exposiciones a residentes en el extranjero
B96: Estímulo fiscal por la importación oenajenación de jugos, néctares, concentrados de frutas o de verduras y de productos para beber
B97: Estímulo fiscal por la prestación de servicios de hoteleria y comercio a turistas extanjeros
B98: (=) Cantidad a pagar | C98: =IFERROR(IF(C89>=SUM(C90:C91),C89-C90-C91,""),"") -> 0 | D98: =IFERROR(IF(D89>=SUM(D90:D91),D89-D90-D91,""),"") -> 0 | E98: 0 | F98: 0 | G98: 0 | H98: 0 | I98: 0 | J98: 0 | K98: 0 | L98: 0 | M98: 0 | N98: 0
B100: (=) Impuesto a favor | C100: =IFERROR(IF((C83-C85)>C29,C83-C85-C29,""),"") ->  | D100: =IFERROR(IF((D83-D85)>D29,D83-D85-D29,""),"") -> 

Sheet DISMINUCION (hidden)
I2: IR AL MENÚ
B3: Ingresos por disminuir en pagos provisionales
A4: ① | B4: IEPS/ISAN cobrado no trasladado de manera expresa y por separado
A5: ② | B5: Ingresos acumulados en periodos anteriores
A6: ③ | B6: Ingresos del extranjero sujetos a retención o pago de impuestos
A7: ④ | B7: Ingresos exentos, derivados de las inversiones efectuadas por fondos de pensiones y jubilaciones constituidas en el extranjero
A8: ⑤ | B8: Ingresos facturados a cuenta de terceros
A9: ⑥ | B9: Ingreso facturados en los que se determinó ganancia por enajenación
A10: ⑦ | B10: Ingresos facturados en los que se detrminó ganancia por fluctuación cambiaria
A11: ⑧ | B11: Ingresos facturados no cobrados en el periodo (sociedades o asociaciones civiles
A12: ⑨ | B12: Ingresos facturados pendientes de cancelación con aceptación del receptor)
A13: ⑩ | B13: Por acumulación del cobro total o parcial del precio en el ejercicio
A18: ① | B18: Artículo 19 LIEPS.- Los contribuyentes a que se refiere esta Ley tienen, además de las obligaciones señaladas en otros artículos de la misma y en las demás disposiciones fiscales, las siguientes: II. Expedir comprobantes fiscales, sin el traslado en forma expresa y por separado del impuesto establecido en esta Ley, salvo tratándose de la enajenación de los bienes a que se refieren los incisos A), D), F), G), I) y J) de la fracción I del artículo 2o. de esta Ley, siempre que el adquirente sea a su vez contribuyente de este impuesto por dichos bienes y así lo solicite.
B19: Artículo 11 LISAN tercer párrafo Los fabricantes, ensambladores, distribuidores autorizados de automóviles o comerciantes en el ramo de vehículos, no harán la separación del monto de este impuesto en el documento que ampare la enajenación.
A21: ② | B21: En declaraciones anteriores se adiciono ingreso nominal por las cantidades que se disminuyeron en este campo
B22: El ingreso se acumulo con un CFDI de tipo ingreso por anticipo recibido
A24: ③ | B24: Artículo 14 séptimo párrafo LISR Los contribuyentes, para determinar los pagos provisionales a que se refiere el presente artículo, estarán a lo siguiente: a) No se considerarán los ingresos de fuente de riqueza ubicada en el extranjero que hayan sido objeto de retención por concepto de impuesto sobre la renta ni los ingresos atribuibles a sus establecimientos ubicados en el extranjero que estén sujetos al pago del impuesto sobre la renta en el país donde se encuentren ubicados estos establecimientos.
A26: ④ | B26: Artículo 272 RLISR. Para efectos del artículo 153 de la Ley, cuando los fondos de pensiones y jubilaciones constituidos en términos de la legislación del país de que se trate participen de manera directa en el capital de personas morales residentes en el extranjero, o bien, inviertan directamente en fondos de inversión residentes en el extranjero, los ingresos que obtengan directamente dichas personas morales o fondos de inversión por la enajenación u otorgamiento del uso o goce temporal de terrenos o construcciones adheridas al suelo ubicados en México, o por la enajenación de acciones cuyo valor provenga en más de un 50% de dichos conceptos, también estarán sujetos a la exención establecida en el artículo 153, párrafo noveno de la Ley. ........................
A28: ⑤ | B28: Expedición de CFDI por comisionistas y prestadores de servicios de cobranza 2.7.1.3. Para los efectos del artículo 29, primero y penúltimo párrafos y 29-A del CFF, así como 32, fracción III de la Ley del IVA, los contribuyentes que actúen como comisionistas o que presten servicios de cobranza, podrán expedir CFDI a nombre y por cuenta de los comitentes o prestatarios con los que tengan celebrado el contrato de comisión o prestación de servicios de cobranza, respecto de las operaciones que realicen en su calidad de comisionistas o prestadores de servicio de cobranza. Para estos efectos, los comprobantes deberán cumplir además de los requisitos a que se refieren los artículos 29 y 29-A del CFF, con la siguiente información: I. La clave en el RFC del comitente o del prestatario. II. Monto correspondiente a los actos o actividades realizados por cuenta del comitente o prestatario. III. Impuesto que se traslada o se retiene por cuenta del comitente o prestatario. IV. Tasa del impuesto que se traslada o se retiene por cuenta del comitente o prestatario. En el CFDI que se expida, se deberá incorporar la sección “AcuentaTerceros”. Con independencia de lo señalado en la presente regla, el comisionista o prestador de servicios estará obligado a expedir al comitente o prestatario el CFDI correspondiente a la comisión o prestación del servicio respectivo. Cuando los contribuyentes que hayan optado por aplicar esta regla, incumplan lo establecido en la misma, perderán el derecho de aplicar la facilidad que en la misma se detalla, siendo el comitente o el prestatario el responsable de la emisión del CFDI. CFF 29, 29-A, LIVA 32, RLIVA 35, RMF 2024 2.7.1.8.
A30: ⑥ | B30: Artículo 18 LISR. Para los efectos de este Título, se consideran ingresos acumulables, además de los señalados en otros artículos de esta Ley, los siguientes: IV. La ganancia derivada de la enajenación de activos fijos y terrenos, títulos valor, acciones, partes sociales o certificados de aportación patrimonial emitidos por sociedades nacionales de crédito, así como la ganancia realizada que derive de la fusión o escisión de sociedades y la proveniente de reducción de capital o de liquidación de sociedades mercantiles residentes en el extranjero, en las que el contribuyente sea socio o accionista.
A32: ⑦ | B32: Artículo 12 RLISR. Para efectos de los artículos 16 y 90 de la Ley, las personas morales y físicas residentes en México que se dediquen a la compra y venta de divisas, distintas a las casas de cambio, deberán acumular los ingresos determinados de conformidad con los artículos 8, 18, fracción IX, 44, 45, 46, 133 y 134 de la Ley, tomando en consideración sólo la ganancia efectivamente percibida y deberán estar soportados en la contabilidad del contribuyente. Lo anterior, con independencia de los demás ingresos que perciban.
H34: Complementos para incorporar información fiscal en los CFDI 2.7.1.8. Para los efectos del artículo 29, segundo párrafo, fracciones III y VI del CFF, el SAT publicará en su Portal los complementos que permitan a los contribuyentes de sectores o actividades específicas, incorporar requisitos fiscales en los CFDI que expidan. Los complementos que el SAT publique en su Portal, serán de uso obligatorio para los contribuyentes que les aplique, pasados treinta días naturales, contados a partir de su publicación en el citado Portal, salvo cuando exista alguna facilidad o disposición que establezca un periodo diferente o los libere de su uso. Para el registro de los datos solicitados en los referidos complementos, se deberán aplicar los criterios establecidos en las Guías de llenado que al efecto se publiquen en el citado Portal. CFF 29
A54: ⑧ | B54: Artículo 17 fracción I segundo párrafo LISR. Tratándose de los ingresos por la prestación de servicios personales independientes que obtengan las sociedades o asociaciones civiles y de ingresos por el servicio de suministro de agua potable para uso doméstico o de recolección de basura doméstica que obtengan los organismos descentralizados, los concesionarios, permisionarios o empresas autorizadas para proporcionar dichos servicios, se considera que los mismos se obtienen en el momento en que se cobre el precio o la contraprestación pactada.
A56: ⑨ | B56: Artículo 29-A CFF. Los comprobantes fiscales digitales a que se refiere el artículo 29 de este Código, deberán contener los siguientes requisitos: Cuarto párrafo Salvo que las disposiciones fiscales prevean un plazo menor, los comprobantes fiscales digitales por Internet sólo podrán cancelarse en el ejercicio en el que se expidan y siempre que la persona a favor de quien se expidan acepte su cancelación.
B57: Plazos para la cancelación de CFDI 2.7.1.47. Para los efectos del artículo 29-A, cuarto párrafo del CFF, la cancelación de los CFDI se podrá efectuar a más tardar en el mes en el cual se deba presentar la declaración anual del ISR correspondiente al ejercicio fiscal en el cual se expidió el citado comprobante. CFF 29-A
B58: Artículo 29-A CFF. Los comprobantes fiscales digitales a que se refiere el artículo 29 de este Código, deberán contener los siguientes requisitos: Sexto párrafo Cuando los contribuyentes cancelen comprobantes fiscales digitales por Internet que amparen ingresos, deberán justificar y soportar documentalmente el motivo de dicha cancelación, misma que podrá ser verificada por las autoridades fiscales en el ejercicio de las facultades establecidas en este Código.
A60: ⑩ | B60: Artículo 17 LISR. III. Obtención de ingresos provenientes de contratos de arrendamiento financiero, los contribuyentes podrán optar por considerar como ingreso obtenido en el ejercicio el total del precio pactado o la parte del precio exigible durante el mismo.

Sheet DIOT (hidden)
B3: Artículo 33 CFF.- Las autoridades fiscales para el mejor cumplimiento de sus facultades, estarán a lo siguiente: I. Proporcionarán asistencia gratuita a los contribuyentes y ciudadanía, procurando: c) Elaborar las herramientas electrónicas, formas o formatos de declaración de manera que puedan ser llenadas y presentadas fácilmente, para lo cual, serán difundidas y puestas a disposición de los contribuyentes con oportunidad, así como informar de las fechas y medios de presentación de todas las declaraciones. g) Publicar anualmente las resoluciones dictadas por las autoridades fiscales que establezcan disposiciones de carácter general agrupándolas de manera que faciliten su conocimiento por parte de los contribuyentes; se podrán publicar aisladamente aquellas disposiciones cuyos efectos se limitan a periodos inferiores a un año. Las resoluciones que se emitan conforme a este inciso y que se refieran a sujeto, objeto, base, tasa o tarifa, no generarán obligaciones o cargas adicionales a las establecidas en las propias leyes fiscales.
B5: Requisitos de los trámites 1.8. Para los efectos de esta RMF y con el fin de facilitar el cumplimiento de las obligaciones de los contribuyentes, se dan a conocer en el Anexo 1-A, las fichas de trámites fiscales. Dichas fichas de trámite, salvo señalamiento expreso, no eximen del cumplimiento de los requisitos señalados en las disposiciones fiscales aplicables. Cuando en el Portal del SAT o en la página de Internet de la Secretaría se establezcan a favor de los contribuyentes, requisitos diferentes a los establecidos en la presente Resolución para la realización de algún trámite, podrán aplicar en sustitución de lo señalado en la citada Resolución, lo establecido en dicho Portal y página para el trámite que corresponda. Asimismo, el SAT dará a conocer en su Portal de forma anticipada y únicamente con fines informativos, reglas de carácter general que faciliten el cumplimiento de las obligaciones fiscales de los contribuyentes. Los beneficios contenidos en dichas reglas serán aplicables a partir de que se den a conocer en el Portal del SAT, salvo que se señale fecha expresa para tales efectos.
B7: Anexo 1-A vigente al 07/04/2025
B9: 8/IVA Declaración informativa de operaciones con terceros (DIOT).
B10: Trámite | C10: Descripción del trámite o servicio | G10: Monto
B12: Servicio | C12: Realiza este procedimiento para capturar y enviar la información de operaciones con terceros. | G12: Gratuito
G13: Pago de derechos
G14: Costo:
B15: ¿Quién puede solicitar el trámite o servicio? | E15: ¿Cuándo se presenta?
B16: Personas físicas. | E16: A más tardar el mes inmediato posterior al que corresponda el periodo o de manera semestral.
B17: Personas morales.
B18: ¿Dónde puedo presentarlo? | D18: En el Portal del SAT:
D19: · Cuando captures hasta 40,000 registros, en la siguiente liga:
D20: https://www.sat.gob.mx/declaracion/74295/presenta-tu-declaracion-informativa-de-operaciones-con-terceros-(diot)- a través del programa electrónico Declaración Informativa de Operaciones con Terceros (DIOT)
D21: En forma presencial:
D22: · Si tu captura es de más de 40,000 registros: en la oficina del SAT más cercana a tu domicilio fiscal, previa cita generada en el Portal del SAT: https://citas.sat.gob.mx/
B23: INFORMACIÓN PARA REALIZAR EL TRÁMITE O SERVICIO
B24: ¿Qué tengo que hacer para realizar el trámite o servicio?
B25: En el Portal del SAT:
B26: 1. Ingresa al Portal del SAT, en la liga del apartado ¿Dónde puedo presentarlo?
B27: 2. En la sección Contenidos Relacionados selecciona Descarga la DIOT, elige la opción abrir, aparecerá una pantalla WinRAR, selecciona el archivo DIOT_2019.exe
B28: 3. Instala la aplicación de acuerdo a las indicaciones del asistente de Instalación de Declaración Informativa de Operaciones con Terceros Completa, y una vez completada la instalación selecciona la casilla Ejecutar Declaración Informativa de Operaciones con Terceros Completa y elige finalizar.
B29: 4. Aparecerá el aplicativo Documentos Electrónicos Múltiples, captura tu declaración conforme a las instrucciones que se muestran en pantalla.
B30: 5. Una vez que guardes tu declaración, la aplicación generará el archivo con extensión .dec
B31: 6. Ingresa a la liga del apartado ¿Dónde puedo presentarlo? selecciona Iniciar, ingresa tu RFC, Contraseña y elige Iniciar sesión.
B32: 7. En la sección Nombre de Archivo, elige Examinar, y selecciona el o los archivos que generaste con extensión .dec, selecciona abrir.
B33: 8. Una vez que aparezcan los archivos con extensión .dec oprime el botón Enviar, se genera el Acuse de recepción que contiene el folio del trámite realizado, imprímelo o guárdalo.
B34: En forma presencial:
B35: 1. Acude a la oficina del SAT que corresponda a tu domicilio fiscal con la documentación solicitada en el apartado ¿Qué requisitos debo cumplir?
B36: 2. Entrega la documentación solicitada al personal que atenderá tu trámite.
B37: 3. Recibe y conserva copia de tu escrito libre sellado, como acuse de recibo.
B38: ¿Qué requisitos debo cumplir?
B39: En el Portal del SAT:
B40: Presenta la DIOT que generaste en archivo con extensión .dec
B41: En forma presencial:
B42: Escrito libre en dos tantos, el cual deberá tener por lo menos los siguientes requisitos:
B43: · El nombre, denominación o razón social y el domicilio fiscal manifestado en tu clave en el RFC.
B44: · Señala la autoridad a la que se dirige y el propósito de la promoción.
B45: · Señala la dirección de correo electrónico para recibir notificaciones.
B46: · Indica los hechos o circunstancias sobre los que versa la promoción.
B47: · Unidad de memoria extraíble (USB) o disco compacto.
B48: ¿Con qué condiciones debo cumplir?
B49: Contar con Contraseña.
B50: SEGUIMIENTO Y RESOLUCIÓN DEL TRÁMITE O SERVICIO
B51: ¿Cómo puedo dar seguimiento al trámite o servicio? | E51: ¿El SAT llevará a cabo alguna inspección o verificación para emitir la resolución de este trámite o servicio?
B52: Trámite inmediato. | E52: No.
B53: Resolución del trámite o servicio
B54: La autoridad verificará que la declaración sea presentada en tiempo, que los datos sean correctos, y de ser el caso, dará por cumplida la obligación.
B55: Plazo máximo para que el SAT resuelva el trámite o servicio | D55: Plazo máximo para que el SAT solicite información adicional | F55: Plazo máximo para cumplir con la información solicitada
B56: Trámite inmediato. | D56: No aplica. | F56: No aplica.
B57: ¿Qué documento obtengo al finalizar el trámite o servicio? | E57: ¿Cuál es la vigencia del trámite o servicio?
B58: Acuse de recibo. | E58: Mensual para personas físicas y morales que señala la regla 4.5.1. RMF, o semestral para personas morales que se dediquen exclusivamente a las actividades agrícolas, silvícolas, ganaderas o pesqueras, conforme a las reglas 1.3. y 1.12. de la RFA.
B59: CANALES DE ATENCIÓN
B60: Consultas y dudas | E60: Quejas y denuncias
B61: · MarcaSAT de lunes a viernes de 09:00 a 18:00 hrs., excepto días inhábiles: | E61: · Quejas y Denuncias SAT, desde cualquier parte del país: 55 885 22 222 y para el exterior del país (+52) 55 885 22 222 (quejas y denuncias).
B62: Atención telefónica: desde cualquier parte del país 55 627 22 728 y para el exterior del país (+52) 55 627 22 728. | E62: · Correo electrónico: denuncias@sat.gob.mx
B63: Vía Chat: http://chat.sat.gob.mx | E63: · En el Portal del SAT:
B64: · Atención personal en las Oficinas del SAT ubicadas en diversas ciudades del país, como se establece en la siguiente liga: | E64: https://www.sat.gob.mx/aplicacion/50409/presenta-tu-queja-o-denuncia
B65: https://www.sat.gob.mx/personas/directorio-nacional-de-modulos-de-servicios-tributarios | E65: · Teléfonos rojos ubicados en las oficinas del SAT.
B66: Los días y horarios siguientes: lunes a jueves de 9:00 a 16:00 hrs. y viernes de 08:30 a 15:00 hrs., excepto días inhábiles. | E66: · MarcaSAT 55 627 22 728 opción 8.
B67: Información adicional
B68: De conformidad con la regla 4.5.1. de la RMF, en el campo denominado “Monto del IVA pagado no acreditable incluyendo importación (correspondiente en la proporción de las deducciones autorizadas)” de la DIOT se deberán anotar las cantidades que fueron trasladadas al contribuyente, pero que no reúnen los requisitos para ser considerado IVA acreditable, por no ser estrictamente indispensables, o bien, por no reunir los requisitos para ser deducibles para el ISR, de conformidad con el artículo 5, fracción I de la Ley del IVA. El llenado de dicho campo no será obligatorio tratándose de personas físicas.
B69: Fundamento jurídico
B70: Artículos: 17-D del CFF; 32, fracción VIII de la LIVA; Reglas 1.3., primer párrafo, 1.12. de la RFA; Regla 4.5.1. de la RMF.
B73: Vigente a partir del 08/04/2025
B74: 8/IVA Declaración informativa de operaciones con terceros (DIOT).
B75: Trámite | C75: Descripción del trámite o servicio | G75: Monto
B77: Servicio | C77: Realiza este procedimiento para capturar y enviar la información de operaciones con terceros. | G77: Gratuito
G78: Pago de derechos
G79: Costo:
B80: ¿Quién puede solicitar el trámite o servicio? | E80: ¿Cuándo se presenta?
B81: · Personas físicas. | E81: A más tardar el mes inmediato posterior al que corresponda el periodo o de manera semestral.
B82: · Personas morales.
B83: ¿Dónde puedo presentarlo? | D83: En el Portal del SAT, en la siguiente liga:
D84: https://pstcdi.clouda.sat.gob.mx/
B85: INFORMACIÓN PARA REALIZAR EL TRÁMITE O SERVICIO
B86: ¿Qué tengo que hacer para realizar el trámite o servicio?
B87: En el Portal del SAT:
B88: 1. Ingresa al Portal del SAT, en la liga del apartado ¿Dónde puedo presentarlo?
B89: 2. Elige tu acceso con e.firma, Certificado (.cer), Clave privada (.key) y Contraseña de clave privada o bien, Contraseña, capturando tu RFC, Contraseña y el captcha, da clic en Enviar.
B90: 3. Llena los datos que te solicitan dentro del formulario.
B91: 4. Envía la declaración informativa
B92: ¿Qué requisitos debo cumplir?
B93: · Contar con RFC
B94: · Contar con Contraseña
B95: · Contar con e.firma
B96: ¿Con qué condiciones debo cumplir?
B97: Contar con Contraseña y para personas morales e.firma.
B98: SEGUIMIENTO Y RESOLUCIÓN DEL TRÁMITE O SERVICIO
B99: ¿Cómo puedo dar seguimiento al trámite o servicio? | E99: ¿El SAT llevará a cabo alguna inspección o verificación para emitir la resolución de este trámite o servicio?
B100: Trámite inmediato. | E100: No.
B101: Resolución del trámite o servicio
B102: La autoridad verificará que la declaración sea presentada en tiempo, que los datos sean correctos, y de ser el caso, dará por cumplida la obligación.
B103: Plazo máximo para que el SAT resuelva el trámite o Servicio | D103: Plazo máximo para que el SAT solicite información adicional | F103: Plazo máximo para cumplir con la información solicitada
B104: Trámite inmediato. | D104: No aplica. | F104: No aplica.
B105: ¿Qué documento obtengo al finalizar el trámite o servicio? | E105: ¿Cuál es la vigencia del trámite o servicio?
B106: Acuse de recibo. | E106: Mensual para personas físicas y morales que señala la regla 4.5.1. de la RMF, o semestral para personas morales que se dediquen exclusivamente a las actividades agrícolas, silvícolas, ganaderas o pesqueras, conforme a las reglas 1.3. y 1.12. de la RFA.
B107: CANALES DE ATENCIÓN
B108: Consultas y dudas | E108: Quejas y denuncias
B109: · MarcaSAT de lunes a viernes de 09:00 a 18:00 hrs., excepto días inhábiles: | E109: · Quejas y Denuncias SAT, desde cualquier parte del país 55 885 22 222 y para el exterior del país (+52) 55 885 22 222 (quejas y denuncias).
B110: Atención telefónica: desde cualquier parte del país 55 627 22 728 y para el exterior del país (+52) 55 627 22 728. | E110: · Correo electrónico: denuncias@sat.gob.mx
B111: Vía Chat: https://chat.sat.gob.mx | E111: · En el Portal del SAT:
B112: · Atención personal en las Oficinas del SAT ubicadas en diversas ciudades del país, como se establece en la siguiente liga: | E112: https://www.sat.gob.mx/portal/public/tramites/quejas-o-denuncias
B113: https://www.sat.gob.mx/portal/public/directorio | E113: · Teléfonos rojos ubicados en las oficinas del SAT.
B114: Los días y horarios siguientes: lunes a jueves de 9:00 a 16:00 hrs. y viernes de 08:30 a 15:00 hrs., excepto días inhábiles. | E114: · MarcaSAT 55 627 22 728 opción 8.
B115: Información adicional
B116: De conformidad con la regla 4.5.1. de la RMF, en el campo denominado “Monto del IVA pagado no acreditable incluyendo importación (correspondiente en la proporción de las deducciones autorizadas)” de la DIOT se deberán anotar las cantidades que fueron trasladadas al contribuyente, pero que no reúnen los requisitos para ser considerado IVA acreditable, por no ser estrictamente indispensables, o bien, por no reunir los requisitos para ser deducibles para el ISR, de conformidad con el artículo 5, fracción I de la Ley del IVA. El llenado de dicho campo no será obligatorio tratándose de personas físicas.
B117: Fundamento jurídico
B118: Artículos 17-D del CFF; 32, fracción VIII de la LIVA; Reglas 1.3., primer párrafo, 1.12. de la RFA; Regla 4.5.1. de la RMF.
B122: Artículo 32 LIVA.- Los obligados al pago de este impuesto y las personas que realicen los actos o actividades a que se refiere el artículo 2o.-A tienen, además de las obligaciones señaladas en otros artículos de esta Ley, las siguientes:
B123: V. Expedir comprobantes fiscales por las retenciones del impuesto que se efectúen en los casos previstos en el artículo 1o.-A, y proporcionar mensualmente a las autoridades fiscales, a través de los medios y formatos electrónicos que señale el Servicio de Administración Tributaria, la información sobre las personas a las que les hubieren retenido el impuesto establecido en esta Ley, a más tardar el día 17 del mes inmediato posterior al que corresponda dicha información. | I123: Infracción (artículo 81 CFF) XXVI. No proporcionar la información a que se refiere la fracción VIII del artículo 32 de la Ley del Impuesto al Valor Agregado a través de los medios, formatos electrónicos y plazos establecidos en dicha Ley, o presentarla incompleta o con errores. | L123: Multa (artículo 82 CFF) XVI. De $15,650.00 a $31,290.00, a la establecida en la fracción XVI. En caso de reincidencia la multa aumentará al 100% por cada nuevo incumplimiento.
B124: VIII. Proporcionar mensualmente a las autoridades fiscales, a través de los medios y formatos electrónicos que señale el Servicio de Administración Tributaria, la información correspondiente sobre el pago, retención, acreditamiento y traslado del impuesto al valor agregado en las operaciones con sus proveedores, desglosando el valor de los actos o actividades por tasa a la cual trasladó o le fue trasladado el impuesto al valor agregado, incluyendo actividades por las que el contribuyente no está obligado al pago, dicha información se presentará, a más tardar el día 17 del mes inmediato posterior al que corresponda dicha información. | I124: Infracción (artículo 81 CFF) XXVI. No proporcionar la información a que se refiere la fracción VIII del artículo 32 de la Ley del Impuesto al Valor Agregado a través de los medios, formatos electrónicos y plazos establecidos en dicha Ley, o presentarla incompleta o con errores. | L124: Multa (artículo 82 CFF) XXVI. De $14,880.00 a $29,750.00, a la establecida en la fracción XXVI. En caso de reincidencia la multa aumentará al 100% por cada nuevo incumplimiento.
B126: Facilidades para los contribuyentes personas físicas 2.8.1.17. Las personas físicas que tributen conforme al Capítulo II, Secciones I y III y Capítulo III del Título IV de la Ley del ISR, cuyos ingresos totales del ejercicio inmediato anterior no hubieran excedido de $4'000,000.00 (cuatro millones de pesos 00/100 M.N.), o que inicien actividades en el ejercicio y estimen que sus ingresos obtenidos en el mismo no excederán de la cantidad señalada, quedarán relevados de cumplir con las siguientes obligaciones: I. Enviar la contabilidad electrónica e ingresar de forma mensual su información contable en términos de lo señalado en el artículo 28 del CFF. II. Presentar la Información de Operaciones con Terceros (DIOT) a que se refiere el artículo 32, fracción VIII de la Ley del IVA. CFF 28, LIVA 32
B127: Facilidades para personas físicas y morales que tributen conforme a la Sección IV, del Capítulo II, Título IV y Capítulo XII, Título VII de la Ley del ISR 3.13.17. Las personas físicas y morales que tributen conforme al Título IV, Capítulo II, Sección IV y Título VII, Capítulo XII de la Ley del ISR, quedarán relevados de cumplir con las siguientes obligaciones: I. Enviar la contabilidad electrónica e ingresar de forma mensual su información contable en términos de lo señalado en el artículo 28, fracción IV del CFF, y II. Presentar la DIOT a que se refiere el artículo 32, fracción VIII de la Ley del IVA. LIVA 32, CFF 28

Sheet EJEMPLO DIOT (hidden)
B3: Pago de gasolina
B4: Importe | C4: 2500
B5: IVA | C5: =C12 -> 394
B6: Total | C6: =SUM(C4:C5) -> 2894
B8: Base | C8: =C4*0.985 -> 2462.5 | E8: Artículo 12 LIVA.- Para calcular el impuesto tratándose de enajenaciones se considerará como valor el precio o la contraprestación pactados, así como las cantidades que además se carguen o cobren al adquirente por otros impuestos, derechos, intereses normales o moratorios, penas convencionales o cualquier otro concepto.
B9: Impuesto | C9: 002
B10: Tipo factor | C10: Tasa
B11: Tasa o cuota | C11: 0.16
B12: Importe | C12: =C8*C11 -> 394
E14: ① | F14: ②
B15: Datos del tercero | E15: Valor de actos o actividades | F15: IVA acreditable | G15: Datos adicionales
B16: Campo 1 | C16: Campo 2 | D16: Campo 3 | E16: Campo 12 | F16: Campo 22 | G16: Campo 54
B17: Tipo de Tercero | C17: Tipo de Operación | D17: RFC | E17: Valor total de actos o actividades pagadas / Actos o actividades totales pagados a la tasa del 16% de IVA | F17: Exclusivamente de actividades gravadas / Actos o actividades totales pagados a la tasa del 16% de IVA | G17: Manifiesto que se dio efectos fiscales a los comprobantes que amparan las operaciones realizadas con el proveedor
B18: 04 | C18: 02 | D18: MEMC870302LO9 | E18: =ROUND(C8,0) -> 2463 | F18: =C12 -> 394 | G18: 01
B20: Las cuotas a que se refiere este artículo no computarán para el cálculo del impuesto al valor agregado. Fundamento: Artículo 2-A quinto párrafo LIEPS
B22: Artículo 32 LIVA.- Los obligados al pago de este impuesto y las personas que realicen los actos o actividades a que se refiere el artículo 2o.-A tienen, además de las obligaciones señaladas en otros artículos de esta Ley, las siguientes:
B23: ① ② | C23: VIII. Proporcionar mensualmente a las autoridades fiscales, a través de los medios y formatos electrónicos que señale el Servicio de Administración Tributaria, la información correspondiente sobre el pago, retención, acreditamiento y traslado del impuesto al valor agregado en las operaciones con sus proveedores, desglosando el valor de los actos o actividades por tasa a la cual trasladó o le fue trasladado el impuesto al valor agregado, incluyendo actividades por las que el contribuyente no está obligado al pago, dicha información se presentará, a más tardar el día 17 del mes inmediato posterior al que corresponda dicha información.
B25: DEM
B26: Campo 1 | C26: Campo 2 | D26: Campo 3 | E26: Campo 8
B27: Tipo de Tercero | C27: Tipo de Operación | D27: RFC | E27: Valor de los actos o actividades pagados a la tasa del 15% ó 16% de IVA
B28: 04 | C28: 85 | D28: =D18 -> MEMC870302LO9 | E28: =ROUND(C8,0) -> 2463
B32: Pago de viáticos en territorio nacional
C33: Importe | D33: IVA | E33: Total
B34: Alimentación de 1 día | C34: 900 | D34: =C34*0.16 -> 144 | E34: =SUM(C34:D34) -> 1044
B36: Tope para viáticos artículo 28 fracción V LISR | E36: 750
E38: ① | F38: ②
B39: Datos del tercero | E39: Valor de actos o actividades | F39: IVA acreditable | G39: IVA no acreditable | H39: Datos adicionales
B40: Campo 1 | C40: Campo 2 | D40: Campo 3 | E40: Campo 12 | F40: Campo 22 | G40: Campo 37 | H40: Campo 54
B41: Tipo de Tercero | C41: Tipo de Operación | D41: RFC | E41: Valor total de actos o actividades pagadas / Actos o actividades totales pagados a la tasa del 16% de IVA | F41: Exclusivamente de actividades gravadas / Actos o actividades totales pagados a la tasa del 16% de IVA | G41: Asociado a actividades que no cumple con requisitos / Actos o actividades totales pagados a la tasa del 16% de IVA | H41: Manifiesto que se dio efectos fiscales a los comprobantes que amparan las operaciones realizadas con el proveedor
B42: 04 | C42: 85 | D42: MEMC870302LO9 | E42: =C34 -> 900 | F42: =ROUND(E36*0.16,0) -> 120 | G42: =D34-F42 -> 24 | H42: 01
B44: Artículo 32 LIVA.- Los obligados al pago de este impuesto y las personas que realicen los actos o actividades a que se refiere el artículo 2o.-A tienen, además de las obligaciones señaladas en otros artículos de esta Ley, las siguientes:
B45: ① ② | C45: VIII. Proporcionar mensualmente a las autoridades fiscales, a través de los medios y formatos electrónicos que señale el Servicio de Administración Tributaria, la información correspondiente sobre el pago, retención, acreditamiento y traslado del impuesto al valor agregado en las operaciones con sus proveedores, desglosando el valor de los actos o actividades por tasa a la cual trasladó o le fue trasladado el impuesto al valor agregado, incluyendo actividades por las que el contribuyente no está obligado al pago, dicha información se presentará, a más tardar el día 17 del mes inmediato posterior al que corresponda dicha información.
B47: DEM
B48: Campo 1 | C48: Campo 2 | D48: Campo 3 | E48: Campo 8 | F48: Campo 10
B49: Tipo de Tercero | C49: Tipo de Operación | D49: RFC | E49: Valor de los actos o actividades pagados a la tasa del 15% ó 16% de IVA | F49: Monto del IVA pagado no acreditable a la tasa del 15% ó 16% (correspondiente en la proporcion de las deducciones autorizadas)
B50: 04 | C50: 85 | D50: =D42 -> MEMC870302LO9 | E50: =E42 -> 900 | F50: =G42 -> 24
B55: Compra de una computadora
C56: Importe | D56: IVA | E56: Total | F56: Forma de pago
B57: Computadora | C57: 12500 | D57: =C57*0.16 -> 2000 | E57: =SUM(C57:D57) -> 14500 | F57: Efectivo
B59: Artículo 5o LIVA.- Para que sea acreditable el impuesto al valor agregado deberán reunirse los siguientes requisitos: I. Que el impuesto al valor agregado corresponda a bienes, servicios o al uso o goce temporal de bienes, estrictamente indispensables para la realización de actividades distintas de la importación, por las que se deba pagar el impuesto establecido en esta Ley o a las que se les aplique la tasa de 0%. Para los efectos de esta Ley, se consideran estrictamente indispensables las erogaciones efectuadas por el contribuyente que sean deducibles para los fines del impuesto sobre la renta, aun cuando no se esté obligado al pago de este último impuesto. Tratándose de erogaciones parcialmente deducibles para los fines del impuesto sobre la renta, únicamente se considerará para los efectos del acreditamiento a que se refiere esta Ley, el monto equivalente al impuesto al valor agregado que haya sido trasladado al contribuyente y el propio impuesto al valor agregado que haya pagado con motivo de la importación, en la proporción en la que dichas erogaciones sean deducibles para los fines del impuesto sobre la renta.
B60: Artículo 27 LISR. Las deducciones autorizadas en este Título deberán reunir los siguientes requisitos: III. Estar amparadas con un comprobante fiscal y que los pagos cuyo monto exceda de $2,000.00 se efectúen mediante transferencia electrónica de fondos desde cuentas abiertas a nombre del contribuyente en instituciones que componen el sistema financiero y las entidades que para tal efecto autorice el Banco de México; cheque nominativo de la cuenta del contribuyente, tarjeta de crédito, de débito, de servicios, o los denominados monederos electrónicos autorizados por el Servicio de Administración Tributaria. Tratándose de la adquisición de combustibles para vehículos marítimos, aéreos y terrestres, el pago deberá efectuarse en la forma señalada en el párrafo anterior, aun cuando la contraprestación de dichas adquisiciones no excedan de $2,000.00 y en el comprobante fiscal deberá constar la información del permiso vigente, expedido en los términos de la Ley de Hidrocarburos al proveedor del combustible y que, en su caso, dicho permiso no se encuentre suspendido, al momento de la expedición del comprobante fiscal.
B63: Datos del tercero | E63: Valor de actos o actividades | F63: IVA no acreditable | G63: Datos adicionales
B64: Campo 1 | C64: Campo 2 | D64: Campo 3 | E64: Campo 12 | F64: Campo 37 | G64: Campo 54
B65: Tipo de Tercero | C65: Tipo de Operación | D65: RFC | E65: Valor total de actos o actividades pagadas / Actos o actividades totales pagados a la tasa del 16% de IVA | F65: Asociado a actividades que no cumple con requisitos / Actos o actividades totales pagados a la tasa del 16% de IVA | G65: Manifiesto que se dio efectos fiscales a los comprobantes que amparan las operaciones realizadas con el proveedor
B66: 04 | C66: 02 | D66: MEMC870302LO9 | E66: =C57 -> 12500 | F66: =D57 -> 2000 | G66: 02
B68: DEM
B69: Campo 1 | C69: Campo 2 | D69: Campo 3 | E69: Campo 8 | F69: Campo 10
B70: Tipo de Tercero | C70: Tipo de Operación | D70: RFC | E70: Valor de los actos o actividades pagados a la tasa del 15% ó 16% de IVA | F70: Monto del IVA pagado no acreditable a la tasa del 15% ó 16% (correspondiente en la proporcion de las deducciones autorizadas)
B71: 04 | C71: 85 | D71: =D66 -> MEMC870302LO9 | E71: =E66 -> 12500 | F71: =F66 -> 2000
B75: Pago del uso de una plataforma a residente en el extrajero
B77: Importe | C77: 3500 | D77: INVOICE
B79: Pago de IVA | C79: =C77*0.16 -> 560 | D79: Capturar en el aplicativo en otras cantidades a cargo del contribuyente
B81: Artículo 24 LIVA.- Para los efectos de esta Ley, se considera importación de bienes o de servicios: III.- El uso o goce temporal, en territorio nacional, de bienes intangibles proporcionados por personas no residentes en el país.
B82: Artículo 50 RLIVA. Para los efectos de lo dispuesto en el artículo 24 de la Ley, los contribuyentes que importan bienes intangibles o servicios por los que deban pagar el impuesto, podrán efectuar el acreditamiento en los términos de la Ley en la misma declaración de pago mensual a que correspondan dichas importaciones.
B83: Comprobantes fiscales emitidos por residentes en el extranjero sin establecimiento permanente en México 2.7.1.14. Para los efectos de los artículos 29 y 29-A, antepenúltimo párrafo del CFF, los contribuyentes que pretendan deducir o acreditar fiscalmente con base en comprobantes emitidos por residentes en el extranjero sin establecimiento permanente en México, podrán utilizar dichos comprobantes siempre que contengan los siguientes requisitos: I. Nombre, denominación o razón social; domicilio y, en su caso, número de identificación fiscal, o su equivalente, de quien lo expide. II. Lugar y fecha de expedición. III. Clave en el RFC de la persona a favor de quien se expida y, nombre, denominación o razón social de dicha persona. IV. Los requisitos establecidos en el artículo 29-A, fracción V, primer párrafo del CFF. V. Valor unitario consignado en número e importe total consignado en número o letra. VI. Tratándose de la enajenación de bienes o del otorgamiento de su uso o goce temporal, el monto de los impuestos retenidos, así como de los impuestos trasladados, desglosando cada una de las tasas del impuesto correspondiente; o bien, se adjunte al comprobante emitido por el residente en el extranjero sin establecimiento permanente en México, el CFDI que emita el contribuyente por las retenciones de las contribuciones que efectuó a dicho residente en el extranjero. Lo señalado en la presente regla, tratándose de la enajenación de bienes o del otorgamiento de su uso o goce temporal, solo será aplicable cuando dichos actos o actividades sean efectuados en territorio nacional de conformidad con la Ley del IVA. CFF 28, 29, 29-A, LIVA 1o.
B85: Datos del tercero | G85: Valor de actos o actividades | H85: IVA acreditable | I85: Datos adicionales
B86: Campo 1 | C86: Campo 2 | D86: Campo 4 | E86: Campo 5 | F86: Campo 6 | G86: Campo 16 | H86: Campo 26 | I86: Campo 54
B87: Tipo de Tercero | C87: Tipo de Operación | D87: Número de ID Fiscal | E87: Nombre del Extranjero | F87: País o jurisdicción de residencia fiscal | G87: Valor total de actos o actividades pagadas / Actos o actividades pagados en la importación de bienes intangibles y servicios a la tasa del 16% de IVA | H87: Exclusivamente de actividades gravadas / Actos o actividades pagados en la importación de bienes intangibles y servicios a la tasa del 16% de IVA | I87: Manifiesto que se dio efectos fiscales a los comprobantes que amparan las operaciones realizadas con el proveedor
B88: 05 | C88: 07 | D88: ID236589 | E88: ZOOOOM | F88: ESP | G88: =C77 -> 3500 | H88: =C77*0.16 -> 560 | I88: 01
B90: DEM
B91: Campo 1 | C91: Campo 2 | D91: Campo 4 | E91: Campo 5 | F91: Campo 6 | G91: Campo 7 | H91: Campo 16
B92: Tipo de Tercero | C92: Tipo de Operación | D92: Número de ID Fiscal | E92: Nombre del Extranjero | F92: País de de residencia | G92: Nacionalidad | H92: Valor de los actos o actividades pagados en la importación de bienes y servicios a la tasa del 15% ó 16%de IVA
B93: 05 | C93: 85 | D93: ID236589 | E93: ZOOOOM | F93: ES | G93: ESPAÑOL | H93: =G88 -> 3500
B98: Pago de recibo de honorarios | E98: Artículo 5o LIVA.- Para que sea acreditable el impuesto al valor agregado deberán reunirse los siguientes requisitos: IV. Que tratándose del impuesto al valor agregado trasladado que se hubiese retenido conforme a los artículos 1o.-A y 18-J, fracción II, inciso a) de esta Ley, dicha retención se entere en los términos y plazos establecidos en la misma. El impuesto retenido y enterado, podrá ser acreditado en la declaración de pago mensual siguiente a la declaración en la que se haya efectuado el entero de la retención;
B99: Importe | C99: 15000
B100: IVA | C100: =C99*0.16 -> 2400
B101: Retención de ISR | C101: =C99*0.1 -> 1500
B102: Retención de IVA | C102: =C99*0.106667 -> 1600.005 | D102: IVA acreditable
B103: Total | C103: =C99+C100-C101-C102 -> 14299.995 | D103: =C100-C102 -> 799.995
D105: ① | E105: ② | F105: ④ | G105: ③
B106: Datos del tercero | E106: Valor de actos o actividades | F106: IVA acreditable | G106: Datos adicionales
B107: Campo 1 | C107: Campo 2 | D107: Campo 3 | E107: Campo 12 | F107: Campo 22 | G107: Campo 48 | H107: Campo 54
B108: Tipo de Tercero | C108: Tipo de Operación | D108: RFC | E108: Valor total de actos o actividades pagadas / Actos o actividades totales pagados a la tasa del 16% de IVA | F108: Exclusivamente de actividades gravadas / Actos o actividades totales pagados a la tasa del 16% de IVA | G108: IVA retenido por el contribuyente | H108: Manifiesto que se dio efectos fiscales a los comprobantes que amparan las operaciones realizadas con el proveedor
B109: 04 | C109: 85 | D109: MEMC870302LO9 | E109: =C99 -> 15000 | F109: =C100 -> 2400 | G109: =ROUND(C102,0) -> 1600 | H109: 01
B111: Artículo 32 LIVA.- Los obligados al pago de este impuesto y las personas que realicen los actos o actividades a que se refiere el artículo 2o.-A tienen, además de las obligaciones señaladas en otros artículos de esta Ley, las siguientes:
B112: ① | C112: V. Expedir comprobantes fiscales por las retenciones del impuesto que se efectúen en los casos previstos en el artículo 1o.-A, y proporcionar mensualmente a las autoridades fiscales, a través de los medios y formatos electrónicos que señale el Servicio de Administración Tributaria, la información sobre las personas a las que les hubieren retenido el impuesto establecido en esta Ley, a más tardar el día 17 del mes inmediato posterior al que corresponda dicha información.
B113: ② ③ ④ | C113: VIII. Proporcionar mensualmente a las autoridades fiscales, a través de los medios y formatos electrónicos que señale el Servicio de Administración Tributaria, la información correspondiente sobre el pago, retención, acreditamiento y traslado del impuesto al valor agregado en las operaciones con sus proveedores, desglosando el valor de los actos o actividades por tasa a la cual trasladó o le fue trasladado el impuesto al valor agregado, incluyendo actividades por las que el contribuyente no está obligado al pago, dicha información se presentará, a más tardar el día 17 del mes inmediato posterior al que corresponda dicha información.
C118: Importación
C119: Compra de mercancia a crédito | D119: 60 días
C120: Vinos de mesa
C121: Moneda | D121: USD
C122: Importe | D122: 50000
C123: Flete | D123: 2000
C124: Seguro | D124: 5000
C125: T.C. de importación | D125: 20.1325
C138: Valor de la mercancía | D138: =D122*D125 -> 1006625
C139: DTA | D139: =D138*0.008 -> 8053
C140: IGI | D140: =D138*0.2 -> 201325
C141: Flete | D141: =D123*D125 -> 40265
C142: Seguro | D142: =D124*D125 -> 100662.5
C143: IEPS | D143: =SUM(D138:D142)*0.265 -> 359586.5825
C144: Base de IVA | D144: =SUM(D138:D143) -> 1716517.083
C145: IVA al 16% | D145: =D144*0.16 -> 274642.7332
C147: Artículo 15 RLIVA. Para los efectos de las disposiciones que establece la Ley en materia de acreditamiento, los contribuyentes podrán acreditar el impuesto efectivamente pagado en la aduana por la importación de bienes tangibles, aun cuando no se hubiera pagado el precio de los bienes importados.
C148: Artículo 5o LIVA.- Para que sea acreditable el impuesto al valor agregado deberán reunirse los siguientes requisitos: II. Que el impuesto al valor agregado haya sido trasladado expresamente al contribuyente y que conste por separado en los comprobantes fiscales a que se refiere la fracción III del artículo 32 de esta Ley. Tratándose de importación de mercancías, el pedimento deberá estar a nombre del contribuyente y constar en éste el pago del impuesto al valor agregado correspondiente;
C150: Total de los actos o actividades pagados en la importación de bienes y servicios a la tasa del 16% de IVA | E150: =SUM(E152:E155) -> 1716517.083
C151: Monto por detallar
C152: Importación de bienes intangibles a la tasa del 16%
C153: Importación de uso o goce temporal de bienes intangibles a la tasa del 16%
C154: Importación de servicios a la tasa del 16%
C155: Otros actos o actividades pagados en la importación de bienes y servicios a la tasa del 16% | E155: =D144 -> 1716517.083
C157: IVA de actos o actividades pagados a la tasa del 16% | E157: =E150*0.16 -> 274642.7332
B159: Datos del tercero declarado | H159: Valor de actos o actividades | I159: IVA acreditable | J159: Datos adicionales
B160: Campo 1 | C160: Campo 2 | D160: Campo 4 | E160: Campo 5 | F160: Campo 6 | G160: Campo 7 | H160: Campo 14 | I160: Campo 24 | J160: Campo 54
B161: Tipo de Tercero | C161: Tipo de Operación | D161: Número de ID Fiscal | E161: Nombre del Extranjero | F161: País o jurisdicción de residencia fiscal | G161: Especificar lugar de jurisdicción fiscal | H161: Valor total de actos o actividades pagadas / Actos o actividades pagados en la importación por aduana de bienes tangiblesa la tasa del16% de IVA | I161: Exclusivamente de actividades gravadas / Actos o actividades pagados en la importación por aduana de bienes tangibles a la tasa del 16% de IVA | J161: Manifiesto que se dio efectos fiscales a los comprobantes que amparan las operaciones realizadas con el proveedor
B162: 05 | C162: 07 | D162: ID1589 | E162: ROBI | F162: AFG | H162: =D144 -> 1716517.083 | I162: =D145 -> 274642.7332 | J162: 01
B167: CFDI de compra de mercancía
B168: Método de pago | C168: PUE
B169: Tipo de comprobante | C169: I
B170: Importe | C170: 65000
B171: IVA | C171: =C170*0.16 -> 10400
B172: Total | C172: =SUM(C170:C171) -> 75400
B174: Datos del tercero | E174: Valor de actos o actividades | F174: IVA acreditable | G174: Datos adicionales
B175: Campo 1 | C175: Campo 2 | D175: Campo 3 | E175: Campo 12 | F175: Campo 22 | G175: Campo 54
B176: Tipo de Tercero | C176: Tipo de Operación | D176: RFC | E176: Valor total de actos o actividades pagadas / Actos o actividades totales pagados a la tasa del 16% de IVA | F176: Exclusivamente de actividades gravadas / Actos o actividades totales pagados a la tasa del 16% de IVA | G176: Manifiesto que se dio efectos fiscales a los comprobantes que amparan las operaciones realizadas con el proveedor
B177: 04 | C177: 02 | D177: MEMC870302LO9 | E177: =C170 -> 65000 | F177: =C171 -> 10400 | G177: 01
B179: En el mes siguiente se realiza un descuento del 3% a la factura ya pagada
B180: Se le restituye el ingreso al cliente
B181: Método de pago | C181: PUE
B182: Tipo de comprobante | C182: E
B183: Importe | C183: =C170*0.03 -> 1950
B184: IVA | C184: =C183*0.16 -> 312
B185: Total | C185: =SUM(C183:C184) -> 2262
B187: Datos del tercero | E187: Valor de actos o actividades | G187: IVA acreditable
B188: Campo 1 | C188: Campo 2 | D188: Campo 3 | E188: Campo 12 | F188: Campo 13 | G188: Campo 22
B189: Tipo de Tercero | C189: Tipo de Operación | D189: RFC | E189: Valor total de actos o actividades pagadas / Actos o actividades totales pagados a la tasa del 16% de IVA | F189: Devoluciones, descuentos y bonificaciones / Actos o actividades totales pagados a la tasa del 16% de IVA | G189: Exclusivamente de actividades gravadas / Actos o actividades totales pagados a la tasa del 16% de IVA
B190: 04 | C190: 85 | D190: MEMC870302LO9 | E190: 1950 | F190: =C183 -> 1950 | G190: =D184 -> 0
B192: DEM
B193: Campo 1 | C193: Campo 2 | D193: Campo 3 | E193: Campo 24
B194: Tipo de Tercero | C194: Tipo de Operación | D194: RFC | E194: IVA correspondiente a las devoluciones, descuentos y bonificaciones sobre compras
B195: 04 | C195: 85 | D195: =D190 -> MEMC870302LO9 | E195: =C184 -> 312
B199: Aplicativo nuevo
B200: Campo 9 | C200: Campo 11 | D200: Campo 13 | E200: Campo 15
B201: Devoluciones, descuentos y bonificaciones / Actos o actividades pagados en la región fronteriza norte | C201: Devoluciones, descuentos y bonificaciones / Actos o actividades pagados en la región fronteriza sur | D201: Devoluciones, descuentos y bonificaciones / Actos o actividades totales pagados a la tasa del 16% de IVA | E201: Devoluciones, descuentos y bonificaciones / Actos o actividades pagados en la importación por aduana de bienestangiblesa la tasa del16% de IVA
B204: DEM
B205: Campo 24
B206: IVA correspondiente a las devoluciones, descuentos y bonificaciones sobre compras
B208: Artículo 7o LIVA.- El contribuyente que reciba la devolución de bienes enajenados, otorgue descuentos o bonificaciones o devuelva los anticipos o los depósitos recibidos, con motivo de la realización de actividades gravadas por esta Ley, deducirá en la siguiente o siguientes declaraciones de pago del mes de calendario que corresponda, el monto de dichos conceptos del valor de los actos o actividades por los que deba pagar el impuesto, siempre que expresamente se haga constar que el impuesto al valor agregado que se hubiere trasladado se restituyó. La restitución del impuesto correspondiente deberá hacerse constar en un documento que contenga en forma expresa y por separado la contraprestación y el impuesto al valor agregado trasladado que se hubiesen restituido, así como los datos de identificación del comprobante fiscal de la operación original. El contribuyente que devuelva los bienes que le hubieran sido enajenados, reciba descuentos o bonificaciones, así como los anticipos o depósitos que hubiera entregado, disminuirá el impuesto restituido del monto del impuesto acreditable en el mes en que se dé cualquiera de los supuestos mencionados; cuando el monto del impuesto acreditable resulte inferior al monto del impuesto que se restituya, el contribuyente pagará la diferencia entre dichos montos al presentar la declaración de pago que corresponda al mes en que reciba el descuento o la bonificación, efectúe la devolución de bienes o reciba los anticipos o depósitos que hubiera entregado. Lo dispuesto en este artículo no será aplicable cuando por los actos que sean objeto de la devolución, descuento o bonificación, se hubiere efectuado la retención y entero en los términos de los artículos 1o.-A, 3o., tercer párrafo o 18-J, fracción II, inciso a) de esta Ley. En este supuesto los contribuyentes deberán presentar declaración complementaria para cancelar los efectos de la operación respectiva, sin que las declaraciones complementarias presentadas exclusivamente por este concepto se computen dentro del límite establecido en el artículo 32 del Código Fiscal de la Federación.
B212: Se da un anticipo
B213: Método de pago | C213: PUE
B214: Tipo de comprobante | C214: I
B215: Importe | C215: 100000
B216: IVA | C216: =C215*0.16 -> 16000
B217: Total | C217: =SUM(C215:C216) -> 116000
B219: Anticipo de cliente. Representa una obligación de transferir el control sobre bienes o servicios a un cliente en el futuro, que suerge de un cobro por adelantado.
B221: Datos del tercero | E221: Valor de actos o actividades | F221: IVA acreditable | G221: Datos adicionales
B222: Campo 1 | C222: Campo 2 | D222: Campo 3 | E222: Campo 12 | F222: Campo 22 | G222: Campo 54
B223: Tipo de Tercero | C223: Tipo de Operación | D223: RFC | E223: Valor total de actos o actividades pagadas / Actos o actividades totales pagados a la tasa del 16% de IVA | F223: Exclusivamente de actividades gravadas / Actos o actividades totales pagados a la tasa del 16% de IVA | G223: Manifiesto que se dio efectos fiscales a los comprobantes que amparan las operaciones realizadas con el proveedor
B224: 04 | C224: 85 | D224: MEMC870302LO9 | E224: =C215 -> 100000 | F224: =C216 -> 16000 | G224: 01
B227: CFDI de compra de mercancía
B228: Método de pago | C228: PUE
B229: Tipo de comprobante | C229: I
B230: Importe | C230: 125000
B231: IVA | C231: =C230*0.16 -> 20000
B232: Total | C232: =SUM(C230:C231) -> 145000
B234: Pago al proveedor | C234: =C232-C217 -> 29000
B236: Método de pago | C236: PUE
B237: Tipo de comprobante | C237: E
B238: Forma de pago | C238: 30
B239: Importe | C239: =C215 -> 100000
B240: IVA | C240: =C239*0.16 -> 16000
B241: Total | C241: =SUM(C239:C240) -> 116000
B243: Datos del tercero | E243: Valor de actos o actividades | F243: IVA acreditable | G243: Datos adicionales
B244: Campo 1 | C244: Campo 2 | D244: Campo 3 | E244: Campo 12 | F244: Campo 22 | G244: Campo 54
B245: Tipo de Tercero | C245: Tipo de Operación | D245: RFC | E245: Valor total de actos o actividades pagadas / Actos o actividades totales pagados a la tasa del 16% de IVA | F245: Exclusivamente de actividades gravadas / Actos o actividades totales pagados a la tasa del 16% de IVA | G245: Manifiesto que se dio efectos fiscales a los comprobantes que amparan las operaciones realizadas con el proveedor
B246: 04 | C246: 85 | D246: MEMC870302LO9 | E246: =C230-C239 -> 25000 | F246: =C231-C240 -> 4000 | G246: 01
B251: Se aplica la regla 2.7.1.39 RMF 2025
B252: Fecha | C252: 2025-05-02
B253: Método de pago | C253: PUE
B254: Moneda | C254: USD
B255: Tipo de cambio | C255: 20.10598
B257: Importe | C257: 5000
B258: IVA | C258: =C257*0.16 -> 800
B259: Total | C259: =SUM(C257:C258) -> 5800
B261: Se paga el día 30/05/2025 al tipo de cambio | D261: 20.6358
B264: Datos del tercero | E264: Valor de actos o actividades | F264: IVA acreditable | G264: Datos adicionales
B265: Campo 1 | C265: Campo 2 | D265: Campo 3 | E265: Campo 12 | F265: Campo 22 | G265: Campo 54
B266: Tipo de Tercero | C266: Tipo de Operación | D266: RFC | E266: Valor total de actos o actividades pagadas / Actos o actividades totales pagados a la tasa del 16% de IVA | F266: Exclusivamente de actividades gravadas / Actos o actividades totales pagados a la tasa del 16% de IVA | G266: Manifiesto que se dio efectos fiscales a los comprobantes que amparan las operaciones realizadas con el proveedor
B267: 04 | C267: 85 | D267: MEMC870302LO9 | E267: =ROUND(C257*D261,0) -> 103179 | F267: =ROUND(C258*D261,0) -> 16509 | G267: 01
C270: Registro contable
C271: Clientes | D271: =C259*C255 -> 116614.684
C272: IVA trasladado pendiente de cobro | E272: =C258*C255 -> 16084.784
C273: Ventas IVA 16% | E273: =C257*C255 -> 100529.9
C275: Bancos | D275: =C259*D261 -> 119687.64
C276: Clientes | E276: =D271 -> 116614.684
C277: =C272 -> IVA trasladado pendiente de cobro | D277: =E272 -> 16084.784
C278: IVA trasladado cobrado | E278: =C258*D261 -> 16508.64
C279: Utilidad en cambios | E279: 2649.1
D280: =SUM(D275:D278) -> 135772.424 | E280: =SUM(E275:E279) -> 135772.424

Sheet DIOT2025 (hidden)
E2: IR AL MENÚ
B5: Datos del tercero declarado
B6: Campo 1 | C6: Campo 2 | D6: Campo 3 | E6: Campo 4 | F6: Campo 5 | G6: Campo 6 | H6: Campo 7
B7: Tipo de Tercero | C7: Tipo de Operación | D7: RFC | E7: Número de ID Fiscal | F7: Nombre del Extranjero | G7: País o jurisdicción de residencia fiscal | H7: Especificar lugar de jurisdicción fiscal
A9: Tipo de dato: | B9: Numérico 2 posiciones | C9: Numérico 2 posiciones | D9: Alfanumérico a 12 o 13 posiciones, los caracteres alfabéticos deben ser mayúsculas | E9: Alfanumérico máximo 40 posiciones | F9: Alfanumérico máximo 300 posiciones | G9: Alfabético 2 posiciones | H9: Alfanumérico máximo 300 posiciones
A10: Obligatorio u Opcional: | B10: Obligatorio | C10: Obligatorio | D10: Obligatorio para el tipo de tercero nacional y global Opcional para el tipo de tercero extranjero | E10: Obligatorio para el tipo de tercero extranjero | F10: Obligatorio para el tipo de tercero extranjero | G10: Obligatorio para el tipo de tercero extranjero | H10: Obligatorio condicionado para el tipo de tercero extranjero
A11: Especificaciones: | B11: Es el tipo de proveedor o tercero a reportar: 04 Proveedor Nacional 05 Proveedor Extranjero 15 Proveedor Global | C11: Las opciones de tipo de operación varían para cada tipo de tercero. Proveedor Nacional 02 Enajenación de bienes 03 Prestación de Servicios Profesionales 06 Uso o goce temporal de bienes 08 Importación por transferencia virtual 85 Otros Proveedor Extranjero 02 Enajenación de bienes 03 Prestación de Servicios Profesionales 07 Importación de bienes o servicios Proveedor Global 87 Operaciones globales | D11: Debe corresponder a una clave del Registro Federal de Contribuyentes emitida por el SAT, ya que se valida su existencia en las bases institucionales. Para el tipo de proveedor global se coloca XAXX010101000. | E11: Acepta caracteres especiales. Acepta valores [a-z (incluso ñ) y &]. Para los tipos de tercero nacional y global el campo se queda vacío. | F11: Acepta caracteres especiales. Acepta valores [a-z (incluso ñ) y &]. Para los tipos de tercero nacional y global el campo se queda vacío. | G11: El valor se toma del catálogo Países, que se encuentra al final de este instructivo. Para los tipos de tercero nacional y global el campo se queda vacío. | H11: Obligatorio cuando el valor del campo País o jurisdicción de residencia fiscal sea ZZZ (Otro). Si el valor del campo País o jurisdicción de residencia fiscal es diferente a ZZZ (Otro), el campo se queda vacío. Para los tipos de tercero nacional y global el campo se queda vacío.
B13: VALOR DE ACTOS O ACTIVIDADES | D13: IVA ACREDITABLE
B14: Campo 8 | C14: Campo 9 | D14: Campo 18 | E14: Campo 19
B15: Valor total de actos o actividades pagadas / Actos o actividades pagados en la región fronteriza norte | C15: Devoluciones, descuentos y bonificaciones / Actos o actividades pagados en la región fronteriza norte | D15: Exclusivamente de actividades gravadas / Actos o actividades pagados en la región fronteriza norte | E15: Asociado a actividades por las cuales se aplicó una proporción / Actos o actividades pagados en la región fronteriza norte
B18: IVA NO ACREDITABLE
B19: Campo 28 | C19: Campo 29 | D19: Campo 30 | E19: Campo 31
B20: Asociado a actividades por las cuales se aplicó una proporción / Actos o actividades pagados en la región fronteriza norte | C20: Asociado a actividades que no cumple con requisitos / Actos o actividades pagados en la región fronteriza norte | D20: Asociado a actividades exentas / Monto del IVA pagado no acreditable en la región fronteriza norte | E20: Asociado a actividades no objeto / Monto del IVA pagado no acreditable en la región fronteriza norte
C23: La suma del IVA acreditable y no acreditable es mayor al valor total de actos o actividades pagadas por el 8%
C24: La suma del IVA acreditable y no acreditable es menor al valor total de actos o actividades pagadas por el 8%
B27: VALOR DE ACTOS O ACTIVIDADES | D27: IVA ACREDITABLE
B28: Campo 10 | C28: Campo 11 | D28: Campo 20 | E28: Campo 21
B29: Valor total de actos o actividades pagadas / Actos o actividades pagados en la región fronteriza sur | C29: Devoluciones, descuentos y bonificaciones / Actos o actividades pagados en la región fronteriza sur | D29: Exclusivamente de actividades gravadas / Actos o actividades pagados en la región fronteriza sur | E29: Asociado a actividades por las cuales se aplicó una proporción / Actos o actividades pagados en la región fronteriza sur
B32: IVA NO ACREDITABLE
B33: Campo 32 | C33: Campo 33 | D33: Campo 34 | E33: Campo 35
B34: Asociado a actividades por las cuales se aplicó una proporción / Actos o actividades pagados en la región fronteriza sur | C34: Asociado a actividades que no cumple con requisitos / Actos o actividades pagados en la región fronteriza sur | D34: Asociado a actividades exentas / Actos o actividades pagados en la región fronteriza sur | E34: Asociado a actividades no objeto / Actos o actividades pagados en la región fronteriza sur
C38: La suma del IVA acreditable y no acreditable es mayor al valor total de actos o actividades pagadas por el 8%
C39: La suma del IVA acreditable y no acreditable es menor al valor total de actos o actividades pagadas por el 8%
B42: VALOR DE ACTOS O ACTIVIDADES | D42: IVA ACREDITABLE
B43: Campo 12 | C43: Campo 13 | D43: Campo 22 | E43: Campo 23
B44: Valor total de actos o actividades pagadas / Actos o actividades totales pagados a la tasa del 16% de IVA | C44: Devoluciones, descuentos y bonificaciones / Actos o actividades totales pagados a la tasa del 16% de IVA | D44: Exclusivamente de actividades gravadas / Actos o actividades totales pagados a la tasa del 16% de IVA | E44: Asociado a actividades por las cuales se aplicó una proporción / Actos o actividades totales pagados a la tasa del 16% de IVA
B47: IVA NO ACREDITABLE
B48: Campo 36 | C48: Campo 37 | D48: Campo 38 | E48: Campo 39
B49: Asociado a actividades por las cuales se aplicó una proporción / Actos o actividades totales pagados a la tasa del 16% de IVA | C49: Asociado a actividades que no cumple con requisitos / Actos o actividades totales pagados a la tasa del 16% de IVA | D49: Asociado a actividades exentas / Actos o actividades totales pagados a la tasa del 16% de IVA | E49: Asociado a actividades no objeto / Actos o actividades totales pagados a la tasa del 16% de IVA
C53: La suma del IVA acreditable y no acreditable es mayor al valor total de actos o actividades pagadas por el 16%
C54: La suma del IVA acreditable y no acreditable es menor al valor total de actos o actividades pagadas por el 16%
B57: VALOR DE ACTOS O ACTIVIDADES | D57: IVA ACREDITABLE
B58: Campo 14 | C58: Campo 15 | D58: Campo 24 | E58: Campo 25
B59: Valor total de actos o actividades pagadas / Actos o actividades pagados en la importación por aduana de bienes tangibles a la tasa del 16% de IVA | C59: Devoluciones, descuentos y bonificaciones / Actos o actividades pagados en la importación por aduana de bienes tangibles a la tasa del 16% de IVA | D59: Exclusivamente de actividades gravadas / Actos o actividades pagados en la importación por aduana de bienes tangibles a la tasa del 16% de IVA | E59: Asociado a actividades por las cuales se aplicó una proporción / Actos o actividades pagados en la importación por aduana de bienes tangibles a la tasa del 16% de IVA
B62: IVA NO ACREDITABLE
B63: Campo 40 | C63: Campo 41 | D63: Campo 42 | E63: Campo 43
B64: Asociado a actividades por las cuales se aplicó una proporción / Actos o actividades pagados en la importación por aduana de bienes tangibles a la tasa del 16% de IVA | C64: Asociado a actividades que no cumple con requisitos / Actos o actividades pagados en la importación por aduana de bienes tangibles a la tasa del 16% de IVA | D64: Asociado a actividades exentas / Actos o actividades pagados en la importación por aduana de bienes tangibles a la tasa del 16% de IVA | E64: Asociado a actividades no objeto / Actos o actividades pagados en la importación por aduana de bienes tangibles a la tasa del 16% de IVA
C67: La suma del IVA acreditable y no acreditable es mayor al valor total de actos o actividades pagadas en la importación por aduana 16%
C68: La suma del IVA acreditable y no acreditable es menor al valor total de actos o actividades pagadas en la importación por aduana 16%
B71: VALOR DE ACTOS O ACTIVIDADES | D71: IVA ACREDITABLE
B72: Campo 16 | C72: Campo 17 | D72: Campo 26 | E72: Campo 27
B73: Valor total de actos o actividades pagadas / Actos o actividades pagados en la importación de bienes intangibles y servicios a la tasa del 16% de IVA | C73: Devoluciones, descuentos y bonificaciones / Actos o actividades pagados en la importación de bienes intangibles y servicios a la tasa del 16% de IVA | D73: Exclusivamente de actividades gravadas / Actos o actividades pagados en la importación de bienes intangibles y servicios a la tasa del 16% de IVA | E73: Asociado a actividades por las cuales se aplicó una proporción / Actos o actividades pagados en la importación de bienes intangibles y servicios a la tasa del 16% de IVA
B76: IVA NO ACREDITABLE
B77: Campo 44 | C77: Campo 45 | D77: Campo 46 | E77: Campo 47
B78: Asociado a actividades por las cuales se aplicó una proporción / Actos o actividades pagados en la importación de bienes intangibles y servicios a la tasa del 16% del IVA | C78: Asociado a actividades que no cumple con requisitos / Actos o actividades pagados en la importación de bienes intangibles y servicios a la tasa del 16% del IVA | D78: Asociado a actividades exentas / Actos o actividades pagados en la importación de bienes intangibles y servicios a la tasa del 16% del IVA | E78: Asociado a actividades no objeto / Actos o actividades pagados en la importación de bienes intangibles y servicios a la tasa del 16% del IVA
C81: La suma del IVA acreditable y no acreditable es mayor al valor total de actos o actividades pagadas por el 16%
C82: La suma del IVA acreditable y no acreditable es menor al valor total de actos o actividades pagadas por el 16%
B85: Datos adicionales
B86: Campo 48 | C86: Campo 49 | D86: Campo 50 | E86: Campo 51 | F86: Campo 52 | G86: Campo 53 | H86: Campo 54
B87: IVA retenido por el contribuyente | C87: Actos o actividades pagados en la importación de bienes y servicios por los que no se pagara el IVA (Exentos) | D87: Actos o actividades pagados por los que no se pagará el IVA (Exentos) | E87: Demás actos o actividades pagados a la tasa del 0% de IVA | F87: Actos o actividades no objeto del IVA realizados en territorio nacional | G87: Actos o actividades no objeto del IVA por no contar con establecimiento en territorio nacional | H87: Manifiesto que se dio efectos fiscales a los comprobantes que amparan las operaciones realizadas con el proveedor
A90: Tipo de dato: | B90: Numérico máximo 14 posiciones | C90: Numérico máximo 14 posiciones | D90: Numérico máximo 14 posiciones | E90: Numérico máximo 14 posiciones | F90: Numérico máximo 14 posiciones | G90: Numérico máximo 14 posiciones | H90: Numérico 2 posiciones
A91: Obligatorio u Opcional: | B91: Opcional | C91: Opcional | D91: Opcional | E91: Opcional | F91: Opcional | G91: Opcional | H91: Obligatorio
A92: Especificaciones: | B92: No permite decimales. Acepta cero. | C92: No permite decimales. Acepta cero. | D92: No permite decimales. Acepta cero. | E92: No permite decimales. Acepta cero. | F92: No permite decimales. Acepta cero. | G92: No permite decimales. Acepta cero. | H92: Es el tipo de proveedor o tercero a reportar: 01 Sí 02 No

Sheet ESTRUCTURA 2025 (hidden)
E3: IR AL MENÚ
B5: Datos del tercero declarado | I5: Valor de los actos o actividades | S5: IVA acreditable | AC5: IVA no acreditable | AW5: Datos adicionales
B6: Campo 1 | C6: Campo 2 | D6: Campo 3 | E6: Campo 4 | F6: Campo 5 | G6: Campo 6 | H6: Campo 7 | I6: Campo 8 | J6: Campo 9 | K6: Campo 10 | L6: Campo 11 | M6: Campo 12 | N6: Campo 13 | O6: Campo 14 | P6: Campo 15 | Q6: Campo 16 | R6: Campo 17 | S6: Campo 18 | T6: Campo 19 | U6: Campo 20 | V6: Campo 21 | W6: Campo 22 | X6: Campo 23 | Y6: Campo 24 | Z6: Campo 25 | AA6: Campo 26 | AB6: Campo 27 | AC6: Campo 28 | AD6: Campo 29 | AE6: Campo 30 | AF6: Campo 31 | AG6: Campo 32 | AH6: Campo 33 | AI6: Campo 34 | AJ6: Campo 35 | AK6: Campo 36 | AL6: Campo 37 | AM6: Campo 38 | AN6: Campo 39 | AO6: Campo 40 | AP6: Campo 41 | AQ6: Campo 42 | AR6: Campo 43 | AS6: Campo 44 | AT6: Campo 45 | AU6: Campo 46 | AV6: Campo 47 | AW6: Campo 48 | AX6: Campo 49 | AY6: Campo 50 | AZ6: Campo 51 | BA6: Campo 52 | BB6: Campo 53 | BC6: Campo 54
B7: Tipo de Tercero | C7: Tipo de Operación | D7: RFC | E7: Número de ID Fiscal | F7: Nombre del Extranjero | G7: País o jurisdicción de residencia fiscal | H7: Especificar lugar de jurisdicción fiscal | I7: Valor total de actos o actividades pagadas / Actos o actividades pagados en la región fronteriza norte | J7: Devoluciones, descuentos y bonificaciones / Actos o actividades pagados en la región fronteriza norte | K7: Valor total de actos o actividades pagadas / Actos o actividades pagados en la región fronteriza sur | L7: Devoluciones, descuentos y bonificaciones / Actos o actividades pagados en la región fronteriza sur | M7: Valor total de actos o actividades pagadas / Actos o actividades totales pagados a la tasa del 16% de IVA | N7: Devoluciones, descuentos y bonificaciones / Actos o actividades totales pagados a la tasa del 16% de IVA | O7: Valor total de actos o actividades pagadas / Actos o actividades pagados en la importación por aduana de bienes tangibles a la tasa del 16% de IVA | P7: Devoluciones, descuentos y bonificaciones / Actos o actividades pagados en la importación por aduana de bienes tangibles a la tasa del 16% de IVA | Q7: Valor total de actos o actividades pagadas / Actos o actividades pagados en la importación de bienes intangibles y servicios a la tasa del 16% de IVA | R7: Devoluciones, descuentos y bonificaciones / Actos o actividades pagados en la importación de bienes intangibles y servicios a la tasa del 16% de IVA | S7: Exclusivamente de actividades gravadas / Actos o actividades pagados en la región fronteriza norte | T7: Asociado a actividades por las cuales se aplicó una proporción / Actos o actividades pagados en la región fronteriza norte | U7: Exclusivamente de actividades gravadas / Actos o actividades pagados en la región fronteriza sur | V7: Asociado a actividades por las cuales se aplicó una proporción / Actos o actividades pagados en la región fronteriza sur | W7: Exclusivamente de actividades gravadas / Actos o actividades totales pagados a la tasa del 16% de IVA | X7: Asociado a actividades por las cuales se aplicó una proporción / Actos o actividades totales pagados a la tasa del 16% de IVA | Y7: Exclusivamente de actividades gravadas / Actos o actividades pagados en la importación por aduana de bienes tangibles a la tasa del 16% de IVA | Z7: Asociado a actividades por las cuales se aplicó una proporción / Actos o actividades pagados en la importación por aduana de bienes tangibles a la tasa del 16% de IVA | AA7: Exclusivamente de actividades gravadas / Actos o actividades pagados en la importación de bienes intangibles y servicios a la tasa del 16% de IVA | AB7: Asociado a actividades por las cuales se aplicó una proporción / Actos o actividades pagados en la importación de bienes intangibles y servicios a la tasa del 16% de IVA | AC7: Asociado a actividades por las cuales se aplicó una proporción / Actos o actividades pagados en la región fronteriza norte | AD7: Asociado a actividades que no cumple con requisitos / Actos o actividades pagados en la región fronteriza norte | AE7: Asociado a actividades exentas / Actos o actividades pagados en la región fronteriza norte | AF7: Asociado a actividades no objeto / Actos o actividades pagados en la región fronteriza norte | AG7: Asociado a actividades por las cuales se aplicó una proporción / Actos o actividades pagados en la región fronteriza sur | AH7: Asociado a actividades que no cumple con requisitos / Actos o actividades pagados en la región fronteriza sur | AI7: Asociado a actividades exentas / Actos o actividades pagados en la región fronteriza sur | AJ7: Asociado a actividades no objeto / Actos o actividades pagados en la región fronteriza sur | AK7: Asociado a actividades por las cuales se aplicó una proporción / Actos o actividades totales pagados a la tasa del 16% de IVA | AL7: Asociado a actividades que no cumple con requisitos / Actos o actividades totales pagados a la tasa del 16% de IVA | AM7: Asociado a actividades exentas / Actos o actividades totales pagados a la tasa del 16% de IVA | AN7: Asociado a actividades no objeto / Actos o actividades totales pagados a la tasa del 16% de IVA | AO7: Asociado a actividades por las cuales se aplicó una proporción / Actos o actividades pagados en la importación por aduana de bienes tangibles a la tasa del 16% de IVA | AP7: Asociado a actividades que no cumple con requisitos / Actos o actividades pagados en la importación por aduana de bienes tangibles a la tasa del 16% de IVA | AQ7: Asociado a actividades exentas / Actos o actividades pagados en la importación por aduana de bienes tangibles a la tasa del 16% de IVA | AR7: Asociado a actividades no objeto / Actos o actividades pagados en la importación por aduana de bienes tangibles a la tasa del 16% de IVA | AS7: Asociado a actividades por las cuales se aplicó una proporción / Actos o actividades pagados en la importación de bienes intangibles y servicios a la tasa del 16% del IVA | AT7: Asociado a actividades que no cumple con requisitos / Actos o actividades pagados en la importación de bienes intangibles y servicios a la tasa del 16% del IVA | AU7: Asociado a actividades exentas / Actos o actividades pagados en la importación de bienes intangibles y servicios a la tasa del 16% del IVA | AV7: Asociado a actividades no objeto / Actos o actividades pagados en la importación de bienes intangibles y servicios a la tasa del 16% del IVA | AW7: IVA retenido por el contribuyente | AX7: Actos o actividades pagados en la importación de bienes y servicios por los que no se pagara el IVA (Exentos) | AY7: Actos o actividades pagados por los que no se pagará el IVA (Exentos) | AZ7: Demás actos o actividades pagados a la tasa del 0% de IVA | BA7: Actos o actividades no objeto del IVA realizados en territorio nacional | BB7: Actos o actividades no objeto del IVA por no contar con establecimiento en territorio nacional | BC7: Manifiesto que se dio efectos fiscales a los comprobantes que amparan las operaciones realizadas con el proveedor

Sheet GENERAL (hidden)
B4: artículo 5.1 del Decreto que compila diversos beneficios fiscales y establece medidas de simplificación administrativa, del 26 de diciembre de 2013.
B6: Sexto dígito numérico de la clave del RFC | C6: Fecha límite de pago
B7: 1 y 2 | C7: Día 17 más un día hábil | D7: 1
B8: 3 y 4 | C8: Día 17 más dos días hábiles | D8: 2
B9: 5 y 6 | C9: Día 17 más tres días hábiles | D9: 3
B10: 7 y 8 | C10: Día 17 más cuatro días hábiles | D10: 4
B11: 9 y 0 | C11: Día 17 más cinco días hábiles | D11: 5
B14: 1 | C14: 1
B15: 2 | C15: 1
B16: 3 | C16: 2
B17: 4 | C17: 2
B18: 5 | C18: 3
B19: 6 | C19: 3
B20: 7 | C20: 4
B21: 8 | C21: 4
B22: 9 | C22: 5
B23: 0 | C23: 5
B62: Fecha inicial
B63: Fecha final
B64: Régimen fiscal | C64: 626
B65: Tipo de comprobante | C65: I
E66: USO DEL CFDI
E67: G01 | F67: G03 | G67: I = Inversiones
B68: c_FormaPago | C68: Descripción | D68: Bancarizado | E68: Importe - Descuento | F68: Importe - Descuento | G68: Importe - Descuento
B69: 1 | C69: Efectivo | D69: No | E69: 0 | F69: 0 | G69: 0
B70: 2 | C70: Cheque nominativo | D70: Sí | E70: 0 | F70: 0 | G70: 0
B71: 3 | C71: Transferencia electrónica de fondos | D71: Sí | E71: 0 | F71: 0 | G71: 0
B72: 4 | C72: Tarjeta de crédito | D72: Sí | E72: 0 | F72: 0 | G72: 0
B73: 5 | C73: Monedero electrónico | D73: Sí | E73: 0 | F73: 0 | G73: 0
B74: 6 | C74: Dinero electrónico | D74: Sí | E74: 0 | F74: 0 | G74: 0
B75: 8 | C75: Vales de despensa | D75: No | E75: 0 | F75: 0 | G75: 0
B76: 12 | C76: Dación en pago | D76: No | E76: 0 | F76: 0 | G76: 0
B77: 13 | C77: Pago por subrogación | D77: No | E77: 0 | F77: 0 | G77: 0
B78: 14 | C78: Pago por consignación | D78: No | E78: 0 | F78: 0 | G78: 0
B79: 15 | C79: Condonación | D79: No | E79: 0 | F79: 0 | G79: 0
B80: 17 | C80: Compensación | D80: No | E80: 0 | F80: 0 | G80: 0
B81: 23 | C81: Novación | D81: No | E81: 0 | F81: 0 | G81: 0
B82: 24 | C82: Confusión | D82: No | E82: 0 | F82: 0 | G82: 0
B83: 25 | C83: Remisión de deuda | D83: No | E83: 0 | F83: 0 | G83: 0
B84: 26 | C84: Prescripción o caducidad | D84: No | E84: 0 | F84: 0 | G84: 0
B85: 27 | C85: A satisfacción del acreedor | D85: No | E85: 0 | F85: 0 | G85: 0
B86: 28 | C86: Tarjeta de débito | D86: Sí | E86: 0 | F86: 0 | G86: 0
B87: 29 | C87: Tarjeta de servicios | D87: Sí | E87: 0 | F87: 0 | G87: 0
B88: 30 | C88: Aplicación de anticipos | D88: No | E88: 0 | F88: 0 | G88: 0
B89: 31 | C89: Intermediario pagos | D89: No | E89: 0 | F89: 0 | G89: 0
C90: Total | E90: =SUM(E69:E89) -> 0 | F90: =SUM(F69:F89) -> 0 | G90: =SUM(G69:G89) -> 0
D91: Total | E91: =SUM(E90:F90) -> 0
C92: Total banarizado | E92: =SUMIF($D$69:$D$89,"Sí",E69:E89)+SUMIF($D$69:$D$89,"Sí",F69:F89) -> 0
E95: USO DEL CFDI
E96: G01 | F96: G03 | G96: I = Inversiones
B97: c_FormaPago | C97: Descripción | D97: Bancarizado | E97: Importe pagado | F97: Importe pagado | G97: Importe pagado
B98: 1 | C98: Efectivo | D98: No | E98: 0 | F98: 0 | G98: 0
B99: 2 | C99: Cheque nominativo | D99: Sí | E99: 0 | F99: 0 | G99: 0
B100: 3 | C100: Transferencia electrónica de fondos | D100: Sí | E100: 0 | F100: 0 | G100: 0
B101: 4 | C101: Tarjeta de crédito | D101: Sí | E101: 0 | F101: 0 | G101: 0
B102: 5 | C102: Monedero electrónico | D102: Sí | E102: 0 | F102: 0 | G102: 0
B103: 6 | C103: Dinero electrónico | D103: Sí | E103: 0 | F103: 0 | G103: 0
B104: 8 | C104: Vales de despensa | D104: No | E104: 0 | F104: 0 | G104: 0
B105: 12 | C105: Dación en pago | D105: No | E105: 0 | F105: 0 | G105: 0
B106: 13 | C106: Pago por subrogación | D106: No | E106: 0 | F106: 0 | G106: 0
B107: 14 | C107: Pago por consignación | D107: No | E107: 0 | F107: 0 | G107: 0
B108: 15 | C108: Condonación | D108: No | E108: 0 | F108: 0 | G108: 0
B109: 17 | C109: Compensación | D109: No | E109: 0 | F109: 0 | G109: 0
B110: 23 | C110: Novación | D110: No | E110: 0 | F110: 0 | G110: 0
B111: 24 | C111: Confusión | D111: No | E111: 0 | F111: 0 | G111: 0
B112: 25 | C112: Remisión de deuda | D112: No | E112: 0 | F112: 0 | G112: 0
B113: 26 | C113: Prescripción o caducidad | D113: No | E113: 0 | F113: 0 | G113: 0
B114: 27 | C114: A satisfacción del acreedor | D114: No | E114: 0 | F114: 0 | G114: 0
B115: 28 | C115: Tarjeta de débito | D115: Sí | E115: 0 | F115: 0 | G115: 0
B116: 29 | C116: Tarjeta de servicios | D116: Sí | E116: 0 | F116: 0 | G116: 0
B117: 30 | C117: Aplicación de anticipos | D117: No | E117: 0 | F117: 0 | G117: 0
B118: 31 | C118: Intermediario pagos | D118: No | E118: 0 | F118: 0 | G118: 0
C119: Total | E119: =SUM(E98:E118) -> 0 | F119: =SUM(F98:F118) -> 0 | G119: =SUM(G98:G118) -> 0
D120: Total | E120: =SUM(E119:F119) -> 0
C121: Total banarizado | E121: =SUMIF($D$69:$D$89,"Sí",E98:E118)+SUMIF($D$69:$D$89,"Sí",F98:F118) -> 0

Sheet AYUDA DIOT 2024 (hidden)
C5: Campo 1 | D5: Campo 2 | E5: Campo 3 | F5: Campo 4 | G5: Campo 5 | H5: Campo 6 | I5: Campo 7 | J5: Campo 8 | K5: Campo 9 | L5: Campo 10 | M5: Campo 11 | N5: Campo 12 | O5: Campo 13 | P5: Campo 14 | Q5: Campo 15 | R5: Campo 16 | S5: Campo 17 | T5: Campo 18 | U5: Campo 19 | V5: Campo 20 | W5: Campo 21 | X5: Campo 22 | Y5: Campo 23
C6: Tipo de tercero | D6: Tipo de operación | E6: Registro Federal de Contribuyentes | F6: Número de identificación fiscal | G6: Nombre del extranjero | H6: País o jurisdicción de residencia fiscal | I6: Especificar lugar de jurisdicción fiscal | J6: Valor de los actos o actividades / Actos o actividades pagados a la tasa del 16% de IVA | K6: Monto del IVA pagado no acreditable / Actos o actividades pagados a la tasa del 16% de IVA | L6: Actos o actividades pagados a la tasa del 11% de IVA | M6: Monto del IVA pagado no acreditable 11% | N6: Valor de los actos o actividades / Actos o actividades pagados en la región fronteriza norte | O6: Monto del IVA pagado no acreditable / Actos o actividades pagados en la región fronteriza norte | P6: Valor de los actos o actividades / Actos o actividades pagados en la región fronteriza sur | Q6: Monto del IVA pagado no acreditable / Actos o actividades pagados en la región fronteriza sur | R6: Valor de los actos o actividades / Actos o actividades pagados en la importación de bienes y servicios a la tasa del 16% de IVA | S6: Monto del IVA pagado no acreditable / Actos o actividades pagados en la importación de bienes y servicios a la tasa del 16% de IVA | T6: Valor de los actos o actividades / Actos o actividades pagados en la importación de bienes y servicios por los que no se pagará el IVA (Exentos) | U6: Valor de los actos o actividades / Actos o actividades pagados por los que no se pagará el IVA (Exentos) | V6: Valor de los actos o actividades / Demás actos o actividades pagados a la tasa del 0% de IVA | W6: Valor de los actos o actividades / Actos o actividades no objeto del IVA | X6: IVA pagado / IVA retenido por el contribuyente | Y6: IVA pagado / IVA por devoluciones, descuentos y bonificaciones sobre adquisición de mercancías y gastos en general
B9: Tipo de dato | C9: Numérico 2 posiciones | D9: Numérico 2 posiciones | E9: Alfanumérico a 12 o 13 posiciones, los caracteres alfabéticos deben ser mayúsculas | F9: Alfanumérico máximo 40 posiciones | G9: Alfanumérico máximo 300 posiciones | H9: Alfabético 2 posiciones | I9: Alfanumérico máximo 300 posiciones | J9: Numérico máximo 14 posiciones | K9: Numérico máximo 14 posiciones | L9: Numérico máximo 14 posiciones | M9: Numérico máximo 14 posiciones | N9: Numérico máximo 14 posiciones | O9: Numérico máximo 14 posiciones | P9: Numérico máximo 14 posiciones | Q9: Numérico máximo 14 posiciones | R9: Numérico máximo 14 posiciones | S9: Numérico máximo 14 posiciones | T9: Numérico máximo 14 posiciones | U9: Numérico máximo 14 posiciones | W9: Numérico máximo 14 posiciones | X9: Numérico máximo 14 posiciones | Y9: Numérico máximo 14 posiciones
B10: Obligatorio u Opcional | C10: Obligatorio | D10: Obligatorio | E10: Obligatorio para el tipo de tercero nacional y global Opcional para el tipo de tercero extranjero | F10: Obligatorio para el tipo de tercero extranjero | G10: Obligatorio para el tipo de tercero extranjero | H10: Obligatorio para el tipo de tercero extranjero | I10: Obligatorio condicionado para el tipo de tercero extranjero | J10: Opcional | K10: Opcional | L10: Opcional | M10: Opcional | N10: Opcional | O10: Opcional | P10: Opcional | Q10: Opcional | R10: Opcional | S10: Opcional | T10: Opcional | U10: Opcional | V10: Opcional | W10: Opcional | X10: Opcional | Y10: Opcional
B11: Especificaciones | C11: Es el tipo de proveedor o tercero a reportar: 04 Proveedor Nacional 05 Proveedor Extranjero 15 Proveedor Global | D11: Las opciones de tipo de operación varían para cada tipo de tercero. Proveedor Nacional 03 Prestación de Servicios Profesionales 06 Uso o goce temporal de bienes 85 Otros Proveedor Extranjero 03 Prestación de Servicios Profesionales 85 Otros Proveedor Global 87 Operaciones globales | E11: Debe corresponder a una clave del Registro Federal de Contribuyentes emitida por el SAT, ya que se valida su existencia en las bases institucionales. Para el tipo de proveedor global se coloca XAXX010101000. | F11: Acepta caracteres especiales. Acepta valores [a-z (incluso ñ) y &]. Para los tipos de tercero nacional y global el campo se queda vacío. | G11: Acepta caracteres especiales. Acepta valores [a-z (incluso ñ) y &]. Para los tipos de tercero nacional y global el campo se queda vacío. | H11: El valor se toma del catálogo Países, que se encuentra al final de este instructivo. Para los tipos de tercero nacional y global el campo se queda vacío. | I11: Obligatorio cuando el valor del campo País o jurisdicción de residencia fiscal sea ZZZ (Otro). Si el valor del campo País o jurisdicción de residencia fiscal es diferente a ZZZ (Otro), el campo se queda vacío. Para los tipos de tercero nacional y global el campo se queda vacío. | J11: No permite decimales. Acepta cero. | K11: No permite decimales. Acepta cero. El valor de este campo debe ser menor o igual, al valor resultante de multiplicar el valor del campo anterior (Valor de los actos o actividades / Actos o actividades pagados a la tasa del 16% de IVA) por 0.16 | L11: No permite decimales. Acepta cero. El campo solo aplica para declaraciones: Ejercicio 2014, Periodicidad 1-Mensual y Período enero Ejercicio 2014, Periodicidad 5-Semestral (A) y Período 1º Enero-Junio Para los demás casos se queda vacío. | M11: No permite decimales. Acepta cero. El campo solo aplica para declaraciones: Ejercicio 2014, Periodicidad 1-Mensual y Período enero Ejercicio 2014, Periodicidad 5-Semestral (A) y Período 1º Enero-Junio Para los demás casos se queda vacío. | N11: No permite decimales. Acepta cero. El campo se queda vacío para ejercicios 2018 hacia atrás. | O11: No permite decimales. Acepta cero. El valor de este campo debe ser menor o igual, al valor resultante de multiplicar el valor del campo anterior (Valor de los actos o actividades / Actos o actividades pagados en la región fronteriza norte) por 0.08 | P11: No permite decimales. Acepta cero. El campo se queda vacío para ejercicios 2020 hacia atrás. | Q11: No permite decimales. Acepta cero. El campo se queda vacío para ejercicios 2020 hacia atrás. El valor de este campo debe ser menor o igual, al valor resultante de multiplicar el valor del campo anterior (Valor de los actos o actividades / Actos o actividades pagados en la región fronteriza sur) por 0.08 | R11: No permite decimales. Acepta cero. Para el tipo de tercero nacional el campo se queda vacío. | S11: No permite decimales. Acepta cero. Para el tipo de tercero nacional el campo se queda vacío. El valor de este campo debe ser menor o igual, al valor resultante de multiplicar el valor del campo anterior (Valor de los actos o actividades / Actos o actividades pagados en la importación de bienes y servicios a la tasa del 16% de IVA) por 0.16 | T11: No permite decimales. Acepta cero. Para el tipo de tercero nacional el campo se queda vacío. | U11: No permite decimales. Acepta cero. | V11: No permite decimales. Acepta cero. | W11: No permite decimales. Acepta cero. | X11: No permite decimales. Acepta cero. | Y11: No permite decimales. Acepta cero.

Sheet ESTRUCTURA 2024 (hidden)
B5: Campo 1 | C5: Campo 2 | D5: Campo 3 | E5: Campo 4 | F5: Campo 5 | G5: Campo 6 | H5: Campo 7 | I5: Campo 8 | J5: Campo 9 | K5: Campo 10 | L5: Campo 11 | M5: Campo 12 | N5: Campo 13 | O5: Campo 14 | P5: Campo 15 | Q5: Campo 16 | R5: Campo 17 | S5: Campo 18 | T5: Campo 19 | U5: Campo 20 | V5: Campo 21 | W5: Campo 22 | X5: Campo 23
B6: Tipo de tercero | C6: Tipo de operación | D6: Registro Federal de Contribuyentes | E6: Número de identificación fiscal | F6: Nombre del extranjero | G6: País o jurisdicción de residencia fiscal | H6: Especificar lugar de jurisdicción fiscal | I6: Valor de los actos o actividades / Actos o actividades pagados a la tasa del 16% de IVA | J6: Monto del IVA pagado no acreditable / Actos o actividades pagados a la tasa del 16% de IVA | K6: Actos o actividades pagados a la tasa del 11% de IVA | L6: Monto del IVA pagado no acreditable 11% | M6: Valor de los actos o actividades / Actos o actividades pagados en la región fronteriza norte | N6: Monto del IVA pagado no acreditable / Actos o actividades pagados en la región fronteriza norte | O6: Valor de los actos o actividades / Actos o actividades pagados en la región fronteriza sur | P6: Monto del IVA pagado no acreditable / Actos o actividades pagados en la región fronteriza sur | Q6: Valor de los actos o actividades / Actos o actividades pagados en la importación de bienes y servicios a la tasa del 16% de IVA | R6: Monto del IVA pagado no acreditable / Actos o actividades pagados en la importación de bienes y servicios a la tasa del 16% de IVA | S6: Valor de los actos o actividades / Actos o actividades pagados en la importación de bienes y servicios por los que no se pagará el IVA (Exentos) | T6: Valor de los actos o actividades / Actos o actividades pagados por los que no se pagará el IVA (Exentos) | U6: Valor de los actos o actividades / Demás actos o actividades pagados a la tasa del 0% de IVA | V6: Valor de los actos o actividades / Actos o actividades no objeto del IVA | W6: IVA pagado / IVA retenido por el contribuyente | X6: IVA pagado / IVA por devoluciones, descuentos y bonificaciones sobre adquisición de mercancías y gastos en general

Sheet INPC (hidden)
L2: IR AL MENÚ
C4: Enero | D4: Febrero | E4: Marzo | F4: Abril | G4: Mayo | H4: Junio | I4: Julio | J4: Agosto | K4: Septiembre | L4: Octubre | M4: Noviembre | N4: Diciembre
B5: 2025 | C5: 138.343 | D5: 138.726 | E5: 139.161 | F5: 139.62
B6: 2024 | C6: 133.555 | D6: 133.681 | E6: 134.065 | F6: 134.336 | G6: 134.087 | H6: 134.594 | I6: 136.003 | J6: 136.013 | K6: 136.08 | L6: 136.828 | M6: 137.424 | N6: 137.949
B7: 2023 | C7: 127.336 | D7: 128.046 | E7: 128.389 | F7: 128.363 | G7: 128.084 | H7: 128.214 | I7: 128.832 | J7: 129.545 | K7: 130.12 | L7: 130.609 | M7: 131.445 | N7: 132.373
B8: 2022 | C8: 118.002 | D8: 118.981 | E8: 120.159 | F8: 120.809 | G8: 121.022 | H8: 122.044 | I8: 122.948 | J8: 123.803 | K8: 124.571 | L8: 125.276 | M8: 125.997 | N8: 126.478
B9: 2021 | C9: 110.21 | D9: 110.907 | E9: 111.824 | F9: 112.19 | G9: 112.419 | H9: 113.018 | I9: 113.682 | J9: 113.899 | K9: 114.601 | L9: 115.561 | M9: 116.884 | N9: 117.308
B10: 2020 | C10: 106.447 | D10: 106.889 | E10: 106.838 | F10: 105.755 | G10: 106.162 | H10: 106.743 | I10: 107.444 | J10: 107.867 | K10: 108.114 | L10: 108.774 | M10: 108.856 | N10: 109.271
B11: 2019 | C11: 103.108 | D11: 103.079 | E11: 103.476 | F11: 103.531 | G11: 103.233 | H11: 103.299 | I11: 103.687 | J11: 103.67 | K11: 103.942 | L11: 104.503 | M11: 105.346 | N11: 105.934
B12: 2018 | C12: 98.7949997 | D12: 99.17137448 | E12: 99.49215698 | F12: 99.15484705 | G12: 98.99408017 | H12: 99.37646493 | I12: 99.9090991 | J12: 100.492 | K12: 100.917 | L12: 101.44 | M12: 102.303 | N12: 103.02
B13: 2017 | C13: 93.60388244 | D13: 94.14478034 | E13: 94.72248933 | F13: 94.83893263 | G13: 94.72549432 | H13: 94.96363964 | I13: 95.32273574 | J13: 95.79376765 | K13: 96.09351524 | L13: 96.69826913 | M13: 97.69517399 | N13: 98.27288299
B14: 2016 | C14: 89.38638139 | D14: 89.77778112 | E14: 89.9100006 | F14: 89.62527796 | G14: 89.22561452 | H14: 89.32402789 | I14: 89.55691448 | J14: 89.80933349 | K14: 90.35774385 | L14: 90.90615422 | M14: 91.61683394 | N14: 92.0390348
B15: 2015 | C15: 87.11010277 | D15: 87.27537713 | E15: 87.63071699 | F15: 87.40384038 | G15: 86.96736583 | H15: 87.11310776 | I15: 87.24081976 | J15: 87.42487529 | K15: 87.75241902 | L15: 88.2039185 | M15: 88.68546788 | N15: 89.04681772
B16: 2014 | C16: 84.51905163 | D16: 84.73315704 | E16: 84.96529239 | F16: 84.80677925 | G16: 84.53557906 | H16: 84.68207224 | I16: 84.91495883 | J16: 85.21996514 | K16: 85.59633992 | L16: 86.06962558 | M16: 86.76377787 | N16: 87.18898371
B17: 2013 | C17: 80.89278202 | D17: 81.29094297 | E17: 81.88743314 | F17: 81.94152293 | G17: 81.66882024 | H17: 81.61923793 | I17: 81.59219304 | J17: 81.82432839 | K17: 82.13233968 | L17: 82.52298816 | M17: 83.29226516 | N17: 83.7700583
B18: 2012 | C18: 78.34304946 | D18: 78.50231384 | E18: 78.54738867 | F18: 78.30097963 | G18: 78.05381934 | H18: 78.41366669 | I18: 78.85389747 | J18: 79.0905403 | K18: 79.43911894 | L18: 79.84103612 | M18: 80.3834365 | N18: 80.56824328
B19: 2011 | C19: 75.29599135 | D19: 75.57846024 | E19: 75.72345093 | F19: 75.71744095 | G19: 75.15926438 | H19: 75.15550814 | I19: 75.51610674 | J19: 75.63555502 | K19: 75.82111305 | L19: 76.3327123 | M19: 77.15833283 | N19: 77.79238536
B20: 2010 | C20: 72.55204598 | D20: 72.97167051 | E20: 73.48972549 | F20: 73.25556464 | G20: 72.79397765 | H20: 72.77118323 | I20: 72.92919 | J20: 73.1317495 | K20: 73.51511019 | L20: 73.96892635 | M20: 74.56158125 | N20: 74.93095445
B21: 2009 | C21: 69.45614941 | D21: 69.60949368 | E21: 70.00995018 | F21: 70.25499019 | G21: 70.05035847 | H21: 70.17935416 | I21: 70.37051645 | J21: 70.53888432 | K21: 70.89271587 | L21: 71.10719063 | M21: 71.47604578 | N21: 71.77185517
B22: 2008 | C22: 65.35056368 | D22: 65.5448343 | E22: 66.01989072 | F22: 66.17012666 | G22: 66.09863507 | H22: 66.3721681 | I22: 66.74205936 | J22: 67.12749227 | K22: 67.58493481 | L22: 68.04548569 | M22: 68.81894178 | N22: 69.29555236
B23: 2007 | C23: 63.01620793 | D23: 63.19234663 | E23: 63.32911314 | F23: 63.29129513 | G23: 62.98253436 | H23: 63.05817039 | I23: 63.32600481 | J23: 63.58399619 | K23: 64.07770259 | L23: 64.32740509 | M23: 64.78122126 | N23: 65.04905568
B24: 2006 | C24: 60.60362589 | D24: 60.69635773 | E24: 60.77251181 | F24: 60.86161727 | G24: 60.59067451 | H24: 60.64299806 | I24: 60.80929371 | J24: 61.11960865 | K24: 61.73661213 | L24: 62.00651878 | M24: 62.3318573 | N24: 62.69242357
B25: 2005 | C25: 58.30916037 | D25: 58.50343099 | E25: 58.76712098 | F25: 58.97641519 | G25: 58.82825146 | H25: 58.77178347 | I25: 59.00179988 | J25: 59.07225536 | K25: 59.30900649 | L25: 59.45457994 | M25: 59.88249335 | N25: 60.25031239
B26: 2004 | C26: 55.77431735 | D26: 56.10794476 | E26: 56.29807094 | F26: 56.38303195 | G26: 56.24160294 | H26: 56.33174451 | I26: 56.47939018 | J26: 56.82804118 | K26: 57.29791705 | L26: 57.69474717 | M26: 58.1868994 | N26: 58.30708815
B27: 2003 | C27: 53.52544068 | D27: 53.67412245 | E27: 54.01293041 | F27: 54.1051442 | G27: 53.93055967 | H27: 53.9751124 | I27: 54.0533387 | J27: 54.21548991 | K27: 54.53823816 | L27: 54.73820739 | M27: 55.19254161 | N27: 55.42981079
B28: 2002 | C28: 50.90047201 | D28: 50.86774985 | E28: 51.12794844 | F28: 51.40723497 | G28: 51.51142923 | H28: 51.76258618 | I28: 51.91118135 | J28: 52.1085603 | K28: 52.42198356 | L28: 52.65303609 | M28: 53.07887728 | N28: 53.3099298
B29: 2001 | C29: 48.57547625 | D29: 48.54332816 | E29: 48.85088778 | F29: 49.09730863 | G29: 49.20997046 | H29: 49.32636377 | I29: 49.19820196 | J29: 49.48968755 | K29: 49.95038115 | L29: 50.17613537 | M29: 50.36514891 | N29: 50.43489879
B30: 2000 | C30: 44.93083012 | D30: 45.32938031 | E30: 45.58068078 | F30: 45.84001827 | G30: 46.01137907 | H30: 46.28392024 | I30: 46.46446621 | J30: 46.71978519 | K30: 47.0610716 | L30: 47.38513583 | M30: 47.79028786 | N30: 48.30767118
B31: 1999 | C31: 40.46977028 | D31: 41.01364281 | E31: 41.39468378 | F31: 41.77457661 | G31: 42.02587708 | H31: 42.3020062 | I31: 42.58157977 | J31: 42.82125526 | K31: 43.23501839 | L31: 43.50885123 | M31: 43.89577645 | N31: 44.33551639
B32: 1998 | C32: 34.00392411 | D32: 34.59923784 | E32: 35.0045334 | F32: 35.33204206 | G32: 35.61348136 | H32: 36.03442041 | I32: 36.38187811 | J32: 36.7316321 | K32: 37.32737639 | L32: 37.86226893 | M32: 38.53278623 | N32: 39.47297432
B33: 1997 | C33: 29.49888603 | D33: 29.99459809 | E33: 30.36788907 | F33: 30.69597181 | G33: 30.97611945 | H33: 31.25095691 | I33: 31.52321104 | J33: 31.8035022 | K33: 32.19961259 | L33: 32.45694082 | M33: 32.82004201 | N33: 33.27987451
B34: 1996 | C34: 23.32975376 | D34: 23.87426203 | E34: 24.39982588 | F34: 25.09344962 | G34: 25.5508423 | H34: 25.96690173 | I34: 26.33603069 | J34: 26.68607171 | K34: 27.11275149 | L34: 27.45116754 | M34: 27.86708345 | N34: 28.75933645
B35: 1995 | C35: 15.37699094 | D35: 16.02870735 | E35: 16.9736172 | F35: 18.32613326 | G35: 19.09209019 | H35: 19.69802427 | I35: 20.09958836 | J35: 20.43298127 | K35: 20.85564253 | L35: 21.28476212 | M35: 21.80960838 | N35: 22.52016727
B36: 1994 | C36: 13.95037498 | D36: 14.02212406 | E36: 14.09422476 | F36: 14.1632513 | G36: 14.23168224 | H36: 14.30289457 | I36: 14.36632677 | J36: 14.43328665 | K36: 14.53593664 | L36: 14.6122453 | M36: 14.69036086 | N36: 14.81920437
B37: 1993 | C37: 12.97731976 | D37: 13.08334531 | E37: 13.15959369 | F37: 13.2354804 | G37: 13.31113749 | H37: 13.38579712 | I37: 13.45012344 | J37: 13.52211219 | K37: 13.62226067 | L37: 13.67797303 | M37: 13.73830236 | N37: 13.8430549
B38: 1992 | C38: 11.65777847 | D38: 11.79590044 | E38: 11.91594772 | F38: 12.02217132 | G38: 12.10143789 | H38: 12.18334519 | I38: 12.26027241 | J38: 12.33559223 | K38: 12.44289652 | L38: 12.53249354 | M38: 12.63662034 | N38: 12.81655348
B39: 1991 | C39: 9.883879895 | D39: 10.05642472 | E39: 10.19983964 | F39: 10.30668755 | G39: 10.40744167 | H39: 10.51664758 | I39: 10.60958427 | J39: 10.68342298 | K39: 10.78985037 | L39: 10.91534274 | M39: 11.1863741 | N39: 11.44967987
B40: 1990 | C40: 7.776037302 | D40: 7.952119854 | E40: 8.09230992 | F40: 8.215471549 | G40: 8.358837676 | H40: 8.542938589 | I40: 8.698734834 | J40: 8.846950442 | K40: 8.973061369 | L40: 9.102059888 | M40: 9.343723103 | N40: 9.638213954
B41: 1989 | C41: 6.349023793 | D41: 6.435183543 | E41: 6.504944899 | F41: 6.602224445 | G41: 6.693098769 | H41: 6.774384637 | I41: 6.842148218 | J41: 6.907332776 | K41: 6.973392795 | L41: 7.076525015 | M41: 7.175855437 | N41: 7.418029579
B42: 1988 | C42: 4.718245936 | D42: 5.11178304 | E42: 5.373547426 | F42: 5.538940737 | G42: 5.646108688 | H42: 5.761292137 | I42: 5.857456543 | J42: 5.911343343 | K42: 5.945139022 | L42: 5.990486483 | M42: 6.070654347 | N42: 6.197316386
B43: 1987 | C43: 1.704401293 | D43: 1.82738639 | E43: 1.948152699 | F43: 2.11860646 | G43: 2.278325059 | H43: 2.443145733 | I43: 2.641021527 | J43: 2.856871549 | K43: 3.045081395 | L43: 3.298844634 | M43: 3.560511423 | N43: 4.086392459
B44: 1986 | C44: 0.8340922314 | D44: 0.8711744774 | E44: 0.9116667168 | F44: 0.9592631115 | G44: 1.012570099 | H44: 1.077566644 | I44: 1.131332893 | J44: 1.221531243 | K44: 1.294811669 | L44: 1.368824029 | M44: 1.461304324 | N44: 1.576734626
B45: 1985 | C45: 0.5027114465 | D45: 0.5235962218 | E45: 0.5438853996 | F45: 0.5606210622 | G45: 0.5739022409 | H45: 0.5882755934 | I45: 0.6087628237 | J45: 0.6353768519 | K45: 0.6607523142 | L45: 0.6858522231 | M45: 0.717495125 | N45: 0.7663401306
B46: 1984 | C46: 0.3127277179 | D46: 0.3292323176 | E46: 0.3433042813 | F46: 0.35815555 | G46: 0.3700316859 | H46: 0.383423376 | I46: 0.3959927058 | J46: 0.4072488386 | K46: 0.4193804378 | L46: 0.434033654 | M46: 0.4489294132 | N46: 0.4679958155
B47: 1983 | C47: 0.1803550862 | D47: 0.1900339592 | E47: 0.1992320461 | F47: 0.2118458612 | G47: 0.221033903 | H47: 0.2294038894 | I47: 0.2407461334 | J47: 0.2500906071 | K47: 0.257787495 | L47: 0.2663411785 | M47: 0.2819832374 | N47: 0.2940473806
B48: 1982 | C48: 0.08586553576 | D48: 0.08923965376 | E48: 0.09249895005 | F48: 0.09751204377 | G48: 0.1029930085 | H48: 0.1079544314 | I48: 0.1135172022 | J48: 0.1262558789 | K48: 0.1329954996 | L48: 0.1398901172 | M48: 0.1469626971 | N48: 0.1626564164
B49: 1981 | C49: 0.06561511364 | D49: 0.06722682413 | E49: 0.06866487223 | F49: 0.070213437 | G49: 0.07127547043 | H49: 0.07227148812 | I49: 0.07354449426 | J49: 0.07506004857 | K49: 0.07645648132 | L49: 0.07815286789 | M49: 0.07965693692 | N49: 0.08180109914
B50: 1980 | C50: 0.05134222229 | D50: 0.05252911734 | E50: 0.05360981111 | F50: 0.05454698293 | G50: 0.05543679935 | H50: 0.05653614828 | I50: 0.05811484831 | J50: 0.0593189635 | K50: 0.05997771704 | L50: 0.06088618343 | M50: 0.061942482 | N50: 0.0635671076
B51: 1979 | C51: 0.04223742153 | D51: 0.04284450426 | E51: 0.04342575159 | F51: 0.04381468655 | G51: 0.044388764 | H51: 0.0448810302 | I51: 0.04542496203 | J51: 0.04611241581 | K51: 0.046677878 | L51: 0.04749306342 | M51: 0.04810445118 | N51: 0.04895551191
B52: 1978 | C52: 0.03589248098 | D52: 0.03640771256 | E52: 0.03678659726 | F52: 0.03719562757 | G52: 0.03756016213 | H52: 0.03807682873 | I52: 0.03872266197 | J52: 0.0391087269 | K52: 0.03955506753 | L52: 0.04003441863 | M52: 0.04044631378 | N52: 0.04078932317
B53: 1977 | C53: 0.03002689152 | D53: 0.03068994492 | E53: 0.03122526667 | F53: 0.0316974427 | G53: 0.03197586617 | H53: 0.03236767115 | I53: 0.03273364591 | J53: 0.03340530938 | K53: 0.03399804198 | L53: 0.03425781029 | M53: 0.03463238995 | N53: 0.03511174104
B54: 1976 | C54: 0.02331884624 | D54: 0.02375514178 | E54: 0.02398763968 | F54: 0.02415555684 | G54: 0.02432490901 | H54: 0.02442250021 | I54: 0.02462916788 | J54: 0.0248645358 | K54: 0.02571273168 | L54: 0.02716083005 | M54: 0.02838791062 | N54: 0.02909975961
B55: 1975 | C55: 0.0208158895 | D55: 0.02093070084 | E55: 0.02106273752 | F55: 0.02124069976 | G55: 0.02152486846 | H55: 0.02189083804 | I55: 0.02206593026 | J55: 0.0222568128 | K55: 0.02241898474 | L55: 0.02253380126 | M55: 0.02269167334 | N55: 0.02287681064
B56: 1974 | C56: 0.01765274421 | D56: 0.01805172426 | E56: 0.01819094117 | F56: 0.01843778919 | G56: 0.01858274615 | H56: 0.01876644845 | I56: 0.01903769686 | J56: 0.01923862448 | K56: 0.01945677226 | L56: 0.01984283201 | M56: 0.02039394408 | N56: 0.02055325116
B57: 1973 | C57: 0.01424562093 | D57: 0.01436330748 | E57: 0.01448960411 | F57: 0.01471923198 | G57: 0.01487566904 | H57: 0.01499765545 | I57: 0.01538228537 | J57: 0.01562913857 | K57: 0.0160008482 | L57: 0.01620608086 | M57: 0.01640557347 | N57: 0.01704279146
B58: 1972 | C58: 0.01336154975 | D58: 0.01340317028 | E58: 0.01347636627 | F58: 0.01356104236 | G58: 0.01358830759 | H58: 0.01368876881 | I58: 0.01374043962 | J58: 0.01383085575 | K58: 0.01389400148 | L58: 0.01390404656 | M58: 0.0139944627 | N58: 0.01404182846
B59: 1971 | C59: 0.01279895758 | D59: 0.01285205821 | E59: 0.01290085381 | F59: 0.01296687474 | G59: 0.01299414515 | H59: 0.01305298584 | I59: 0.01304294075 | J59: 0.01316205713 | K59: 0.01320511268 | L59: 0.01321803297 | M59: 0.01323955816 | N59: 0.01330270906
B60: 1970 | C60: 0.0121976149 | D60: 0.01219617989 | E60: 0.01223206037 | F60: 0.01224784551 | G60: 0.01227368091 | H60: 0.01234831191 | I60: 0.01240858761 | J60: 0.01246599328 | K60: 0.01249613372 | L60: 0.01250043876 | M60: 0.01256789469 | N60: 0.01267409597
B61: 1969 | C61: 0.01159484238 | D61: 0.01163645774 | E61: 0.01164794302 | F61: 0.01167951329 | G61: 0.01167951329 | H61: 0.01172113383 | I61: 0.01176562439 | J61: 0.01177854468 | K61: 0.01188905099 | L61: 0.0120139126 | M61: 0.01201534761 | N61: 0.01210576375

Sheet TARIFAS (hidden)
G2: IR AL MENÚ
B4: VI. Tarifa del mes de enero de 2025, para efectuar los pagos provisionales mensuales a que se refiere el artículo 106 de la Ley del ISR, aplicable a los ingresos que perciban los contribuyentes a que se refiere el Título IV, Capítulo II, Sección I de la Ley del ISR.
B5: Límite inferior | C5: Límite superior | D5: Cuota fija | E5: Por ciento para aplicarse sobre el excedente del límite inferior
B6: $ | C6: $ | D6: $ | E6: %
B7: 0.01 | C7: 746.04 | D7: 0 | E7: 1.92
B8: 746.05 | C8: 6332.05 | D8: 14.32 | E8: 6.4
B9: 6332.06 | C9: 11128.01 | D9: 371.83 | E9: 10.88
B10: 11128.02 | C10: 12935.82 | D10: 893.63 | E10: 16
B11: 12935.83 | C11: 15487.71 | D11: 1182.88 | E11: 17.92
B12: 15487.72 | C12: 31236.49 | D12: 1640.18 | E12: 21.36
B13: 31236.5 | C13: 49233 | D13: 5004.12 | E13: 23.52
B14: 49233.01 | C14: 93993.9 | D14: 9236.89 | E14: 30
B15: 93993.91 | C15: 125325.2 | D15: 22665.17 | E15: 32
B16: 125325.21 | C16: 375975.61 | D16: 32691.18 | E16: 34
B17: 375975.62 | C17: En adelante | D17: 117912.32 | E17: 35
B19: Tarifa del mes de febrero de 2025, para efectuar los pagos provisionales mensuales a que se refiere el artículo 106 de la Ley del ISR, aplicable a los ingresos que perciban los contribuyentes a que se refiere el Título IV, Capítulo II, Sección I de la Ley del ISR.
B20: Límite inferior | C20: Límite superior | D20: Cuota fija | E20: Por ciento para aplicarse sobre el excedente del límite inferior
B21: $ | C21: $ | D21: $ | E21: %
B22: 0.01 | C22: 1492.08 | D22: 0 | E22: 1.92
B23: 1492.09 | C23: 12664.1 | D23: 28.64 | E23: 6.4
B24: 12664.11 | C24: 22256.02 | D24: 743.66 | E24: 10.88
B25: 22256.03 | C25: 25871.64 | D25: 1787.26 | E25: 16
B26: 25871.65 | C26: 30975.42 | D26: 2365.76 | E26: 17.92
B27: 30975.43 | C27: 62472.98 | D27: 3280.36 | E27: 21.36
B28: 62472.99 | C28: 98466 | D28: 10008.24 | E28: 23.52
B29: 98466.01 | C29: 187987.8 | D29: 18473.78 | E29: 30
B30: 187987.81 | C30: 250650.4 | D30: 45330.34 | E30: 32
B31: 250650.41 | C31: 751951.22 | D31: 65382.36 | E31: 34
B32: 751951.23 | C32: En adelante | D32: 235824.64 | E32: 35
B34: Tarifa del mes de marzo de 2025, para efectuar los pagos provisionales mensuales a que se refiere el artículo 106 de la Ley del ISR, aplicable a los ingresos que perciban los contribuyentes a que se refiere el Título IV, Capítulo II, Sección I de la Ley del ISR.
B35: Límite inferior | C35: Límite superior | D35: Cuota fija | E35: Por ciento para aplicarse sobre el excedente del límite inferior
B36: $ | C36: $ | D36: $ | E36: %
B37: 0.01 | C37: 2238.12 | D37: 0 | E37: 1.92
B38: 2238.13 | C38: 18996.15 | D38: 42.96 | E38: 6.4
B39: 18996.16 | C39: 33384.03 | D39: 1115.49 | E39: 10.88
B40: 33384.04 | C40: 38807.46 | D40: 2680.89 | E40: 16
B41: 38807.47 | C41: 46463.13 | D41: 3548.64 | E41: 17.92
B42: 46463.14 | C42: 93709.47 | D42: 4920.54 | E42: 21.36
B43: 93709.48 | C43: 147699 | D43: 15012.36 | E43: 23.52
B44: 147699.01 | C44: 281981.7 | D44: 27710.67 | E44: 30
B45: 281981.71 | C45: 375975.6 | D45: 67995.51 | E45: 32
B46: 375975.61 | C46: 1127926.83 | D46: 98073.54 | E46: 34
B47: 1127926.84 | C47: En adelante | D47: 353736.96 | E47: 35
B49: Tarifa del mes de abril de 2025, para efectuar los pagos provisionales mensuales a que se refiere el artículo 106 de la Ley del ISR, aplicable a los ingresos que perciban los contribuyentes a que se refiere el Título IV, Capítulo II, Sección I de la Ley del ISR.
B50: Límite inferior | C50: Límite superior | D50: Cuota fija | E50: Por ciento para aplicarse sobre el excedente del límite inferior
B51: $ | C51: $ | D51: $ | E51: %
B52: 0.01 | C52: 2984.16 | D52: 0 | E52: 1.92
B53: 2984.17 | C53: 25328.2 | D53: 57.28 | E53: 6.4
B54: 25328.21 | C54: 44512.04 | D54: 1487.32 | E54: 10.88
B55: 44512.05 | C55: 51743.28 | D55: 3574.52 | E55: 16
B56: 51743.29 | C56: 61950.84 | D56: 4731.52 | E56: 17.92
B57: 61950.85 | C57: 124945.96 | D57: 6560.72 | E57: 21.36
B58: 124945.97 | C58: 196932 | D58: 20016.48 | E58: 23.52
B59: 196932.01 | C59: 375975.6 | D59: 36947.56 | E59: 30
B60: 375975.61 | C60: 501300.8 | D60: 90660.68 | E60: 32
B61: 501300.81 | C61: 1503902.44 | D61: 130764.72 | E61: 34
B62: 1503902.45 | C62: En adelante | D62: 471649.28 | E62: 35
B64: Tarifa del mes de mayo de 2025, para efectuar los pagos provisionales mensuales a que se refiere el artículo 106 de la Ley del ISR, aplicable a los ingresos que perciban los contribuyentes a que se refiere el Título IV, Capítulo II, Sección I de la Ley del ISR.
B65: Límite inferior | C65: Límite superior | D65: Cuota fija | E65: Por ciento para aplicarse sobre el excedente del límite inferior
B66: $ | C66: $ | D66: $ | E66: %
B67: 0.01 | C67: 3730.2 | D67: 0 | E67: 1.92
B68: 3730.21 | C68: 31660.25 | D68: 71.6 | E68: 6.4
B69: 31660.26 | C69: 55640.05 | D69: 1859.15 | E69: 10.88
B70: 55640.06 | C70: 64679.1 | D70: 4468.15 | E70: 16
B71: 64679.11 | C71: 77438.55 | D71: 5914.4 | E71: 17.92
B72: 77438.56 | C72: 156182.45 | D72: 8200.9 | E72: 21.36
B73: 156182.46 | C73: 246165 | D73: 25020.6 | E73: 23.52
B74: 246165.01 | C74: 469969.5 | D74: 46184.45 | E74: 30
B75: 469969.51 | C75: 626626 | D75: 113325.85 | E75: 32
B76: 626626.01 | C76: 1879878.05 | D76: 163455.9 | E76: 34
B77: 1879878.06 | C77: En adelante | D77: 589561.6 | E77: 35
B79: Tarifa del mes de junio de 2025, para efectuar los pagos provisionales mensuales a que se refiere el artículo 106 de la Ley del ISR, aplicable a los ingresos que perciban los contribuyentes a que se refiere el Título IV, Capítulo II, Sección I de la Ley del ISR.
B80: Límite inferior | C80: Límite superior | D80: Cuota fija | E80: Por ciento para aplicarse sobre el excedente del límite inferior
B81: $ | C81: $ | D81: $ | E81: %
B82: 0.01 | C82: 4476.24 | D82: 0 | E82: 1.92
B83: 4476.25 | C83: 37992.3 | D83: 85.92 | E83: 6.4
B84: 37992.31 | C84: 66768.06 | D84: 2230.98 | E84: 10.88
B85: 66768.07 | C85: 77614.92 | D85: 5361.78 | E85: 16
B86: 77614.93 | C86: 92926.26 | D86: 7097.28 | E86: 17.92
B87: 92926.27 | C87: 187418.94 | D87: 9841.08 | E87: 21.36
B88: 187418.95 | C88: 295398 | D88: 30024.72 | E88: 23.52
B89: 295398.01 | C89: 563963.4 | D89: 55421.34 | E89: 30
B90: 563963.41 | C90: 751951.2 | D90: 135991.02 | E90: 32
B91: 751951.21 | C91: 2255853.66 | D91: 196147.08 | E91: 34
B92: 2255853.67 | C92: En adelante | D92: 707473.92 | E92: 35
B94: Tarifa del mes de julio de 2025, para efectuar los pagos provisionales mensuales a que se refiere el artículo 106 de la Ley del ISR, aplicable a los ingresos que perciban los contribuyentes a que se refiere el Título IV, Capítulo II, Sección I de la Ley del ISR.
B95: Límite inferior | C95: Límite superior | D95: Cuota fija | E95: Por ciento para aplicarse sobre el excedente del límite inferior
B96: $ | C96: $ | D96: $ | E96: %
B97: 0.01 | C97: 5222.28 | D97: 0 | E97: 1.92
B98: 5222.29 | C98: 44324.35 | D98: 100.24 | E98: 6.4
B99: 44324.36 | C99: 77896.07 | D99: 2602.81 | E99: 10.88
B100: 77896.08 | C100: 90550.74 | D100: 6255.41 | E100: 16
B101: 90550.75 | C101: 108413.97 | D101: 8280.16 | E101: 17.92
B102: 108413.98 | C102: 218655.43 | D102: 11481.26 | E102: 21.36
B103: 218655.44 | C103: 344631 | D103: 35028.84 | E103: 23.52
B104: 344631.01 | C104: 657957.3 | D104: 64658.23 | E104: 30
B105: 657957.31 | C105: 877276.4 | D105: 158656.19 | E105: 32
B106: 877276.41 | C106: 2631829.27 | D106: 228838.26 | E106: 34
B107: 2631829.28 | C107: En adelante | D107: 825386.24 | E107: 35
B109: Tarifa del mes de agosto de 2025, para efectuar los pagos provisionales mensuales a que se refiere el artículo 106 de la Ley del ISR, aplicable a los ingresos que perciban los contribuyentes a que se refiere el Título IV, Capítulo II, Sección I de la Ley del ISR.
B110: Límite inferior | C110: Límite superior | D110: Cuota fija | E110: Por ciento para aplicarse sobre el excedente del límite inferior
B111: $ | C111: $ | D111: $ | E111: %
B112: 0.01 | C112: 5968.32 | D112: 0 | E112: 1.92
B113: 5968.33 | C113: 50656.4 | D113: 114.56 | E113: 6.4
B114: 50656.41 | C114: 89024.08 | D114: 2974.64 | E114: 10.88
B115: 89024.09 | C115: 103486.56 | D115: 7149.04 | E115: 16
B116: 103486.57 | C116: 123901.68 | D116: 9463.04 | E116: 17.92
B117: 123901.69 | C117: 249891.92 | D117: 13121.44 | E117: 21.36
B118: 249891.93 | C118: 393864 | D118: 40032.96 | E118: 23.52
B119: 393864.01 | C119: 751951.2 | D119: 73895.12 | E119: 30
B120: 751951.21 | C120: 1002601.6 | D120: 181321.36 | E120: 32
B121: 1002601.61 | C121: 3007804.88 | D121: 261529.44 | E121: 34
B122: 3007804.89 | C122: En adelante | D122: 943298.56 | E122: 35
B124: Tarifa del mes de septiembre de 2025, para efectuar los pagos provisionales mensuales a que se refiere el artículo 106 de la Ley del ISR, aplicable a los ingresos que perciban los contribuyentes a que se refiere el Título IV, Capítulo II, Sección I de la Ley del ISR.
B125: Límite inferior | C125: Límite superior | D125: Cuota fija | E125: Por ciento para aplicarse sobre el excedente del límite inferior
B126: $ | C126: $ | D126: $ | E126: %
B127: 0.01 | C127: 6714.36 | D127: 0 | E127: 1.92
B128: 6714.37 | C128: 56988.45 | D128: 128.88 | E128: 6.4
B129: 56988.46 | C129: 100152.09 | D129: 3346.47 | E129: 10.88
B130: 100152.1 | C130: 116422.38 | D130: 8042.67 | E130: 16
B131: 116422.39 | C131: 139389.39 | D131: 10645.92 | E131: 17.92
B132: 139389.4 | C132: 281128.41 | D132: 14761.62 | E132: 21.36
B133: 281128.42 | C133: 443097 | D133: 45037.08 | E133: 23.52
B134: 443097.01 | C134: 845945.1 | D134: 83132.01 | E134: 30
B135: 845945.11 | C135: 1127926.8 | D135: 203986.53 | E135: 32
B136: 1127926.81 | C136: 3383780.49 | D136: 294220.62 | E136: 34
B137: 3383780.5 | C137: En adelante | D137: 1061210.88 | E137: 35
B139: Tarifa del mes de octubre de 2025, para efectuar los pagos provisionales mensuales a que se refiere el artículo 106 de la Ley del ISR, aplicable a los ingresos que perciban los contribuyentes a que se refiere el Título IV, Capítulo II, Sección I de la Ley del ISR.
B140: Límite inferior | C140: Límite superior | D140: Cuota fija | E140: Por ciento para aplicarse sobre el excedente del límite inferior
B141: $ | C141: $ | D141: $ | E141: %
B142: 0.01 | C142: 7460.4 | D142: 0 | E142: 1.92
B143: 7460.41 | C143: 63320.5 | D143: 143.2 | E143: 6.4
B144: 63320.51 | C144: 111280.1 | D144: 3718.3 | E144: 10.88
B145: 111280.11 | C145: 129358.2 | D145: 8936.3 | E145: 16
B146: 129358.21 | C146: 154877.1 | D146: 11828.8 | E146: 17.92
B147: 154877.11 | C147: 312364.9 | D147: 16401.8 | E147: 21.36
B148: 312364.91 | C148: 492330 | D148: 50041.2 | E148: 23.52
B149: 492330.01 | C149: 939939 | D149: 92368.9 | E149: 30
B150: 939939.01 | C150: 1253252 | D150: 226651.7 | E150: 32
B151: 1253252.01 | C151: 3759756.1 | D151: 326911.8 | E151: 34
B152: 3759756.11 | C152: En adelante | D152: 1179123.2 | E152: 35
B154: Tarifa del mes de noviembre de 2025, para efectuar los pagos provisionales mensuales a que se refiere el artículo 106 de la Ley del ISR, aplicable a los ingresos que perciban los contribuyentes a que se refiere el Título IV, Capítulo II, Sección I de la Ley del ISR.
B155: Límite inferior | C155: Límite superior | D155: Cuota fija | E155: Por ciento para aplicarse sobre el excedente del límite inferior
B156: $ | C156: $ | D156: $ | E156: %
B157: 0.01 | C157: 8206.44 | D157: 0 | E157: 1.92
B158: 8206.45 | C158: 69652.55 | D158: 157.52 | E158: 6.4
B159: 69652.56 | C159: 122408.11 | D159: 4090.13 | E159: 10.88
B160: 122408.12 | C160: 142294.02 | D160: 9829.93 | E160: 16
B161: 142294.03 | C161: 170364.81 | D161: 13011.68 | E161: 17.92
B162: 170364.82 | C162: 343601.39 | D162: 18041.98 | E162: 21.36
B163: 343601.4 | C163: 541563 | D163: 55045.32 | E163: 23.52
B164: 541563.01 | C164: 1033932.9 | D164: 101605.79 | E164: 30
B165: 1033932.91 | C165: 1378577.2 | D165: 249316.87 | E165: 32
B166: 1378577.21 | C166: 4135731.71 | D166: 359602.98 | E166: 34
B167: 4135731.72 | C167: En adelante | D167: 1297035.52 | E167: 35
B169: Tarifa del mes de diciembre de 2025, para efectuar los pagos provisionales mensuales a que se refiere el artículo 106 de la Ley del ISR, aplicable a los ingresos que perciban los contribuyentes a que se refiere el Título IV, Capítulo II, Sección I de la Ley del ISR.
B170: Límite inferior | C170: Límite superior | D170: Cuota fija | E170: Por ciento para aplicarse sobre el excedente del límite inferior
B171: $ | C171: $ | D171: $ | E171: %
B172: 0.01 | C172: 8952.49 | D172: 0 | E172: 1.92
B173: 8952.5 | C173: 75984.55 | D173: 171.88 | E173: 6.4
B174: 75984.56 | C174: 133536.07 | D174: 4461.94 | E174: 10.88
B175: 133536.08 | C175: 155229.8 | D175: 10723.55 | E175: 16
B176: 155229.81 | C176: 185852.57 | D176: 14194.54 | E176: 17.92
B177: 185852.58 | C177: 374837.88 | D177: 19682.13 | E177: 21.36
B178: 374837.89 | C178: 590795.99 | D178: 60049.4 | E178: 23.52
B179: 590796 | C179: 1127926.84 | D179: 110842.74 | E179: 30
B180: 1127926.85 | C180: 1503902.46 | D180: 271981.99 | E180: 32
B181: 1503902.47 | C181: 4511707.37 | D181: 392294.17 | E181: 34
B182: 4511707.38 | C182: En adelante | D182: 1414947.85 | E182: 35
B186: Monto de los ingresos amparados por comprobantes fiscales efectivamente cobrados, sin impuesto al valor agregado (pesos mensuales) | E186: Tasa aplicable
B187: Hasta 25,000.00 | E187: 0.01 | G187: 0 | H187: 25000 | I187: 0.01
B188: Hasta 50,000.00 | E188: 0.011 | G188: =H187+0.01 -> 25000.01 | H188: 50000 | I188: 0.011
B189: Hasta 83,333.33 | E189: 0.015 | G189: =H188+0.01 -> 50000.01 | H189: 83333.33 | I189: 0.015
B190: Hasta 208,333.33 | E190: 0.02 | G190: 83333.34 | H190: 208333.33 | I190: 0.02
B191: Hasta 3,500,000.00 | E191: 0.025 | G191: 208333.34 | H191: 3500000 | I191: 0.025
